Workbook

Sheet Kanatlı
B1: KANATLILAR İÇİN EN DÜŞÜK | C1: Türü : | D1: TAVUK | F1: Tavuk tipi: | G1: YUMURTACI TİCARİ | J1: =TODAY() -> 2025-08-18 | L1: Coşkun & İnal & İnal | CD1: 1000
B2: MALİYETLİ RASYON PROGRAMI | C2: Tipi : | D2: ATABEY BEYAZ, PİLİÇ BÜYÜTME (4-10 hf) | N2: Selçuk Üniversitesi Veteriner Fakültesi Rasyon Hazırlama Programları
C3: MİKTAR | D3: Fiyat
B4: VERİLECEK YEMLER | C4: =IF(C5<99.99999,"EKSİK",IF(C5>100.00001,"FAZLA","TAMAM")) -> TAMAM | D4: ₺/kg | E4: Yem sınırları | G4: BESİN MAD. | H4: İHTİYAÇLAR | J4: RASYON | K4: SONUÇ
C5: =SUM(Rapor!BK4:BK29) -> 100 | D5: =(C6*D6+C7*D7+C8*D8+C9*D9+C10*D10+C11*D11+C12*D12+C13*D13+C14*D14+C15*D15+C16*D16+C17*D17+C18*D18+C19*D19+C20*D20+C21*D21+C22*D22+C23*D23+C24*D24+C25*D25+C26*D26+C27*D27+C28*D28+C29*D29+C30*D30+C31*D31)/100 -> 11.5553531 | E5: En az | F5: En çok | H5: En az | I5: En çok | N5: Fİ & Şİ & BC
A6: 1 | B6: MISIR, SARI | C6: 47.7804569 | D6: 8.5 | E6: 0 | F6: 70 | G6: =Rapor!G6 -> KM,% | J6: =Rapor!J6 -> 89.20869516 | CB6: 64.29817783 | CC6: 0 | CD6: 0
A7: 1 | B7: BUĞDAY,SERT,KIRMIZI,KIŞLIK | C7: 16.40030938 | D7: 10.5 | E7: 0 | F7: 60 | G7: =Rapor!G7 -> HP,% | H7: 18 | I7: 18 | J7: =Rapor!J7 -> 18.03779999 | K7: =Rapor!K7 -> TAMAM | CB7: 0 | CC7: 0 | CD7: 0
A8: 1 | B8: BUĞDAY KEPEĞİ,RAZMOL | C8: 10 | D8: 9 | E8: 0 | F8: 10 | G8: =Rapor!G8 -> ME,kcal/kg | H8: 2800 | I8: 2800 | J8: =Rapor!J8 -> 2800.083996 | K8: =Rapor!K8 -> TAMAM | CB8: 0 | CC8: 0 | CD8: 0
A9: 1 | B9: BİTKİSEL YAĞ | C9: 1.316419942e-06 | D9: 50 | E9: 0 | F9: 10 | G9: =Rapor!G9 -> Ca,% | H9: 1 | I9: 1 | J9: =Rapor!J9 -> 1.003 | K9: =Rapor!K9 -> TAMAM | CB9: 0 | CC9: 0 | CD9: 0
A10: 2 | B10: SOYA KÜSPESİ, %46 | C10: 13.13959733 | D10: 18 | E10: 0 | F10: 40 | G10: =Rapor!G10 -> Kul.P,% | H10: 0.45 | I10: 0.45 | J10: =Rapor!J10 -> 0.4486500009 | K10: =Rapor!K10 -> TAMAM | CB10: 22.28560429 | CC10: 0 | CD10: 0
A11: 2 | B11: SOYA KÜSPESİ, %51 | C11: 6.622782409 | D11: 20 | E11: 0 | F11: 40 | G11: =Rapor!G11 -> Na,% | H11: 0.16 | I11: 0.2133333333 | J11: =Rapor!J11 -> 0.1595200014 | K11: =Rapor!K11 -> TAMAM | M11: Hayvanın TÜRÜ : | N11: =CONCATENATE(KanatTuru,IF(KanatTuru="TAVUK",", "&TavukTipi,"")) -> TAVUK, YUMURTACI TİCARİ | CB11: 9 | CC11: 0 | CD11: 0
A12: 2 | B12: AYÇİÇEĞİ KÜSPESİ, %23HP | C12: 2.110723111 | D12: 11 | E12: 0 | F12: 15 | G12: =Rapor!G12 -> Cl | H12: 0.15 | I12: 0.2 | J12: =Rapor!J12 -> 0.2256545016 | K12: =Rapor!K12 -> FAZLA | M12: Hayvanın TİPİ : | N12: =IF(KanatTipi="","",KanatTipi) -> ATABEY BEYAZ, PİLİÇ BÜYÜTME (4-10 hf) | CB12: 2.831390715 | CC12: 0 | CD12: 0
A13: 3 | B13: DİKALSİYUM FOSFAT | C13: 1.764882273 | D13: 35 | E13: 0 | F13: 4 | G13: =Rapor!G13 -> Met+Sis,% | H13: 0.7 | I13: 0.7 | J13: =Rapor!J13 -> 0.7028000006 | K13: =Rapor!K13 -> TAMAM | CB13: 0.6780471898 | CC13: 0 | CD13: 0
A14: 3 | B14: MERMER TOZU | C14: 1.312193251 | D14: 2 | E14: 0 | F14: 10 | G14: =Rapor!G14 -> Lizin,% | H14: 1 | I14: 1 | J14: =Rapor!J14 -> 0.9959999972 | K14: =Rapor!K14 -> TAMAM | CB14: 0.25 | CC14: 0 | CD14: 0
A15: 3 | B15: TUZ | C15: 0.3048495737 | D15: 1.5 | E15: 0 | F15: 0.7 | G15: =Rapor!G15 -> Treonin,% | H15: 0.65 | I15: 0.65 | J15: =Rapor!J15 -> 0.6525999992 | K15: =Rapor!K15 -> TAMAM | CB15: 0.2233860749 | CC15: 0 | CD15: 0
A16: 3 | B16: VİTAMİN-MİNERAL KARMASI | C16: 0.25 | D16: 25 | E16: 0.25 | F16: 0.25 | G16: =Rapor!G16 -> Triptofan,% | H16: 0.18 | I16: 0.18 | J16: =Rapor!J16 -> 0.235688129 | K16: =Rapor!K16 -> FAZLA | CB16: 0.1586467583 | CC16: 0 | CD16: 0
A17: 3 | B17: L-LİZİN hidroklorid | C17: 0.1747537836 | D17: 65 | E17: 0 | F17: 0.5 | G17: =Rapor!G17 -> Linoleik a.,% | H17: 1.25 | J17: =Rapor!J17 -> 1.246249997 | K17: =Rapor!K17 -> TAMAM | CB17: 0.1290062911 | CC17: 0 | CD17: 0
A18: 3 | B18: DL-METHİONİN | C18: 0.115395756 | D18: 95 | E18: 0 | F18: 0.5 | G18: =Rapor!G18 -> HY,% | J18: =Rapor!J18 -> 2.161749295 | CB18: 0.08279492164 | CC18: 0 | CD18: 0
A19: 3 | B19: L-TREONİN | C19: 0.02405491938 | D19: 66 | E19: 0 | F19: 0.5 | G19: =Rapor!G19 -> HK,% | J19: =Rapor!J19 -> 6.206738386 | CB19: 0.06294593145 | CC19: 0 | CD19: 0
A20: 3 | B20: L-TRİPTOFAN | C20: 0 | D20: 66 | E20: 0 | F20: 0.5 | G20: =Rapor!G20 -> HS,% | J20: =Rapor!J20 -> 3.621800702 | CB20: 0 | CC20: 0 | CD20: 0
C21: 0 | E21: 0 | F21: 0 | G21: =Rapor!G21 -> Nişasta,% | J21: =Rapor!J21 -> 44.80877702 | M21: Yem maddesi | N21: % | O21: Mikser | CB21: 0 | CC21: 0 | CD21: 0
C22: 0 | E22: 0 | F22: 0 | G22: =Rapor!G22 -> Şeker,% | J22: =Rapor!J22 -> 3.643446313 | M22: MISIR, SARI | N22: 64.29817783 | CB22: 0 | CC22: 0 | CD22: 0
C23: 0 | E23: 0 | F23: 0 | G23: Elektrolit Denge, mEq/kg KM | J23: =Rapor!J23 -> 219.7315223 | M23: SOYA KÜSPESİ, %48 | N23: 22.28560429 | P23: Besin Mad. | Q23: İhtiyaç | R23: Rasyon | S23: Sonuç | CB23: 0 | CC23: 0 | CD23: 0
C24: 0 | E24: 0 | F24: 0 | M24: BALIK UNU, HAMSİ, %64 HP | N24: 9 | P24: =Rapor!G6 -> KM,% | R24: 89.69262166 | CB24: 0 | CC24: 0 | CD24: 0
C25: 0 | E25: 0 | F25: 0 | M25: AYÇİÇEĞİ KÜSPESİ, %32 HP | N25: 2.831390715 | P25: =Rapor!G7 -> HP,% | Q25: 23 | R25: 22.9517 | S25: TAMAM | CB25: 0 | CC25: 0 | CD25: 0
C26: 0 | E26: 0 | F26: 0 | M26: KİREÇ TAŞI | N26: 0.6780471898 | P26: =Rapor!G8 -> ME,kcal/kg | Q26: 3000 | R26: 2999.91 | S26: TAMAM | CB26: 0 | CC26: 0 | CD26: 0
C27: 0 | E27: 0 | F27: 0 | M27: VİTAMİN-MİNERAL KARMASI | N27: 0.25 | P27: =Rapor!G9 -> Ca,% | Q27: 0.96 | R27: 0.96288 | S27: TAMAM | CB27: 0 | CC27: 0 | CD27: 0
C28: 0 | E28: 0 | F28: 0 | M28: TUZ | N28: 0.2233860749 | P28: =Rapor!G10 -> Kul.P,% | Q28: 0.48 | R28: 0.47856 | S28: TAMAM | CB28: 0 | CC28: 0 | CD28: 0
C29: 0 | E29: 0 | F29: 0 | M29: DİKALSİYUM FOSFAT | N29: 0.1586467583 | P29: =Rapor!G11 -> Na,% | Q29: 0.16 | R29: 0.15952 | S29: TAMAM | CB29: 0 | CC29: 0 | CD29: 0
C30: 0 | E30: 0 | F30: 0 | M30: L-LİZİN hidroklorid | N30: 0.1290062911 | P30: =Rapor!G12 -> Cl | Q30: 0.16 | R30: 0.2237322862 | S30: TAMAM | CB30: 0 | CC30: 0 | CD30: 0
C31: 0 | E31: 0 | F31: 0 | M31: DL-METHİONİN | N31: 0.08279492164 | P31: =Rapor!G13 -> Met+Sis,% | Q31: 0.95 | R31: 0.9462 | S31: TAMAM | CB31: 0 | CC31: 0 | CD31: 0
M32: L-TREONİN | N32: 0.06294593145 | P32: =Rapor!G14 -> Lizin,% | Q32: 1.44 | R32: 1.43424 | S32: TAMAM
P33: =Rapor!G15 -> Treonin,% | Q33: 0.97 | R33: 0.96612 | S33: TAMAM
P34: =Rapor!G16 -> Triptofan,% | Q34: 0.23 | R34: 0.2664516632 | S34: FAZLA
P35: =Rapor!G18 -> HY,%
P36: =Rapor!G17 -> Linoleik a.,%
P37: =Rapor!G19 -> HK,%
P38: =Rapor!G20 -> HS,%
P39: =Rapor!G21 -> Nişasta,%
P40: =Rapor!G22 -> Şeker,%
R44: 29.05.2015
R45: Hazırlayan
R46: FATMA İNAL
M48: Toplam | N48: 100 | O48: =SUM(O22:O47) -> 0
M51: Kurum Adı
M52: S.Ü. VETERİNER FAKÜLTESİ

Sheet Rapor
B1: KANATLI RASYON PROGRAMI | I1: =TODAY() -> 45887 | DY1: Seçilen Yemler | EA1: HAYVAN TÜRLERİ ve TİPLERİ | EB1: HP | ED1: ME | EF1: Ca | EH1: P | EI1: Kul.P | EK1: Na | EM1: Cl | EO1: Metionin | EQ1: Sin.Metionin | ES1: Met+Sis | EU1: Sin.Met+Sis. | EW1: Lizin | EY1: Sin.Lizin | FA1: Treonin | FC1: Sin.Treonin | FE1: Triptofan | FG1: Sin.Triptofan | FI1: Arginin | FK1: Sin.Arginin | FM1: Linoleik
N2: RASYON KAYIT | O2: 1 | P2: =O2+1 -> 2 | Q2: =P2+1 -> 3 | R2: 4 | S2: 5 | T2: 6 | U2: 7 | V2: 8 | W2: 9 | X2: 10 | Y2: 11 | Z2: 12 | AA2: 13 | AB2: 14 | AC2: 15 | AD2: =AC2+1 -> 16 | AE2: 17 | AF2: 18 | AG2: 19 | AH2: 20 | AI2: 21 | AJ2: 22 | AK2: =AJ2+1 -> 23 | AL2: 24 | AM2: 25 | AN2: 26 | AO2: 27 | AP2: 28 | AU2: Tolerans | AV2: SONUÇ | AW2: 0-0 | AX2: 0-1 | AY2: 1-0 | AZ2: 1=1 | BA2: 1-1 | BB2: 0-0 | BC2: 0-1 | BD2: 1-0 | BE2: 1=1 | BF2: 1-1 | BG2: min | BH2: max | BL2: HESAPLAMA TABLOSU | BM2: 2 | BN2: 3 | BO2: 4 | BP2: 5 | BQ2: 6 | BR2: 7 | BS2: 8 | BT2: 9 | BU2: 10 | BV2: 11 | BW2: 12 | BX2: 13 | BY2: 14 | BZ2: 15 | CA2: 16 | CB2: 17 | CC2: 18 | CD2: 19 | CE2: 20 | CF2: 21 | CG2: 22 | CH2: 23 | CI2: 24 | CJ2: 25 | CK2: 26 | CL2: 27 | CM2: 28 | CN2: 29 | CO2: 30 | CP2: 31 | CQ2: 32 | CR2: 33 | CS2: 34 | CT2: 35 | CU2: 36 | CV2: 37 | CW2: 38 | CX2: 39 | CY2: 40 | CZ2: 41 | DA2: 42 | DB2: 43 | DC2: 44 | DD2: 45 | DE2: 46 | DF2: 47 | DG2: 48 | DH2: 49 | DI2: 50 | DJ2: 51 | DY2: Toplu yem seçimi için kullanılır | EA2: TAVUK
D3: Fiyat | N3: Rasyonun Adı : | AQ3: Rasyonlar | AR3: Adresleri | AT3: =G7 -> HP,% | AU3: 1 | AV3: =IF(AW3=1,BB3,IF(AX3=1,BC3,IF(AY3=1,BD3,IF(AZ3=1,BE3,IF(BA3=1,BF3,""))))) -> TAMAM | AW3: =IF(AND(H7=0,I7=0)=TRUE,1,0) -> 0 | AX3: =IF(AND(H7=0,I7>0)=TRUE,1,0) -> 0 | AY3: =IF(AND(H7>0,I7=0)=TRUE,1,0) -> 0 | AZ3: =IF(AND(H7>0,H7=I7)=TRUE,1,0) -> 1 | BA3: =IF(AND(H7>0,I7>0)=TRUE,1,0) -> 1 | BB3: ="" ->  | BC3: =IF(J7>I7*1.0022,"FAZLA","TAMAM") -> TAMAM | BD3: =IF(J7<H7*0.997,"EKSİK","TAMAM") -> TAMAM | BE3: =IF(J7<H7*0.997,"EKSİK",IF(J7>I7*1.0022,"FAZLA","TAMAM")) -> TAMAM | BF3: =IF(J7<H7*0.997,"EKSİK",IF(J7>I7*1.0022,"FAZLA","TAMAM")) -> TAMAM | BG3: =IF(AW3=1,0,IF(AX3=1,I7,IF(AY3=1,H7,IF(AZ3=1,H7,IF(BA3=1,H7,0))))) -> 18 | BH3: =IF(AW3=1,0,IF(AX3=1,I7,IF(AY3=1,H7*1.05,IF(AZ3=1,I7,IF(BA3=1,I7,"")))))*1.0022 -> 18.0396 | BK3: Miktar | BL3: YEMLER | BM3: KM | BN3: HP | BO3: ME | BP3: Ca | BQ3: Top.P | BR3: Kul.P | BS3: K | BT3: Na | BU3: Cl | BV3: Metionin | BW3: Sistin | BX3: Met+Sis | BY3: Sin.Met+Sis | BZ3: Lizin | CA3: Sin.Lizin | CB3: Treonin | CC3: Triptofan | CD3: Arjinin | CE3: İzolöysin | CF3: Löysin | CG3: Fenilalanin | CH3: Tirozin | CI3: HY | CJ3: Linoleik | CK3: HS | CL3: HK | CM3: Nişasta | CN3: Şeker | CO3: NDF | CP3: ADF | CQ3: Mg | CR3: S | CS3: Co | CT3: Cu | CU3: I | CV3: Fe | CW3: Mn | CX3: Se | CY3: Zn | CZ3: Mo | DA3: Vit A,1000 IU/kg | DB3: Vit D,1000 IU/kg | DC3: Vit E,IU/kg | DD3: Sin.Met. | DE3: Sin.Treonin | DF3: Sin.Triptofan | DG3: Sin.Arjinin | DH3: Fiat,TL | DI3: Enaz | DJ3: Ençok | EA3: TAVUK-ETÇİ TİP-DAMIZLIK
B4: VERİLECEK YEMLER | D4: ₺/kg | E4: Yemler için | G4: BESİN MAD. | H4: İHTİYAÇLAR | J4: RASYON | K4: SONUÇ | N4: Hazırlandığı tarih | AR4: O | AT4: ME,kcal/kg | AU4: 0.5 | AV4: TAMAM | AW4: 0 | AX4: 0 | AY4: 0 | AZ4: 1 | BA4: 1 | BB4: ="" ->  | BC4: =IF(J8>I8*1.0006,"FAZLA","TAMAM") -> TAMAM | BD4: =IF(J8<H8*0.999,"EKSİK","TAMAM") -> TAMAM | BE4: =IF(J8<H8*0.999,"EKSİK",IF(J8>I8*1.0006,"FAZLA","TAMAM")) -> TAMAM | BF4: =IF(J8<H8*0.999,"EKSİK",IF(J8>I8*1.0006,"FAZLA","TAMAM")) -> TAMAM | BG4: =IF(AW4=1,0,IF(AX4=1,I8,IF(AY4=1,H8,IF(AZ4=1,H8,IF(BA4=1,H8,0))))) -> 2800 | BH4: =IF(AW4=1,0,IF(AX4=1,I8,IF(AY4=1,H8*1.05,IF(AZ4=1,I8,IF(BA4=1,I8,"")))))*1.0005 -> 2801.4 | BK4: =IF(B6=0,0,C6) -> 47.7804569 | BL4: =IF(B6=0,0,IF(C6<=0,0,B6)) -> MISIR, SARI | BM4: =IF($BL4=0,0,VLOOKUP($BL4,$BL$61:$DJ$367,BM$2,FALSE)) -> 89 | BN4: 8.5 | BO4: 3350 | BP4: 0.02 | BQ4: 0.28 | BR4: 0.08 | BS4: 0.3 | BT4: 0.02 | BU4: 0.04 | BV4: 0.18 | BW4: =IF($BL4=0,0,VLOOKUP($BL4,$BL$61:$DJ$367,BW$2,FALSE)) -> 0.18 | BX4: 0.36 | BY4: 0.3168 | BZ4: 0.26 | CA4: 0.2106 | CB4: 0.29 | CC4: 0.06 | CD4: 0.38 | CE4: 0.29 | CF4: 1 | CG4: =IF($BL4=0,0,VLOOKUP($BL4,$BL$61:$DJ$367,CG$2,FALSE)) -> 0.38 | CH4: 0.3 | CI4: 2.5 | CJ4: 1.82 | CK4: 2.2 | CL4: 1.35 | CM4: 65 | CN4: 2.1 | CO4: 8.3695 | CP4: 2.9954 | CQ4: =IF($BL4=0,0,VLOOKUP($BL4,$BL$61:$DJ$367,CQ$2,FALSE)) -> 0.10572 | CR4: 0.0881 | CS4: 0 | CT4: 2.643 | CU4: 0 | CV4: 47.574 | CW4: 9.691 | CX4: 0.06167 | CY4: 23.787 | CZ4: 0.7048 | DA4: =IF($BL4=0,0,VLOOKUP($BL4,$BL$61:$DJ$367,DA$2,FALSE)) -> 0 | DB4: 0 | DC4: 0 | DD4: 0.1467 | DE4: 0.2407 | DF4: 0.045 | DG4: 0.3344 | DH4: 8.5 | DI4: 0 | DJ4: 70
C5: MİKTAR | D5: =Kanatlı!D5 -> 11.5553531 | E5: En az | F5: En çok | H5: en az | I5: en çok | N5: Hazırlayanın Adı soyadı : | AR5: P | AT5: Ca,% | AU5: 1 | AV5: TAMAM | AW5: 0 | AX5: 0 | AY5: 0 | AZ5: 1 | BA5: 1 | BB5: ="" ->  | BC5: =IF(J9>I9*1.0031,"FAZLA","TAMAM") -> TAMAM | BD5: =IF(J9<H9*0.9989,"EKSİK","TAMAM") -> TAMAM | BE5: =IF(J9<H9*0.9989,"EKSİK",IF(J9>I9*1.0031,"FAZLA","TAMAM")) -> TAMAM | BF5: =IF(J9<H9*0.9989,"EKSİK",IF(J9>I9*1.0031,"FAZLA","TAMAM")) -> TAMAM | BG5: =IF(AW5=1,0,IF(AX5=1,I9,IF(AY5=1,H9,IF(AZ5=1,H9,IF(BA5=1,H9,0)))))*0.9989 -> 0.9989 | BH5: =IF(AW5=1,0,IF(AX5=1,I9,IF(AY5=1,H9*1.05,IF(AZ5=1,I9,IF(BA5=1,I9,"")))))*1.0031 -> 1.0031 | BK5: 16.40030938 | BL5: BUĞDAY,SERT,KIRMIZI,KIŞLIK | BM5: 87 | BN5: 14.1 | BO5: 2900 | BP5: 0.05 | BQ5: 0.37 | BR5: 0.13 | BS5: 0.45 | BT5: 0.04 | BU5: 0.05 | BV5: 0.21 | BW5: 0.3 | BX5: 0.51 | BY5: 0.4437 | BZ5: 0.37 | CA5: 0.2997 | CB5: 0.39 | CC5: 0.16 | CD5: 0.6 | CE5: 0.44 | CF5: 0.89 | CG5: 0.6 | CH5: 0.43 | CI5: 2.5 | CJ5: 0.59 | CK5: 3 | CL5: 1.78 | CM5: 65 | CN5: 3.1 | CO5: 11.9796 | CP5: 3.9336 | CQ5: 0.1341 | CR5: 0.1341 | CS5: 0 | CT5: 4.47 | CU5: 0 | CV5: 64.368 | CW5: 37.548 | CX5: 0.25032 | CY5: 35.76 | CZ5: 1.1622 | DA5: 0 | DB5: 0 | DC5: 0 | DD5: 0.17115 | DE5: 0.3237 | DF5: 0.12 | DG5: 0.528 | DH5: 10.5 | DI5: 0 | DJ5: 60 | EA5: COBB 500 FF DAMIZLIK, ÖN BAŞLANGIÇ (0-2 hf) | EB5: 20 | EC5: =EB5 -> 20 | ED5: 2868 | EE5: =ED5 -> 2868 | EF5: 1 | EG5: =EF5 -> 1 | EI5: 0.45 | EJ5: =EI5 -> 0.45 | EK5: 0.18 | EL5: 0.2 | EM5: 0.18 | EN5: 0.24 | EO5: 0.55 | EP5: =EO5 -> 0.55 | EQ5: 0.49 | ER5: =EQ5 -> 0.49 | ES5: 0.94 | ET5: =ES5 -> 0.94 | EU5: 0.84 | EV5: =EU5 -> 0.84 | EW5: 1.25 | EX5: =EW5 -> 1.25 | EY5: 1.12 | EZ5: =EY5 -> 1.12 | FA5: 0.88 | FB5: =FA5 -> 0.88 | FC5: 0.78 | FD5: =FC5 -> 0.78 | FE5: 0.28 | FF5: =FE5 -> 0.28 | FG5: 0.25 | FH5: =FG5 -> 0.25 | FI5: 1.31 | FJ5: =FI5 -> 1.31 | FK5: 1.18 | FL5: =FK5 -> 1.18 | FM5: 1.25
A6: =Kanatlı!A6 -> 1 | B6: =Kanatlı!B6 -> MISIR, SARI | C6: =Kanatlı!C6 -> 47.7804569 | D6: 37 | E6: =Kanatlı!E6 -> 0 | F6: =Kanatlı!F6 -> 70 | G6: KM,% | J6: =BM31 -> 89.20869516 | N6: Hayvan sahibinin adı soyadı : | AR6: Q | AT6: Kul.P,% | AU6: 1 | AV6: TAMAM | AW6: 0 | AX6: 0 | AY6: 0 | AZ6: 1 | BA6: 1 | BB6: ="" ->  | BC6: =IF(J10>I10*1.031,"FAZLA","TAMAM") -> TAMAM | BD6: =IF(J10<H10*0.9969,"EKSİK","TAMAM") -> TAMAM | BE6: =IF(J10<H10*0.9969,"EKSİK",IF(J10>I10*1.031,"FAZLA","TAMAM")) -> TAMAM | BF6: =IF(J10<H10*0.9969,"EKSİK",IF(J10>I10*1.031,"FAZLA","TAMAM")) -> TAMAM | BG6: =IF(AW6=1,0,IF(AX6=1,I10,IF(AY6=1,H10,IF(AZ6=1,H10,IF(BA6=1,H10,0)))))*0.9969 -> 0.448605 | BH6: =IF(AW6=1,0,IF(AX6=1,I10,IF(AY6=1,H10*1.05,IF(AZ6=1,I10,IF(BA6=1,I10,"")))))*1.0031 -> 0.451395 | BK6: 10 | BL6: BUĞDAY KEPEĞİ,RAZMOL | BM6: 88 | BN6: 15 | BO6: 2000 | BP6: 0.12 | BQ6: 0.85 | BR6: 0.45 | BS6: 0.99 | BT6: 0.12 | BU6: 0.03 | BV6: 0.21 | BW6: 0.32 | BX6: 0.2 | BY6: 0.15 | BZ6: 0.61 | CA6: 0.42 | CB6: 0.34 | CC6: 0.31 | CD6: 0.85 | CE6: 0.58 | CF6: 1.07 | CG6: 0.64 | CH6: 0.45 | CI6: 3 | CJ6: 1.87 | CK6: 7.5 | CL6: 4.475 | CM6: 18 | CN6: 4 | CO6: 32.8465 | CP6: 10.8295 | CQ6: 0.3759 | CR6: 0.1611 | CS6: 0 | CT6: 8.95 | CU6: 0 | CV6: 141.41 | CW6: 111.875 | CX6: 0.4117 | CY6: 81.445 | CZ6: 2.2375 | DA6: 0 | DB6: 0 | DC6: 0 | DD6: 0.17115 | DE6: 0.28 | DF6: 0.24 | DG6: 0.79 | DH6: 9 | DI6: 0 | DJ6: 10 | EA6: COBB 500 FF DAMIZLIK, BAŞLANGIÇ (0-4 hf) | EB6: 18.54 | EC6: =EB6 -> 18.54 | ED6: 2796 | EE6: =ED6 -> 2796 | EF6: 1 | EG6: =EF6 -> 1 | EI6: 0.45 | EJ6: =EI6 -> 0.45 | EK6: 0.18 | EL6: 0.2 | EM6: 0.18 | EN6: 0.24 | EO6: 0.44 | EP6: =EO6 -> 0.44 | EQ6: 0.4 | ER6: 0.4 | ES6: 0.75 | ET6: 0.75 | EU6: 0.68 | EV6: 0.68 | EW6: 1 | EX6: 1 | EY6: 0.9 | EZ6: 0.9 | FA6: 0.7 | FB6: 0.7 | FC6: 0.63 | FD6: 0.63 | FE6: 0.22 | FF6: 0.22 | FG6: 0.2 | FH6: 0.2 | FI6: 1.05 | FJ6: 1.05 | FK6: 0.95 | FL6: 0.95 | FM6: 1.22
A7: =Kanatlı!A7 -> 1 | B7: =Kanatlı!B7 -> BUĞDAY,SERT,KIRMIZI,KIŞLIK | C7: =Kanatlı!C7 -> 16.40030938 | D7: =Kanatlı!D7 -> 10.5 | E7: =Kanatlı!E7 -> 0 | F7: =Kanatlı!F7 -> 60 | G7: =BN32 -> HP,% | H7: =Kanatlı!H7 -> 18 | I7: =Kanatlı!I7 -> 18 | J7: =BN31 -> 18.03779999 | K7: =AV3 -> TAMAM | N7: Adresi : | AR7: R | AT7: Na,% | AU7: 1 | AV7: TAMAM | AW7: 0 | AX7: 0 | AY7: 0 | AZ7: 0 | BA7: 1 | BB7: ="" ->  | BC7: =IF(J11>I11*1.0031,"FAZLA","TAMAM") -> TAMAM | BD7: =IF(J11<H11*0.9969,"EKSİK","TAMAM") -> TAMAM | BE7: =IF(J11<H11*0.9969,"EKSİK",IF(J11>I11*1.0031,"FAZLA","TAMAM")) -> TAMAM | BF7: =IF(J11<H11*0.9969,"EKSİK",IF(J11>I11*1.0031,"FAZLA","TAMAM")) -> TAMAM | BG7: =IF(AW7=1,0,IF(AX7=1,I11,IF(AY7=1,H11,IF(AZ7=1,H11,IF(BA7=1,H11,0)))))*0.9969 -> 0.159504 | BH7: =IF(AW7=1,0,IF(AX7=1,I11,IF(AY7=1,H11*1.05,IF(AZ7=1,I11,IF(BA7=1,I11,"")))))*1.0031 -> 0.2139946667 | BK7: 1.316419942e-06 | BL7: BİTKİSEL YAĞ | BM7: 99 | BN7: 0 | BO7: 9250 | BP7: 0 | BQ7: 0 | BR7: 0 | BS7: 0 | BT7: 0 | BU7: 0 | BV7: 0 | BW7: 0 | BX7: 0 | BY7: 0 | BZ7: 0 | CA7: 0 | CB7: 0 | CC7: 0 | CD7: 0 | CE7: 0 | CF7: 0 | CG7: 0 | CH7: 0 | CI7: 98.7 | CJ7: 51 | CK7: 0 | CL7: 0 | CM7: 0 | CN7: 0 | CO7: 0 | CP7: 0 | CQ7: 0 | CR7: 0 | CS7: 0 | CT7: 0 | CU7: 0 | CV7: 0 | CW7: 0 | CX7: 0 | CY7: 0 | CZ7: 0 | DA7: 0 | DB7: 0 | DC7: 0 | DD7: 0 | DE7: 0 | DF7: 0 | DG7: 0 | DH7: 50 | DI7: 0 | DJ7: 10 | EA7: COBB 500 FF DAMIZLIK, BÜYÜTME (5-18 hf) | EB7: 14.45 | EC7: 14.45 | ED7: 2581 | EE7: 2581 | EF7: 0.99 | EG7: 0.99 | EI7: 0.4 | EJ7: 0.4 | EK7: 0.18 | EL7: 0.2 | EM7: 0.18 | EN7: 0.24 | EO7: 0.27 | EP7: 0.27 | EQ7: 0.22 | ER7: 0.22 | ES7: 0.51 | ET7: 0.51 | EU7: 0.42 | EV7: 0.42 | EW7: 0.59 | EX7: 0.59 | EY7: 0.49 | EZ7: 0.49 | FA7: 0.49 | FB7: 0.49 | FC7: 0.41 | FD7: 0.41 | FE7: 0.15 | FF7: 0.15 | FG7: 0.12 | FH7: 0.12 | FI7: 0.59 | FJ7: 0.59 | FK7: 0.49 | FL7: 0.49 | FM7: 1.11
A8: =Kanatlı!A8 -> 1 | B8: =Kanatlı!B8 -> BUĞDAY KEPEĞİ,RAZMOL | C8: =Kanatlı!C8 -> 10 | D8: =Kanatlı!D8 -> 9 | E8: =Kanatlı!E8 -> 0 | F8: =Kanatlı!F8 -> 10 | G8: =BO32 -> ME,kcal/kg | H8: =Kanatlı!H8 -> 2800 | I8: =Kanatlı!I8 -> 2800 | J8: =BO31 -> 2800.083996 | K8: TAMAM | N8: Telefonu : | AR8: S | AT8: Cl | AU8: 1 | AV8: FAZLA | AW8: 0 | AX8: 0 | AY8: 0 | AZ8: 0 | BA8: 1 | BB8: ="" ->  | BC8: =IF(J12>I12*1.1,"FAZLA","TAMAM") -> FAZLA | BD8: =IF(J12<H12*0.9969,"EKSİK","TAMAM") -> TAMAM | BE8: =IF(J12<H12*0.9969,"EKSİK",IF(J12>I12*1.1,"FAZLA","TAMAM")) -> FAZLA | BF8: =IF(J12<H12*0.9969,"EKSİK",IF(J12>I12*1.1,"FAZLA","TAMAM")) -> FAZLA | BG8: =IF(AW8=1,0,IF(AX8=1,I12,IF(AY8=1,H12,IF(AZ8=1,H12,IF(BA8=1,H12,0)))))*0.9959 -> 0.149385 | BH8: =IF(AW8=1,0,IF(AX8=1,I12,IF(AY8=1,H12*1.05,IF(AZ8=1,I12,IF(BA8=1,I12,"")))))*1.0041 -> 0.20082 | BK8: 13.13959733 | BL8: SOYA KÜSPESİ, %46 | BM8: 90 | BN8: 46 | BO8: 2400 | BP8: 0.27 | BQ8: 0.62 | BR8: 0.37 | BS8: 1.98 | BT8: 0.05 | BU8: 0.05 | BV8: 0.67 | BW8: 0.72 | BX8: 1.5 | BY8: 1.2068 | BZ8: 2.96 | CA8: 2.6936 | CB8: 1.87 | CC8: 0.74 | CD8: 3.48 | CE8: 2.12 | CF8: 3.74 | CG8: 2.34 | CH8: 1.95 | CI8: 1 | CJ8: 0.47 | CK8: 3.9 | CL8: 6.6 | CM8: 6 | CN8: 8 | CO8: 13.2759 | CP8: 8.91 | CQ8: 0.25839 | CR8: 0.34749 | CS8: 0 | CT8: 14.256 | CU8: 0 | CV8: 183.546 | CW8: 35.64 | CX8: 0.11583 | CY8: 51.678 | CZ8: 5.2569 | DA8: 0 | DB8: 0 | DC8: 0 | DD8: 0.54605 | DE8: 1.75 | DF8: 0.53 | DG8: 3.2 | DH8: 18 | DI8: 0 | DJ8: 40 | EA8: COBB 500 FF DAMIZLIK, ÖN DAMIZLIK (19-22 hf) | EB8: 15.43 | EC8: 15.43 | ED8: 2761 | EE8: 2761 | EF8: 1.45 | EG8: 1.45 | EI8: 0.43 | EJ8: 0.43 | EK8: 0.15 | EL8: 0.2 | EM8: 0.15 | EN8: 0.24 | EO8: 0.32 | EP8: 0.32 | EQ8: 0.27 | ER8: 0.27 | ES8: 0.61 | ET8: 0.61 | EU8: 0.52 | EV8: 0.52 | EW8: 0.72 | EX8: 0.72 | EY8: 0.61 | EZ8: 0.61 | FA8: 0.6 | FB8: 0.6 | FC8: 0.51 | FD8: 0.51 | FE8: 0.18 | FF8: 0.18 | FG8: 0.15 | FH8: 0.15 | FI8: 0.72 | FJ8: 0.72 | FK8: 0.61 | FL8: 0.61 | FM8: 1.16
A9: =Kanatlı!A9 -> 1 | B9: =Kanatlı!B9 -> BİTKİSEL YAĞ | C9: =Kanatlı!C9 -> 1.316419942e-06 | D9: =Kanatlı!D9 -> 50 | E9: =Kanatlı!E9 -> 0 | F9: =Kanatlı!F9 -> 10 | G9: =BP32 -> Ca,% | H9: =Kanatlı!H9 -> 1 | I9: =Kanatlı!I9 -> 1 | J9: =BP31 -> 1.003 | K9: TAMAM | N9: Türü : | AR9: T | AT9: Met+Sis,% | AU9: 1 | AV9: TAMAM | AW9: 0 | AX9: 0 | AY9: 0 | AZ9: 1 | BA9: 1 | BB9: ="" ->  | BC9: =IF(J13>I13*1.041,"FAZLA","TAMAM") -> TAMAM | BD9: =IF(J13<H13*0.9959,"EKSİK","TAMAM") -> TAMAM | BE9: =IF(J13<H13*0.9959,"EKSİK",IF(J13>I13*1.041,"FAZLA","TAMAM")) -> TAMAM | BF9: =IF(J13<H13*0.9959,"EKSİK",IF(J13>I13*1.041,"FAZLA","TAMAM")) -> TAMAM | BG9: 0.69713 | BH9: 0.70287 | BK9: 6.622782409 | BL9: SOYA KÜSPESİ, %51 | BM9: 90 | BN9: 51 | BO9: 2500 | BP9: 0.27 | BQ9: 0.69 | BR9: 0.1 | BS9: 2.2 | BT9: 0.01 | BU9: 0.05 | BV9: 0.66 | BW9: 0.77 | BX9: 1.43 | BY9: 1.2386 | BZ9: 3.05 | CA9: 2.7755 | CB9: 1.88 | CC9: 0.65 | CD9: 3.59 | CE9: 2.42 | CF9: 3.68 | CG9: 2.36 | CH9: 1.96 | CI9: 1.9 | CJ9: 0.47 | CK9: 3.4 | CL9: 6.2 | CM9: 6 | CN9: 9 | CO9: 6 | CP9: 4 | CQ9: 0.28 | CR9: 0.34749 | CS9: 0 | CT9: 14.256 | CU9: 0 | CV9: 183.546 | CW9: 35.64 | CX9: 0.11583 | CY9: 51.678 | CZ9: 5.2569 | DA9: 0 | DB9: 0 | DC9: 0 | DD9: 0.5379 | DE9: 1.5 | DF9: 0.52 | DG9: 2.87 | DH9: 20 | DI9: 0 | DJ9: 40 | EA9: COBB 500 FF DAMIZLIK, DAMIZLIK 1 (23-40 hf) | EB9: 15.43 | EC9: 15.43 | ED9: 2761 | EE9: 2761 | EF9: 2.89 | EG9: 2.89 | EI9: 0.43 | EJ9: 0.43 | EK9: 0.15 | EL9: 0.2 | EM9: 0.15 | EN9: 0.24 | EO9: 0.34 | EP9: 0.34 | EQ9: 0.3 | ER9: 0.3 | ES9: 0.62 | ET9: 0.62 | EU9: 0.55 | EV9: 0.55 | EW9: 0.72 | EX9: 0.72 | EY9: 0.64 | EZ9: 0.64 | FA9: 0.55 | FB9: 0.55 | FC9: 0.48 | FD9: 0.48 | FE9: 0.18 | FF9: 0.18 | FG9: 0.16 | FH9: 0.16 | FI9: 0.65 | FJ9: 0.65 | FK9: 0.57 | FL9: 0.57 | FM9: 1.25
A10: =Kanatlı!A10 -> 2 | B10: =Kanatlı!B10 -> SOYA KÜSPESİ, %46 | C10: =Kanatlı!C10 -> 13.13959733 | D10: =Kanatlı!D10 -> 18 | E10: =Kanatlı!E10 -> 0 | F10: =Kanatlı!F10 -> 40 | G10: =BR32 -> Kul.P,% | H10: =Kanatlı!H10 -> 0.45 | I10: =Kanatlı!I10 -> 0.45 | J10: =BR31 -> 0.4486500009 | K10: TAMAM | N10: Tavuk Tipi : | AR10: U | AT10: Lizin,% | AU10: 1 | AV10: TAMAM | AW10: 0 | AX10: 0 | AY10: 0 | AZ10: 1 | BA10: 1 | BB10: ="" ->  | BC10: =IF(J14>I14*1.041,"FAZLA","TAMAM") -> TAMAM | BD10: TAMAM | BE10: =IF(J14<H14*0.9959,"EKSİK",IF(J14>I14*1.041,"FAZLA","TAMAM")) -> TAMAM | BF10: =IF(J14<H14*0.9959,"EKSİK",IF(J14>I14*1.041,"FAZLA","TAMAM")) -> TAMAM | BG10: 0.9959 | BH10: 1.0041 | BK10: 2.110723111 | BL10: AYÇİÇEĞİ KÜSPESİ, %23HP | BM10: 90 | BN10: 23.3 | BO10: 1415 | BP10: 0.35 | BQ10: 0.9 | BR10: 0.14 | BS10: 0.96 | BT10: 0.2 | BU10: 0.11 | BV10: 0.5 | BW10: 0.5 | BX10: 1 | BY10: 0.75 | BZ10: 1 | CA10: 0.86 | CB10: 1.05 | CC10: 0.45 | CD10: 2.3 | CE10: 1 | CF10: 1.6 | CG10: 1.15 | CH10: 0 | CI10: 0 | CJ10: 0 | CK10: 28 | CL10: 7.7 | CM10: 5 | CN10: 4 | CO10: 37.1566 | CP10: 27.66 | CQ10: 0.58086 | CR10: 0.35958 | CS10: 0 | CT10: 29.504 | CU10: 0 | CV10: 274.756 | CW10: 41.49 | CX10: 0.461 | CY10: 81.136 | CZ10: 2.4894 | DA10: 0 | DB10: 0 | DC10: 0 | DD10: 0.4075 | DE10: 0.8715 | DF10: 0.3375 | DG10: 2.024 | DH10: 11 | DI10: 0 | DJ10: 15 | EA10: COBB 500 FF DAMIZLIK, DAMIZLIK 2 (41 hf-) | EB10: 14.4 | EC10: 14.4 | ED10: 2749 | EE10: 2749 | EF10: 3.08 | EG10: 3.08 | EI10: 0.38 | EJ10: 0.38 | EK10: 0.15 | EL10: 0.2 | EM10: 0.15 | EN10: 0.24 | EO10: 0.33 | EP10: 0.33 | EQ10: 0.29 | ER10: 0.29 | ES10: 0.6 | ET10: 0.6 | EU10: 0.53 | EV10: 0.53 | EW10: 0.7 | EX10: 0.7 | EY10: 0.62 | EZ10: 0.62 | FA10: 0.53 | FB10: 0.53 | FC10: 0.46 | FD10: 0.46 | FE10: 0.18 | FF10: 0.18 | FG10: 0.15 | FH10: 0.15 | FI10: 0.63 | FJ10: 0.63 | FK10: 0.56 | FL10: 0.56 | FM10: 0.96
A11: =Kanatlı!A11 -> 2 | B11: =Kanatlı!B11 -> SOYA KÜSPESİ, %51 | C11: =Kanatlı!C11 -> 6.622782409 | D11: =Kanatlı!D11 -> 20 | E11: =Kanatlı!E11 -> 0 | F11: =Kanatlı!F11 -> 40 | G11: =BT32 -> Na,% | H11: =Kanatlı!H11 -> 0.16 | I11: =Kanatlı!I11 -> 0.2133333333 | J11: =BT31 -> 0.1595200014 | K11: TAMAM | N11: Tipi : | AR11: V | AT11: Treonin,% | AU11: 1 | AV11: TAMAM | AW11: 0 | AX11: 0 | AY11: 0 | AZ11: 1 | BA11: 1 | BB11: ="" ->  | BC11: =IF(J15>I15*1.041,"FAZLA","TAMAM") -> TAMAM | BD11: =IF(J15<H15*0.9959,"EKSİK","TAMAM") -> TAMAM | BE11: =IF(J15<H15*0.9959,"EKSİK",IF(J15>I15*1.041,"FAZLA","TAMAM")) -> TAMAM | BF11: =IF(J15<H15*0.9959,"EKSİK",IF(J15>I15*1.041,"FAZLA","TAMAM")) -> TAMAM | BG11: 0.647335 | BH11: 0.652665 | BK11: 1.764882273 | BL11: DİKALSİYUM FOSFAT | BM11: 100 | BN11: 0 | BO11: 0 | BP11: 24 | BQ11: 18 | BR11: 16.2 | BS11: 0.1 | BT11: 0.06 | BU11: 0.013 | BV11: 0 | BW11: 0 | BX11: 0 | BY11: 0 | BZ11: 0 | CA11: 0 | CB11: 0 | CC11: 0 | CD11: 0 | CE11: 0 | CF11: 0 | CG11: 0 | CH11: 0 | CI11: 0 | CJ11: 0 | CK11: 0 | CL11: 100 | CM11: 0 | CN11: 0 | CO11: 0 | CP11: 0 | CQ11: 0 | CR11: 1.1058 | CS11: 0 | CT11: 0 | CU11: 0 | CV11: 13.968 | CW11: 0 | CX11: 0 | CY11: 0 | CZ11: 0 | DA11: 0 | DB11: 0 | DC11: 0 | DD11: 0 | DE11: 0 | DF11: 0 | DG11: 0 | DH11: 35 | DI11: 0 | DJ11: 4 | EA11: COBB 500 FF DAMIZLIK, ERKEK (23 hf-) | EB11: 12.97 | EC11: 12.97 | ED11: 2749 | EE11: 2749 | EF11: 0.9 | EG11: 0.9 | EI11: 0.45 | EJ11: 0.45 | EK11: 0.15 | EL11: 0.2 | EM11: 0.15 | EN11: 0.24 | EO11: 0.24 | EP11: 0.24 | EQ11: 0.21 | ER11: 0.21 | ES11: 0.43 | ET11: 0.43 | EU11: 0.38 | EV11: 0.38 | EW11: 0.48 | EX11: 0.48 | EY11: 0.42 | EZ11: 0.42 | FA11: 0.45 | FB11: 0.45 | FC11: 0.39 | FD11: 0.39 | FE11: 0.14 | FF11: 0.14 | FG11: 0.12 | FH11: 0.12 | FI11: 0.48 | FJ11: 0.48 | FK11: 0.42 | FL11: 0.42
A12: =Kanatlı!A12 -> 2 | B12: =Kanatlı!B12 -> AYÇİÇEĞİ KÜSPESİ, %23HP | C12: =Kanatlı!C12 -> 2.110723111 | D12: =Kanatlı!D12 -> 11 | E12: =Kanatlı!E12 -> 0 | F12: =Kanatlı!F12 -> 15 | G12: =BU3 -> Cl | H12: =Kanatlı!H12 -> 0.15 | I12: =Kanatlı!I12 -> 0.2 | J12: =BU31 -> 0.2256545016 | K12: FAZLA | N12: Yemin Kodu : | AR12: W | AT12: Triptofan,% | AU12: 1 | AV12: FAZLA | AW12: 0 | AX12: 0 | AY12: 0 | AZ12: 1 | BA12: 1 | BB12: ="" ->  | BC12: =IF(J16>I16*1.041,"FAZLA","TAMAM") -> FAZLA | BD12: =IF(J16<H16*0.9959,"EKSİK","TAMAM") -> TAMAM | BE12: =IF(J16<H16*0.9959,"EKSİK",IF(J16>I16*1.041,"FAZLA","TAMAM")) -> FAZLA | BF12: =IF(J16<H16*0.9959,"EKSİK",IF(J16>I16*1.041,"FAZLA","TAMAM")) -> FAZLA | BG12: 0.179262 | BH12: 0.180738 | BK12: 1.312193251 | BL12: MERMER TOZU | BM12: 99 | BN12: 0 | BO12: 0 | BP12: 37 | BQ12: 0 | BR12: 0 | BS12: 0 | BT12: 0 | BU12: 0 | BV12: 0 | BW12: 0 | BX12: 0 | BY12: 0 | BZ12: 0 | CA12: 0 | CB12: 0 | CC12: 0 | CD12: 0 | CE12: 0 | CF12: 0 | CG12: 0 | CH12: 0 | CI12: 0 | CJ12: 0 | CK12: 0 | CL12: 100 | CM12: 0 | CN12: 0 | CO12: 0 | CP12: 0 | CQ12: 0 | CR12: 0 | CS12: 0 | CT12: 0 | CU12: 0 | CV12: 0 | CW12: 0 | CX12: 0 | CY12: 0 | CZ12: 0 | DA12: 0 | DB12: 0 | DC12: 0 | DD12: 0 | DE12: 0 | DF12: 0 | DG12: 0 | DH12: 2 | DI12: 0 | DJ12: 10
A13: =Kanatlı!A13 -> 3 | B13: =Kanatlı!B13 -> DİKALSİYUM FOSFAT | C13: =Kanatlı!C13 -> 1.764882273 | D13: =Kanatlı!D13 -> 35 | E13: =Kanatlı!E13 -> 0 | F13: =Kanatlı!F13 -> 4 | G13: =BX32 -> Met+Sis,% | H13: =Kanatlı!H13 -> 0.7 | I13: =Kanatlı!I13 -> 0.7 | J13: =BX31 -> 0.7028000006 | K13: =AV9 -> TAMAM | AR13: X | AT13: =G17 -> Linoleik a.,% | AU13: 0.5 | AV13: TAMAM | AW13: =IF(AND(H17=0,I17=0)=TRUE,1,0) -> 0 | AX13: =IF(AND(H17=0,I17>0)=TRUE,1,0) -> 0 | AY13: =IF(AND(H17>0,I17=0)=TRUE,1,0) -> 1 | AZ13: =IF(AND(H17>0,H17=I17)=TRUE,1,0) -> 0 | BA13: =IF(AND(H17>0,I17>0)=TRUE,1,0) -> 0 | BB13: ="" ->  | BC13: =IF(J17>I17*1.1,"FAZLA","TAMAM") -> FAZLA | BD13: =IF(J17<H17*0.9969,"EKSİK","TAMAM") -> TAMAM | BE13: =IF(J17<H17*0.9969,"EKSİK",IF(J17>I17*1.1,"FAZLA","TAMAM")) -> FAZLA | BF13: =IF(J17<H17*0.9969,"EKSİK",IF(J17>I17*1.1,"FAZLA","TAMAM")) -> FAZLA | BG13: =IF(AW13=1,0,IF(AX13=1,I17,IF(AY13=1,H17,IF(AZ13=1,H17,IF(BA13=1,H17,0)))))*0.9969 -> 1.246125 | BH13: =IF(AW13=1,0,IF(AX13=1,I17,IF(AY13=1,H17*1.05,IF(AZ13=1,I17,IF(BA13=1,I17,"")))))*1.0031 -> 1.31656875 | BK13: 0.3048495737 | BL13: TUZ | BM13: 100 | BN13: 0 | BO13: 0 | BP13: 0.3 | BQ13: 0 | BR13: 0 | BS13: 0 | BT13: 39 | BU13: 60 | BV13: 0 | BW13: 0 | BX13: 0 | BY13: 0 | BZ13: 0 | CA13: 0 | CB13: 0 | CC13: 0 | CD13: 0 | CE13: 0 | CF13: 0 | CG13: 0 | CH13: 0 | CI13: 0 | CJ13: 0 | CK13: 0 | CL13: 100 | CM13: 0 | CN13: 0 | CO13: 0 | CP13: 0 | CQ13: 0 | CR13: 0 | CS13: 0 | CT13: 0 | CU13: 0 | CV13: 0 | CW13: 0 | CX13: 0 | CY13: 0 | CZ13: 0 | DA13: 0 | DB13: 0 | DC13: 0 | DD13: 0 | DE13: 0 | DF13: 0 | DG13: 0 | DH13: 1.5 | DI13: 0 | DJ13: 0.7 | EA13: ROSS 308, DAMIZLIK, BAŞLANGIÇ1 (0-28 gün) | EB13: 19 | EC13: =EB13 -> 19 | ED13: 2800 | EE13: =ED13 -> 2800 | EF13: 1 | EG13: =EF13 -> 1 | EI13: 0.45 | EJ13: =EI13 -> 0.45 | EK13: 0.16 | EL13: 0.23 | EM13: 0.16 | EN13: 0.23 | EO13: 0.46 | EP13: =EO13 -> 0.46 | EQ13: 0.4 | ER13: =EQ13 -> 0.4 | ES13: 0.84 | ET13: =ES13 -> 0.84 | EU13: 0.74 | EV13: =EU13 -> 0.74 | EW13: 1.06 | EX13: =EW13 -> 1.06 | EY13: 0.95 | EZ13: =EY13 -> 0.95 | FA13: 0.72 | FB13: =FA13 -> 0.72 | FC13: 0.64 | FD13: =FC13 -> 0.64 | FE13: 0.19 | FF13: =FE13 -> 0.19 | FG13: 0.16 | FH13: =FG13 -> 0.16 | FI13: 1.17 | FJ13: =FI13 -> 1.17 | FK13: 1.05 | FL13: =FK13 -> 1.05 | FM13: 1
A14: =Kanatlı!A14 -> 3 | B14: =Kanatlı!B14 -> MERMER TOZU | C14: =Kanatlı!C14 -> 1.312193251 | D14: =Kanatlı!D14 -> 2 | E14: =Kanatlı!E14 -> 0 | F14: =Kanatlı!F14 -> 10 | G14: =BZ32 -> Lizin,% | H14: =Kanatlı!H14 -> 1 | I14: =Kanatlı!I14 -> 1 | J14: =BZ31 -> 0.9959999972 | K14: TAMAM | AR14: Y | AT14: HY,% | AU14: 1 | AV14: =IF(AW14=1,BB14,IF(AX14=1,BC14,IF(AY14=1,BD14,IF(AZ14=1,BE14,IF(BA14=1,BF14,""))))) ->  | AW14: 1 | AX14: 0 | AY14: 0 | AZ14: 0 | BA14: 0 | BB14: ="" ->  | BC14: =IF(J18>I18*1.0041,"FAZLA","TAMAM") -> FAZLA | BD14: =IF(J18<H18*0.9959,"EKSİK","TAMAM") -> TAMAM | BE14: =IF(J18<H18*0.9959,"EKSİK",IF(J18>I18*1.0041,"FAZLA","TAMAM")) -> FAZLA | BF14: =IF(J18<H18*0.9959,"EKSİK",IF(J18>I18*1.0041,"FAZLA","TAMAM")) -> FAZLA | BG14: =IF(AW14=1,0,IF(AX14=1,I18,IF(AY14=1,H18,IF(AZ14=1,H18,IF(BA14=1,H18,0)))))*0.9959 -> 0 | BH14: =IF(AW14=1,0,IF(AX14=1,I18,IF(AY14=1,H18*1.05,IF(AZ14=1,I18,IF(BA14=1,I18,"")))))*1.0041 -> 0 | BK14: 0.25 | BL14: VİTAMİN-MİNERAL KARMASI | BM14: =IF($BL14=0,0,VLOOKUP($BL14,$BL$61:$DJ$367,BM$2,FALSE)) -> 100 | BN14: 0 | BO14: 0 | BP14: 1 | BQ14: 0 | BR14: 0 | BS14: 0 | BT14: 0 | BU14: 0 | BV14: 0 | BW14: =IF($BL14=0,0,VLOOKUP($BL14,$BL$61:$DJ$367,BW$2,FALSE)) -> 0 | BX14: 0 | BY14: 0 | BZ14: 0 | CA14: 0 | CB14: 0 | CC14: 0 | CD14: 0 | CE14: 0 | CF14: 0 | CG14: =IF($BL14=0,0,VLOOKUP($BL14,$BL$61:$DJ$367,CG$2,FALSE)) -> 0 | CH14: 0 | CI14: 0 | CJ14: 0 | CK14: 0 | CL14: 0 | CM14: 0 | CN14: 0 | CO14: 0 | CP14: 0 | CQ14: =IF($BL14=0,0,VLOOKUP($BL14,$BL$61:$DJ$367,CQ$2,FALSE)) -> 0 | CR14: 0 | CS14: 50 | CT14: 2500 | CU14: 200 | CV14: 20000 | CW14: 40000 | CX14: 75 | CY14: 30000 | CZ14: 0 | DA14: =IF($BL14=0,0,VLOOKUP($BL14,$BL$61:$DJ$367,DA$2,FALSE)) -> 6000 | DB14: 1320 | DC14: 10000 | DD14: 0 | DE14: 0 | DF14: 0 | DG14: 0 | DH14: 25 | DI14: 0.25 | DJ14: 0.25 | EA14: ROSS 308, DAMIZLIK, BÜYÜTME (29 gün-%5 YV) | EB14: 15 | EC14: =EB14 -> 15 | ED14: 2800 | EE14: =ED14 -> 2800 | EF14: 0.9 | EG14: =EF14 -> 0.9 | EI14: 0.42 | EJ14: =EI14 -> 0.42 | EK14: 0.16 | EL14: 0.23 | EM14: 0.16 | EN14: 0.23 | EO14: 0.37 | EP14: 0.37 | EQ14: 0.33 | ER14: 0.33 | ES14: 0.62 | ET14: 0.62 | EU14: 0.55 | EV14: 0.55 | EW14: 0.68 | EX14: 0.68 | EY14: 0.61 | EZ14: 0.61 | FA14: 0.54 | FB14: 0.54 | FC14: 0.48 | FD14: 0.48 | FE14: 0.16 | FF14: 0.16 | FG14: 0.14 | FH14: 0.14 | FI14: 0.84 | FJ14: 0.84 | FK14: 0.76 | FL14: 0.76 | FM14: 1
A15: =Kanatlı!A15 -> 3 | B15: =Kanatlı!B15 -> TUZ | C15: =Kanatlı!C15 -> 0.3048495737 | D15: =Kanatlı!D15 -> 1.5 | E15: =Kanatlı!E15 -> 0 | F15: =Kanatlı!F15 -> 0.7 | G15: =CB32 -> Treonin,% | H15: =Kanatlı!H15 -> 0.65 | I15: =Kanatlı!I15 -> 0.65 | J15: =CB31 -> 0.6525999992 | K15: TAMAM | AR15: Z | AT15: HK,% | AU15: 0.5 | AW15: 1 | AX15: 0 | AY15: 0 | AZ15: 0 | BA15: 0 | BB15: ="" ->  | BC15: =IF(J19>I19*1.0031,"FAZLA","TAMAM") -> FAZLA | BD15: =IF(J19<H19*0.9969,"EKSİK","TAMAM") -> TAMAM | BE15: =IF(J19<H19*0.9969,"EKSİK",IF(J19>I19*1.0031,"FAZLA","TAMAM")) -> FAZLA | BF15: =IF(J19<H19*0.9969,"EKSİK",IF(J19>I19*1.0031,"FAZLA","TAMAM")) -> FAZLA | BG15: =IF(AW15=1,0,IF(AX15=1,I19,IF(AY15=1,H19,IF(AZ15=1,H19,IF(BA15=1,H19,0)))))*0.9969 -> 0 | BH15: =IF(AW15=1,0,IF(AX15=1,I19,IF(AY15=1,H19*1.05,IF(AZ15=1,I19,IF(BA15=1,I19,"")))))*1.0031 -> 0 | BK15: 0.1747537836 | BL15: L-LİZİN hidroklorid | BM15: 98.5 | BN15: 94.4 | BO15: 4600 | BP15: 0 | BQ15: 0 | BR15: 0 | BS15: 0 | BT15: 0 | BU15: 0 | BV15: 0 | BW15: 0 | BX15: 0 | BY15: 0 | BZ15: 79 | CA15: 79 | CB15: 0 | CC15: 0 | CD15: 0 | CE15: 0 | CF15: 0 | CG15: 0 | CH15: 0 | CI15: 0 | CJ15: 0 | CK15: 0 | CL15: 0 | CM15: 0 | CN15: 0 | CO15: 0 | CP15: 0 | CQ15: 0 | CR15: 0 | CS15: 0 | CT15: 0 | CU15: 0 | CV15: 0 | CW15: 0 | CX15: 0 | CY15: 0 | CZ15: 0 | DA15: 0 | DB15: 0 | DC15: 0 | DD15: 0 | DE15: 0 | DF15: 0 | DG15: 0 | DH15: 65 | DI15: 0 | DJ15: 0.5 | EA15: ROSS 308, DAMIZLIK, DAMIZLIK 1 (%5 YV-35 hf) | EB15: 15 | EC15: 15 | ED15: 2800 | EE15: 2800 | EF15: 3 | EG15: 3 | EI15: 0.35 | EJ15: 0.35 | EK15: 0.15 | EL15: 0.2 | EM15: 0.16 | EN15: 0.23 | EO15: 0.4 | EP15: 0.4 | EQ15: 0.35 | ER15: 0.35 | ES15: 0.64 | ET15: 0.64 | EU15: 0.56 | EV15: 0.56 | EW15: 0.67 | EX15: 0.67 | EY15: 0.6 | EZ15: 0.6 | FA15: 0.53 | FB15: 0.53 | FC15: 0.47 | FD15: 0.47 | FE15: 0.16 | FF15: 0.16 | FG15: 0.14 | FH15: 0.14 | FI15: 0.88 | FJ15: 0.88 | FK15: 0.79 | FL15: 0.79 | FM15: 1.25
A16: =Kanatlı!A16 -> 3 | B16: =Kanatlı!B16 -> VİTAMİN-MİNERAL KARMASI | C16: =Kanatlı!C16 -> 0.25 | D16: =Kanatlı!D16 -> 25 | E16: =Kanatlı!E16 -> 0.25 | F16: =Kanatlı!F16 -> 0.25 | G16: =CC32 -> Triptofan,% | H16: =Kanatlı!H16 -> 0.18 | I16: =Kanatlı!I16 -> 0.18 | J16: =CC31 -> 0.235688129 | K16: FAZLA | AR16: AA | AT16: HS,% | AU16: 0.5 | AW16: 1 | AX16: 0 | AY16: 0 | AZ16: 0 | BA16: 0 | BB16: ="" ->  | BC16: =IF(J20>I20*1.0031,"FAZLA","TAMAM") -> FAZLA | BD16: =IF(J20<H20*0.9969,"EKSİK","TAMAM") -> TAMAM | BE16: =IF(J20<H20*0.9969,"EKSİK",IF(J20>I20*1.0031,"FAZLA","TAMAM")) -> FAZLA | BF16: =IF(J20<H20*0.9969,"EKSİK",IF(J20>I20*1.0031,"FAZLA","TAMAM")) -> FAZLA | BG16: =IF(AW16=1,0,IF(AX16=1,I20,IF(AY16=1,H20,IF(AZ16=1,H20,IF(BA16=1,H20,0)))))*0.9969 -> 0 | BH16: =IF(AW16=1,0,IF(AX16=1,I20,IF(AY16=1,H20*1.05,IF(AZ16=1,I20,IF(BA16=1,I20,"")))))*1.0031 -> 0 | BK16: 0.115395756 | BL16: DL-METHİONİN | BM16: 100 | BN16: 58.7 | BO16: 3680 | BP16: 0 | BQ16: 0 | BR16: 0 | BS16: 0 | BT16: 0 | BU16: 0 | BV16: 99 | BW16: 0 | BX16: 99 | BY16: 99 | BZ16: 0 | CA16: 0 | CB16: 0 | CC16: 0 | CD16: 0 | CE16: 0 | CF16: 0 | CG16: 0 | CH16: 0 | CI16: 0 | CJ16: 0 | CK16: 0 | CL16: 0 | CM16: 0 | CN16: 0 | CO16: 0 | CP16: 0 | CQ16: 0 | CR16: 0 | CS16: 0 | CT16: 0 | CU16: 0 | CV16: 0 | CW16: 0 | CX16: 0 | CY16: 0 | CZ16: 0 | DA16: 0 | DB16: 0 | DC16: 0 | DD16: 0 | DE16: 0 | DF16: 0 | DG16: 0 | DH16: 95 | DI16: 0 | DJ16: 0.5 | EA16: ROSS 308, DAMIZLIK, DAMIZLIK 2 (35 hf-) | EB16: 14 | EC16: 14 | ED16: 2800 | EE16: 2800 | EF16: 3.2 | EG16: 3.2 | EI16: 0.32 | EJ16: 0.32 | EK16: 0.15 | EL16: 0.2 | EM16: 0.16 | EN16: 0.23 | EO16: 0.39 | EP16: 0.39 | EQ16: 0.34 | ER16: 0.34 | ES16: 0.62 | ET16: 0.62 | EU16: 0.55 | EV16: 0.55 | EW16: 0.62 | EX16: 0.62 | EY16: 0.56 | EZ16: 0.56 | FA16: 0.5 | FB16: 0.5 | FC16: 0.45 | FD16: 0.45 | FE16: 0.15 | FF16: 0.15 | FG16: 0.13 | FH16: 0.13 | FI16: 0.85 | FJ16: 0.85 | FK16: 0.77 | FL16: 0.77 | FM16: 1.25
A17: =Kanatlı!A17 -> 3 | B17: =Kanatlı!B17 -> L-LİZİN hidroklorid | C17: =Kanatlı!C17 -> 0.1747537836 | D17: =Kanatlı!D17 -> 65 | E17: =Kanatlı!E17 -> 0 | F17: =Kanatlı!F17 -> 0.5 | G17: =CJ32 -> Linoleik a.,% | H17: =Kanatlı!H17 -> 1.25 | J17: =CJ31 -> 1.246249997 | K17: =AV13 -> TAMAM | AR17: AB | AT17: Nişasta,% | AU17: 0.5 | AW17: 1 | AX17: 0 | AY17: 0 | AZ17: 0 | BA17: 0 | BB17: ="" ->  | BC17: =IF(J21>I21*1.0031,"FAZLA","TAMAM") -> FAZLA | BD17: =IF(J21<H21*0.9969,"EKSİK","TAMAM") -> TAMAM | BE17: =IF(J21<H21*0.9969,"EKSİK",IF(J21>I21*1.0031,"FAZLA","TAMAM")) -> FAZLA | BF17: =IF(J21<H21*0.9969,"EKSİK",IF(J21>I21*1.0031,"FAZLA","TAMAM")) -> FAZLA | BG17: =IF(AW17=1,0,IF(AX17=1,I21,IF(AY17=1,H21,IF(AZ17=1,H21,IF(BA17=1,H21,0)))))*0.9969 -> 0 | BH17: =IF(AW17=1,0,IF(AX17=1,I21,IF(AY17=1,H21*1.05,IF(AZ17=1,I21,IF(BA17=1,I21,"")))))*1.0031 -> 0 | BK17: 0.02405491938 | BL17: L-TREONİN | BM17: 98.5 | BN17: 73.5 | BO17: 3150 | BP17: 0 | BQ17: 0 | BR17: 0 | BS17: 0 | BT17: 0 | BU17: 0 | BV17: 0 | BW17: 0 | BX17: 0 | BY17: 0 | BZ17: 0 | CA17: 0 | CB17: 98.5 | CC17: 0 | CD17: 0 | CE17: 0 | CF17: 0 | CG17: 0 | CH17: 0 | CI17: 0 | CJ17: 0 | CK17: 0 | CL17: 0 | CM17: 0 | CN17: 0 | CO17: 0 | CP17: 0 | CQ17: 0 | CR17: 0 | CS17: 0 | CT17: 0 | CU17: 0 | CV17: 0 | CW17: 0 | CX17: 0 | CY17: 0 | CZ17: 0 | DA17: 0 | DB17: 0 | DC17: 0 | DD17: 0 | DE17: 0 | DF17: 0 | DG17: 0 | DH17: 66 | DI17: 0 | DJ17: 0.5 | EA17: ROSS 208/308/508 BROYLER DAMIZLIK, ERGİN ERKEK | EB17: 12 | EC17: 12 | ED17: 2750 | EE17: 2750 | EF17: 0.7 | EG17: 0.7 | EI17: 0.35 | EJ17: 0.35 | EK17: 0.15 | EL17: 0.2 | EM17: 0.16 | EN17: 0.23 | EO17: 0.32 | EP17: 0.32 | EQ17: 0.29 | ER17: 0.29 | ES17: 0.49 | ET17: 0.49 | EU17: 0.45 | EV17: 0.45 | EW17: 0.5 | EX17: 0.5 | EY17: 0.45 | EZ17: 0.45 | FA17: 0.38 | FB17: 0.38 | FC17: 0.34 | FD17: 0.34 | FE17: 0.1 | FF17: 0.1 | FG17: 0.08 | FH17: 0.08 | FI17: 0.59 | FJ17: 0.59 | FK17: 0.53 | FL17: 0.53 | FM17: 1
A18: =Kanatlı!A18 -> 3 | B18: =Kanatlı!B18 -> DL-METHİONİN | C18: =Kanatlı!C18 -> 0.115395756 | D18: =Kanatlı!D18 -> 95 | E18: =Kanatlı!E18 -> 0 | F18: =Kanatlı!F18 -> 0.5 | G18: =CI32 -> HY,% | J18: =CI31 -> 2.161749295 | AR18: AC | AT18: Şeker,% | AU18: 0.5 | AW18: 1 | AX18: 0 | AY18: 0 | AZ18: 0 | BA18: 0 | BB18: ="" ->  | BC18: =IF(J22>I22*1.0031,"FAZLA","TAMAM") -> FAZLA | BD18: =IF(J22<H22*0.9969,"EKSİK","TAMAM") -> TAMAM | BE18: =IF(J22<H22*0.9969,"EKSİK",IF(J22>I22*1.0031,"FAZLA","TAMAM")) -> FAZLA | BF18: =IF(J22<H22*0.9969,"EKSİK",IF(J22>I22*1.0031,"FAZLA","TAMAM")) -> FAZLA | BG18: =IF(AW18=1,0,IF(AX18=1,I22,IF(AY18=1,H22,IF(AZ18=1,H22,IF(BA18=1,H22,0)))))*0.9969 -> 0 | BH18: =IF(AW18=1,0,IF(AX18=1,I22,IF(AY18=1,H22*1.05,IF(AZ18=1,I22,IF(BA18=1,I22,"")))))*1.0031 -> 0 | BK18: 0 | BL18: 0 | BM18: 0 | BN18: 0 | BO18: 0 | BP18: 0 | BQ18: 0 | BR18: 0 | BS18: 0 | BT18: 0 | BU18: 0 | BV18: 0 | BW18: 0 | BX18: 0 | BY18: 0 | BZ18: 0 | CA18: 0 | CB18: 0 | CC18: 0 | CD18: 0 | CE18: 0 | CF18: 0 | CG18: 0 | CH18: 0 | CI18: 0 | CJ18: 0 | CK18: 0 | CL18: 0 | CM18: 0 | CN18: 0 | CO18: 0 | CP18: 0 | CQ18: 0 | CR18: 0 | CS18: 0 | CT18: 0 | CU18: 0 | CV18: 0 | CW18: 0 | CX18: 0 | CY18: 0 | CZ18: 0 | DA18: 0 | DB18: 0 | DC18: 0 | DD18: 0 | DE18: 0 | DF18: 0 | DG18: 0 | DH18: 0 | DI18: 0 | DJ18: 0
A19: =Kanatlı!A19 -> 3 | B19: =Kanatlı!B19 -> L-TREONİN | C19: =Kanatlı!C19 -> 0.02405491938 | D19: =Kanatlı!D19 -> 66 | E19: =Kanatlı!E19 -> 0 | F19: =Kanatlı!F19 -> 0.5 | G19: =CL32 -> HK,% | J19: =CL31 -> 6.206738386 | AR19: AD | BK19: 0 | BL19: 0 | BM19: 0 | BN19: 0 | BO19: 0 | BP19: 0 | BQ19: 0 | BR19: 0 | BS19: 0 | BT19: 0 | BU19: 0 | BV19: 0 | BW19: 0 | BX19: 0 | BY19: 0 | BZ19: 0 | CA19: 0 | CB19: 0 | CC19: 0 | CD19: 0 | CE19: 0 | CF19: 0 | CG19: 0 | CH19: 0 | CI19: 0 | CJ19: 0 | CK19: 0 | CL19: 0 | CM19: 0 | CN19: 0 | CO19: 0 | CP19: 0 | CQ19: 0 | CR19: 0 | CS19: 0 | CT19: 0 | CU19: 0 | CV19: 0 | CW19: 0 | CX19: 0 | CY19: 0 | CZ19: 0 | DA19: 0 | DB19: 0 | DC19: 0 | DD19: 0 | DE19: 0 | DF19: 0 | DG19: 0 | DH19: 0 | DI19: 0 | DJ19: 0
A20: =Kanatlı!A20 -> 3 | B20: =Kanatlı!B20 -> L-TRİPTOFAN | C20: =Kanatlı!C20 -> 0 | D20: =Kanatlı!D20 -> 66 | E20: =Kanatlı!E20 -> 0 | F20: =Kanatlı!F20 -> 0.5 | G20: =CK32 -> HS,% | J20: =CK31 -> 3.621800702 | AR20: AE | BK20: 0 | BL20: 0 | BM20: 0 | BN20: 0 | BO20: 0 | BP20: 0 | BQ20: 0 | BR20: 0 | BS20: 0 | BT20: 0 | BU20: 0 | BV20: 0 | BW20: 0 | BX20: 0 | BY20: 0 | BZ20: 0 | CA20: 0 | CB20: 0 | CC20: 0 | CD20: 0 | CE20: 0 | CF20: 0 | CG20: 0 | CH20: 0 | CI20: 0 | CJ20: 0 | CK20: 0 | CL20: 0 | CM20: 0 | CN20: 0 | CO20: 0 | CP20: 0 | CQ20: 0 | CR20: 0 | CS20: 0 | CT20: 0 | CU20: 0 | CV20: 0 | CW20: 0 | CX20: 0 | CY20: 0 | CZ20: 0 | DA20: 0 | DB20: 0 | DC20: 0 | DD20: 0 | DE20: 0 | DF20: 0 | DG20: 0 | DH20: 0 | DI20: 0 | DJ20: 0
A21: =Kanatlı!A21 -> 0 | B21: =Kanatlı!B21 -> 0 | C21: =Kanatlı!C21 -> 0 | D21: =Kanatlı!D21 -> 0 | E21: =Kanatlı!E21 -> 0 | F21: =Kanatlı!F21 -> 0 | G21: =CM32 -> Nişasta,% | J21: =CM31 -> 44.80877702 | AR21: AF | BK21: 0 | BL21: 0 | BM21: 0 | BN21: 0 | BO21: 0 | BP21: 0 | BQ21: 0 | BR21: 0 | BS21: 0 | BT21: 0 | BU21: 0 | BV21: 0 | BW21: 0 | BX21: 0 | BY21: 0 | BZ21: 0 | CA21: 0 | CB21: 0 | CC21: 0 | CD21: 0 | CE21: 0 | CF21: 0 | CG21: 0 | CH21: 0 | CI21: 0 | CJ21: 0 | CK21: 0 | CL21: 0 | CM21: 0 | CN21: 0 | CO21: 0 | CP21: 0 | CQ21: 0 | CR21: 0 | CS21: 0 | CT21: 0 | CU21: 0 | CV21: 0 | CW21: 0 | CX21: 0 | CY21: 0 | CZ21: 0 | DA21: 0 | DB21: 0 | DC21: 0 | DD21: 0 | DE21: 0 | DF21: 0 | DG21: 0 | DH21: 0 | DI21: 0 | DJ21: 0
A22: =Kanatlı!A22 -> 0 | B22: =Kanatlı!B22 -> 0 | C22: =Kanatlı!C22 -> 0 | D22: =Kanatlı!D22 -> 0 | E22: =Kanatlı!E22 -> 0 | F22: =Kanatlı!F22 -> 0 | G22: =CN32 -> Şeker,% | J22: =CN31 -> 3.643446313 | AR22: AG | BK22: 0 | BL22: 0 | BM22: 0 | BN22: 0 | BO22: 0 | BP22: 0 | BQ22: 0 | BR22: 0 | BS22: 0 | BT22: 0 | BU22: 0 | BV22: 0 | BW22: 0 | BX22: 0 | BY22: 0 | BZ22: 0 | CA22: 0 | CB22: 0 | CC22: 0 | CD22: 0 | CE22: 0 | CF22: 0 | CG22: 0 | CH22: 0 | CI22: 0 | CJ22: 0 | CK22: 0 | CL22: 0 | CM22: 0 | CN22: 0 | CO22: 0 | CP22: 0 | CQ22: 0 | CR22: 0 | CS22: 0 | CT22: 0 | CU22: 0 | CV22: 0 | CW22: 0 | CX22: 0 | CY22: 0 | CZ22: 0 | DA22: 0 | DB22: 0 | DC22: 0 | DD22: 0 | DE22: 0 | DF22: 0 | DG22: 0 | DH22: 0 | DI22: 0 | DJ22: 0
A23: =Kanatlı!A23 -> 0 | B23: =Kanatlı!B23 -> 0 | C23: =Kanatlı!C23 -> 0 | D23: =Kanatlı!D23 -> 0 | E23: =Kanatlı!E23 -> 0 | F23: =Kanatlı!F23 -> 0 | G23: Elektrolit Denge, mEq/kg KM | J23: =(((BT31*434.98) + (BS31*255.74) - (BU31*282.06))/J6*100 ) -> 219.7315223 | AR23: AH | BK23: 0 | BL23: 0 | BM23: 0 | BN23: 0 | BO23: 0 | BP23: 0 | BQ23: 0 | BR23: 0 | BS23: 0 | BT23: 0 | BU23: 0 | BV23: 0 | BW23: 0 | BX23: 0 | BY23: 0 | BZ23: 0 | CA23: 0 | CB23: 0 | CC23: 0 | CD23: 0 | CE23: 0 | CF23: 0 | CG23: 0 | CH23: 0 | CI23: 0 | CJ23: 0 | CK23: 0 | CL23: 0 | CM23: 0 | CN23: 0 | CO23: 0 | CP23: 0 | CQ23: 0 | CR23: 0 | CS23: 0 | CT23: 0 | CU23: 0 | CV23: 0 | CW23: 0 | CX23: 0 | CY23: 0 | CZ23: 0 | DA23: 0 | DB23: 0 | DC23: 0 | DD23: 0 | DE23: 0 | DF23: 0 | DG23: 0 | DH23: 0 | DI23: 0 | DJ23: 0
A24: =Kanatlı!A24 -> 0 | B24: =Kanatlı!B24 -> 0 | C24: =Kanatlı!C24 -> 0 | D24: =Kanatlı!D24 -> 0 | E24: =Kanatlı!E24 -> 0 | F24: =Kanatlı!F24 -> 0 | AR24: AI | BK24: 0 | BL24: 0 | BM24: =IF($BL24=0,0,VLOOKUP($BL24,$BL$61:$DJ$367,BM$2,FALSE)) -> 0 | BN24: 0 | BO24: 0 | BP24: 0 | BQ24: 0 | BR24: 0 | BS24: 0 | BT24: 0 | BU24: 0 | BV24: 0 | BW24: =IF($BL24=0,0,VLOOKUP($BL24,$BL$61:$DJ$367,BW$2,FALSE)) -> 0 | BX24: 0 | BY24: 0 | BZ24: 0 | CA24: 0 | CB24: 0 | CC24: 0 | CD24: 0 | CE24: 0 | CF24: 0 | CG24: =IF($BL24=0,0,VLOOKUP($BL24,$BL$61:$DJ$367,CG$2,FALSE)) -> 0 | CH24: 0 | CI24: 0 | CJ24: 0 | CK24: 0 | CL24: 0 | CM24: 0 | CN24: 0 | CO24: 0 | CP24: 0 | CQ24: =IF($BL24=0,0,VLOOKUP($BL24,$BL$61:$DJ$367,CQ$2,FALSE)) -> 0 | CR24: 0 | CS24: 0 | CT24: 0 | CU24: 0 | CV24: 0 | CW24: 0 | CX24: 0 | CY24: 0 | CZ24: 0 | DA24: =IF($BL24=0,0,VLOOKUP($BL24,$BL$61:$DJ$367,DA$2,FALSE)) -> 0 | DB24: 0 | DC24: 0 | DD24: 0 | DE24: 0 | DF24: 0 | DG24: 0 | DH24: 0 | DI24: 0 | DJ24: 0
A25: =Kanatlı!A25 -> 0 | B25: =Kanatlı!B25 -> 0 | C25: =Kanatlı!C25 -> 0 | D25: =Kanatlı!D25 -> 0 | E25: =Kanatlı!E25 -> 0 | F25: =Kanatlı!F25 -> 0 | AR25: AJ | BK25: 0 | BL25: 0 | BM25: 0 | BN25: 0 | BO25: 0 | BP25: 0 | BQ25: 0 | BR25: 0 | BS25: 0 | BT25: 0 | BU25: 0 | BV25: 0 | BW25: 0 | BX25: 0 | BY25: 0 | BZ25: 0 | CA25: 0 | CB25: 0 | CC25: 0 | CD25: 0 | CE25: 0 | CF25: 0 | CG25: 0 | CH25: 0 | CI25: 0 | CJ25: 0 | CK25: 0 | CL25: 0 | CM25: 0 | CN25: 0 | CO25: 0 | CP25: 0 | CQ25: 0 | CR25: 0 | CS25: 0 | CT25: 0 | CU25: 0 | CV25: 0 | CW25: 0 | CX25: 0 | CY25: 0 | CZ25: 0 | DA25: 0 | DB25: 0 | DC25: 0 | DD25: 0 | DE25: 0 | DF25: 0 | DG25: 0 | DH25: 0 | DI25: 0 | DJ25: 0
A26: =Kanatlı!A26 -> 0 | B26: =Kanatlı!B26 -> 0 | C26: =Kanatlı!C26 -> 0 | D26: =Kanatlı!D26 -> 0 | E26: =Kanatlı!E26 -> 0 | F26: =Kanatlı!F26 -> 0 | AR26: AK | AT26: MİNERALLER | AU26: Rasyon | BK26: 0 | BL26: 0 | BM26: 0 | BN26: 0 | BO26: 0 | BP26: 0 | BQ26: 0 | BR26: 0 | BS26: 0 | BT26: 0 | BU26: 0 | BV26: 0 | BW26: 0 | BX26: 0 | BY26: 0 | BZ26: 0 | CA26: 0 | CB26: 0 | CC26: 0 | CD26: 0 | CE26: 0 | CF26: 0 | CG26: 0 | CH26: 0 | CI26: 0 | CJ26: 0 | CK26: 0 | CL26: 0 | CM26: 0 | CN26: 0 | CO26: 0 | CP26: 0 | CQ26: 0 | CR26: 0 | CS26: 0 | CT26: 0 | CU26: 0 | CV26: 0 | CW26: 0 | CX26: 0 | CY26: 0 | CZ26: 0 | DA26: 0 | DB26: 0 | DC26: 0 | DD26: 0 | DE26: 0 | DF26: 0 | DG26: 0 | DH26: 0 | DI26: 0 | DJ26: 0
A27: =Kanatlı!A27 -> 0 | B27: =Kanatlı!B27 -> 0 | C27: =Kanatlı!C27 -> 0 | D27: =Kanatlı!D27 -> 0 | E27: =Kanatlı!E27 -> 0 | F27: =Kanatlı!F27 -> 0 | AR27: AL | AT27: K, % | AU27: =BS31 -> 0.7440358271 | BK27: 0 | BL27: 0 | BM27: 0 | BN27: 0 | BO27: 0 | BP27: 0 | BQ27: 0 | BR27: 0 | BS27: 0 | BT27: 0 | BU27: 0 | BV27: 0 | BW27: 0 | BX27: 0 | BY27: 0 | BZ27: 0 | CA27: 0 | CB27: 0 | CC27: 0 | CD27: 0 | CE27: 0 | CF27: 0 | CG27: 0 | CH27: 0 | CI27: 0 | CJ27: 0 | CK27: 0 | CL27: 0 | CM27: 0 | CN27: 0 | CO27: 0 | CP27: 0 | CQ27: 0 | CR27: 0 | CS27: 0 | CT27: 0 | CU27: 0 | CV27: 0 | CW27: 0 | CX27: 0 | CY27: 0 | CZ27: 0 | DA27: 0 | DB27: 0 | DC27: 0 | DD27: 0 | DE27: 0 | DF27: 0 | DG27: 0 | DH27: 0 | DI27: 0 | DJ27: 0
A28: =Kanatlı!A28 -> 0 | B28: =Kanatlı!B28 -> 0 | C28: =Kanatlı!C28 -> 0 | D28: =Kanatlı!D28 -> 0 | E28: =Kanatlı!E28 -> 0 | F28: =Kanatlı!F28 -> 0 | AR28: AM | AT28: Mg, % | AU28: =CQ31 -> 0.1748518565 | BK28: 0 | BL28: 0 | BM28: 0 | BN28: 0 | BO28: 0 | BP28: 0 | BQ28: 0 | BR28: 0 | BS28: 0 | BT28: 0 | BU28: 0 | BV28: 0 | BW28: 0 | BX28: 0 | BY28: 0 | BZ28: 0 | CA28: 0 | CB28: 0 | CC28: 0 | CD28: 0 | CE28: 0 | CF28: 0 | CG28: 0 | CH28: 0 | CI28: 0 | CJ28: 0 | CK28: 0 | CL28: 0 | CM28: 0 | CN28: 0 | CO28: 0 | CP28: 0 | CQ28: 0 | CR28: 0 | CS28: 0 | CT28: 0 | CU28: 0 | CV28: 0 | CW28: 0 | CX28: 0 | CY28: 0 | CZ28: 0 | DA28: 0 | DB28: 0 | DC28: 0 | DD28: 0 | DE28: 0 | DF28: 0 | DG28: 0 | DH28: 0 | DI28: 0 | DJ28: 0
A29: =Kanatlı!A29 -> 0 | B29: =Kanatlı!B29 -> 0 | C29: =Kanatlı!C29 -> 0 | D29: =Kanatlı!D29 -> 0 | E29: =Kanatlı!E29 -> 0 | F29: =Kanatlı!F29 -> 0 | AR29: AN | AT29: S, % | AU29: =CR31 -> 0.1759754971 | BK29: 0 | BL29: 0 | BM29: 0 | BN29: 0 | BO29: 0 | BP29: 0 | BQ29: 0 | BR29: 0 | BS29: 0 | BT29: 0 | BU29: 0 | BV29: 0 | BW29: 0 | BX29: 0 | BY29: 0 | BZ29: 0 | CA29: 0 | CB29: 0 | CC29: 0 | CD29: 0 | CE29: 0 | CF29: 0 | CG29: 0 | CH29: 0 | CI29: 0 | CJ29: 0 | CK29: 0 | CL29: 0 | CM29: 0 | CN29: 0 | CO29: 0 | CP29: 0 | CQ29: 0 | CR29: 0 | CS29: 0 | CT29: 0 | CU29: 0 | CV29: 0 | CW29: 0 | CX29: 0 | CY29: 0 | CZ29: 0 | DA29: 0 | DB29: 0 | DC29: 0 | DD29: 0 | DE29: 0 | DF29: 0 | DG29: 0 | DH29: 0 | DI29: 0 | DJ29: 0 | DY29: MISIR GRİZİ(KEPEK,GERM,NİŞASTA)
A30: =Kanatlı!A30 -> 0 | B30: =Kanatlı!B30 -> 0 | C30: =Kanatlı!C30 -> 0 | D30: =Kanatlı!D30 -> 0 | E30: =Kanatlı!E30 -> 0 | F30: =Kanatlı!F30 -> 0 | AR30: AO | AT30: Co, mg/kg | AU30: =CS31 -> 0.125 | DY30: MISIR KEPEĞİ
A31: =Kanatlı!A31 -> 0 | B31: =Kanatlı!B31 -> 0 | C31: =Kanatlı!C31 -> 0 | D31: =Kanatlı!D31 -> 0 | E31: =Kanatlı!E31 -> 0 | F31: =Kanatlı!F31 -> 0 | AR31: AP | AT31: Cu, mg/kg | AU31: =CT31 -> 12.58100391 | BL31: HESAPLAMA TABLOSU | BM31: =SUM(BM33:BM58) -> 89.20869516 | BN31: 18.03779999 | BO31: 2800.083996 | BP31: 1.003 | BQ31: 0.7433044433 | BR31: 0.4486500009 | BS31: 0.7440358271 | BT31: 0.1595200014 | BU31: 0.2256545016 | BV31: 0.3979865521 | BW31: 0.3233598914 | BX31: 0.7028000006 | BY31: 0.6098073254 | BZ31: 0.9959999972 | CA31: 0.8857285966 | CB31: 0.6525999992 | CC31: 0.235688129 | CD31: 1.1085301 | CE31: 0.728662715 | CF31: 1.499678225 | CG31: 0.8320051506 | CH31: 0.6448913841 | CI31: 2.161749295 | CJ31: 1.246249997 | CK31: 3.621800702 | CL31: 6.206738386 | CM31: 44.80877702 | CN31: 3.643446313 | CO31: 12.17436649 | CP31: 5.178763806 | CQ31: 0.1748518565 | CR31: 0.1759754971 | CS31: 0.125 | CT31: 12.58100391 | CU31: 0.5 | CV31: 139.7475404 | CW31: 129.8949434 | CX31: 0.3318106602 | CY31: 112.3001468 | CZ31: 1.842543937 | DA31: 15 | DB31: 3.3 | DC31: 25 | DD31: 0.2312519742 | DE31: 0.5437750025 | DF31: 0.1763836017 | DG31: 0.9786334868 | DH31: 11.5553531 | DY31: MISIR, (Devekuşu için)
AT32: I, mg/kg | AU32: =CU31 -> 0.5 | BL32: YEMLER | BM32: KM,% | BN32: HP,% | BO32: ME,kcal/kg | BP32: Ca,% | BQ32: Top.P,% | BR32: Kul.P,% | BS32: K,% | BT32: Na,% | BU32: Cl,% | BV32: Metionin,% | BW32: Sistin,% | BX32: Met+Sis,% | BY32: Sin.Met+Sis,% | BZ32: Lizin,% | CA32: Sin.Lizin,% | CB32: Treonin,% | CC32: Triptofan,% | CD32: Arjinin,% | CE32: İzolöysin,% | CF32: Löysin,% | CG32: Fenilalanin,% | CH32: Tirozin,% | CI32: HY,% | CJ32: Linoleik a.,% | CK32: HS,% | CL32: HK,% | CM32: Nişasta,% | CN32: Şeker,% | CO32: NDF,% | CP32: ADF,% | CQ32: Mg,% | CR32: S,% | CS32: Co,mg | CT32: Cu,mg | CU32: I,mg | CV32: Fe,mg | CW32: Mn,mg | CX32: Se,mg | CY32: Zn,mg | CZ32: Mo,mg | DA32: Vit A,1000 IU/kg | DB32: Vit D,1000 IU/kg | DC32: Vit E,IU/kg | DD32: Sin.Met.,% | DE32: Sin.Treonin,% | DF32: Sin.Triptofan,% | DG32: Sin.Arjinin,% | DH32: Fiyat,krş/kg
AT33: Fe, mg/kg | AU33: =CV31 -> 139.7475404 | BL33: =BL4 -> MISIR, SARI | BM33: =IF($BL4=0,0,IF(ISERROR($BK4*BM4/100)=TRUE,0,$BK4*BM4/100)) -> 42.52460664 | BN33: 4.061338837 | BO33: 1600.645306 | BP33: 0.009556091381 | BQ33: 0.1337852793 | BR33: 0.03822436552 | BS33: 0.1433413707 | BT33: 0.009556091381 | BU33: 0.01911218276 | BV33: 0.08600482242 | BW33: 0.08600482242 | BX33: 0.1720096448 | BY33: 0.1513684875 | BZ33: 0.1242291879 | CA33: 0.1006256422 | CB33: 0.138563325 | CC33: 0.02866827414 | CD33: 0.1815657362 | CE33: 0.138563325 | CF33: 0.477804569 | CG33: 0.1815657362 | CH33: 0.1433413707 | CI33: 1.194511423 | CJ33: 0.8696043156 | CK33: 1.051170052 | CL33: 0.6450361682 | CM33: 31.05729699 | CN33: 1.003389595 | CO33: 3.99898534 | CP33: 1.431215806 | CQ33: 0.05051349904 | CR33: 0.04209458253 | CS33: =IF($BL4=0,0,IF(ISERROR($BK4*CS4/100)=TRUE,0,$BK4*CS4/100)) -> 0 | CT33: 1.262837476 | CU33: 0 | CV33: 22.73107457 | CW33: 4.630404078 | CX33: 0.02946620777 | CY33: 11.36553728 | CZ33: 0.3367566602 | DA33: 0 | DB33: 0 | DC33: 0 | DD33: 0.07009393028 | DE33: 0.1150075598 | DF33: 0.02150120561 | DG33: 0.1597778479 | DH33: =IF($BL4=0,0,IF(ISERROR($C6*DH4/100)=TRUE,0,$C6*DH4/100)) -> 4.061338837 | DY33: PİRİNÇ
AT34: Mn, mg/kg | AU34: =CW31 -> 129.8949434 | BL34: =BL5 -> BUĞDAY,SERT,KIRMIZI,KIŞLIK | BM34: =IF($BL5=0,0,IF(ISERROR($BK5*BM5/100)=TRUE,0,$BK5*BM5/100)) -> 14.26826916 | BN34: 2.312443622 | BO34: 475.6089719 | BP34: 0.008200154688 | BQ34: 0.06068114469 | BR34: 0.02132040219 | BS34: 0.07380139219 | BT34: 0.00656012375 | BU34: 0.008200154688 | BV34: 0.03444064969 | BW34: 0.04920092813 | BX34: 0.08364157782 | BY34: 0.0727681727 | BZ34: 0.06068114469 | CA34: 0.0491517272 | CB34: 0.06396120657 | CC34: 0.026240495 | CD34: 0.09840185626 | CE34: 0.07216136125 | CF34: 0.1459627534 | CG34: 0.09840185626 | CH34: 0.07052133032 | CI34: 0.4100077344 | CJ34: 0.09676182532 | CK34: 0.4920092813 | CL34: 0.2919255069 | CM34: 10.66020109 | CN34: 0.5084095907 | CO34: 1.964691462 | CP34: 0.6451225696 | CQ34: 0.02199281487 | CR34: 0.02199281487 | CS34: 0 | CT34: 0.7330938291 | CU34: 0 | CV34: 10.55655114 | CW34: 6.157988165 | CX34: 0.04105325443 | CY34: 5.864750633 | CZ34: 0.1906043956 | DA34: 0 | DB34: 0 | DC34: 0 | DD34: 0.0280691295 | DE34: 0.05308780145 | DF34: 0.01968037125 | DG34: 0.08659363351 | DH34: 1.722032484
AT35: Se, mg/kg | AU35: =CX31 -> 0.3318106602 | BL35: BUĞDAY KEPEĞİ,RAZMOL | BM35: =IF($BL6=0,0,IF(ISERROR($BK6*BM6/100)=TRUE,0,$BK6*BM6/100)) -> 8.8 | BN35: 1.5 | BO35: 200 | BP35: 0.012 | BQ35: 0.085 | BR35: 0.045 | BS35: 0.099 | BT35: 0.012 | BU35: 0.003 | BV35: 0.021 | BW35: 0.032 | BX35: 0.02 | BY35: 0.015 | BZ35: 0.061 | CA35: 0.042 | CB35: 0.034 | CC35: 0.031 | CD35: 0.085 | CE35: 0.058 | CF35: 0.107 | CG35: 0.064 | CH35: 0.045 | CI35: 0.3 | CJ35: 0.187 | CK35: 0.75 | CL35: 0.4475 | CM35: 1.8 | CN35: 0.4 | CO35: 3.28465 | CP35: 1.08295 | CQ35: 0.03759 | CR35: 0.01611 | CS35: 0 | CT35: 0.895 | CU35: 0 | CV35: 14.141 | CW35: 11.1875 | CX35: 0.04117 | CY35: 8.1445 | CZ35: 0.22375 | DA35: 0 | DB35: 0 | DC35: 0 | DD35: 0.017115 | DE35: 0.028 | DF35: 0.024 | DG35: 0.079 | DH35: 0.9 | DY35: SOAPSTOCK
AT36: Zn, mg/kg | AU36: =CY31 -> 112.3001468 | BL36: BİTKİSEL YAĞ | BM36: =IF($BL7=0,0,IF(ISERROR($BK7*BM7/100)=TRUE,0,$BK7*BM7/100)) -> 1.303255742e-06 | BN36: 0 | BO36: 0.0001217688446 | BP36: 0 | BQ36: 0 | BR36: 0 | BS36: 0 | BT36: 0 | BU36: 0 | BV36: 0 | BW36: 0 | BX36: 0 | BY36: 0 | BZ36: 0 | CA36: 0 | CB36: 0 | CC36: 0 | CD36: 0 | CE36: 0 | CF36: 0 | CG36: 0 | CH36: 0 | CI36: 1.299306482e-06 | CJ36: 6.713741702e-07 | CK36: 0 | CL36: 0 | CM36: 0 | CN36: 0 | CO36: 0 | CP36: 0 | CQ36: 0 | CR36: 0 | CS36: 0 | CT36: 0 | CU36: 0 | CV36: 0 | CW36: 0 | CX36: 0 | CY36: 0 | CZ36: 0 | DA36: 0 | DB36: 0 | DC36: 0 | DD36: 0 | DE36: 0 | DF36: 0 | DG36: 0 | DH36: 6.582099708e-07
AT37: Mo, mg/kg | AU37: =CZ31 -> 1.842543937 | BL37: SOYA KÜSPESİ, %46 | BM37: =IF($BL8=0,0,IF(ISERROR($BK8*BM8/100)=TRUE,0,$BK8*BM8/100)) -> 11.8256376 | BN37: 6.044214771 | BO37: 315.3503359 | BP37: 0.03547691279 | BQ37: 0.08146550343 | BR37: 0.04861651011 | BS37: 0.2601640271 | BT37: 0.006569798664 | BU37: 0.006569798664 | BV37: 0.0880353021 | BW37: 0.09460510076 | BX37: 0.1970939599 | BY37: 0.1585686606 | BZ37: 0.3889320809 | CA37: 0.3539281936 | CB37: 0.24571047 | CC37: 0.09723302023 | CD37: 0.457257987 | CE37: 0.2785594634 | CF37: 0.4914209401 | CG37: 0.3074665775 | CH37: 0.2562221479 | CI37: 0.1313959733 | CJ37: 0.06175610744 | CK37: 0.5124442958 | CL37: 0.8672134236 | CM37: 0.7883758397 | CN37: 1.051167786 | CO37: 1.744399802 | CP37: 1.170738122 | CQ37: 0.03395140554 | CR37: 0.04565878675 | CS37: 0 | CT37: 1.873180995 | CU37: 0 | CV37: 24.11720531 | CW37: 4.682952488 | CX37: 0.01521959558 | CY37: 6.790281107 | CZ37: 0.6907354919 | DA37: 0 | DB37: 0 | DC37: 0 | DD37: 0.07174877121 | DE37: 0.2299429532 | DF37: 0.06963986584 | DG37: 0.4204671145 | DH37: 2.365127519 | DY37: SORGUM, %11 HP
N38: Yemin Adı : | BL38: SOYA KÜSPESİ, %51 | BM38: =IF($BL9=0,0,IF(ISERROR($BK9*BM9/100)=TRUE,0,$BK9*BM9/100)) -> 5.960504168 | BN38: 3.377619028 | BO38: 165.5695602 | BP38: 0.0178815125 | BQ38: 0.04569719862 | BR38: 0.006622782409 | BS38: 0.145701213 | BT38: 0.0006622782409 | BU38: 0.003311391204 | BV38: 0.0437103639 | BW38: 0.05099542455 | BX38: 0.09470578845 | BY38: 0.08202978292 | BZ38: 0.2019948635 | CA38: 0.1838153258 | CB38: 0.1245083093 | CC38: 0.04304808566 | CD38: 0.2377578885 | CE38: 0.1602713343 | CF38: 0.2437183926 | CG38: 0.1562976648 | CH38: 0.1298065352 | CI38: 0.1258328658 | CJ38: 0.03112707732 | CK38: 0.2251746019 | CL38: 0.4106125093 | CM38: 0.3973669445 | CN38: 0.5960504168 | CO38: 0.3973669445 | CP38: 0.2649112964 | CQ38: 0.01854379074 | CR38: 0.02301350659 | CS38: 0 | CT38: 0.9441438602 | CU38: 0 | CV38: 12.1558522 | CW38: 2.36035965 | CX38: 0.007671168864 | CY38: 3.422521493 | CZ38: 0.3481530484 | DA38: 0 | DB38: 0 | DC38: 0 | DD38: 0.03562394658 | DE38: 0.09934173613 | DF38: 0.03443846853 | DG38: 0.1900738551 | DH38: 1.324556482
BL39: AYÇİÇEĞİ KÜSPESİ, %23HP | BM39: =IF($BL10=0,0,IF(ISERROR($BK10*BM10/100)=TRUE,0,$BK10*BM10/100)) -> 1.8996508 | BN39: 0.4917984849 | BO39: 29.86673202 | BP39: 0.007387530888 | BQ39: 0.018996508 | BR39: 0.002955012355 | BS39: 0.02026294187 | BT39: 0.004221446222 | BU39: 0.002321795422 | BV39: 0.01055361555 | BW39: 0.01055361555 | BX39: 0.02110723111 | BY39: 0.01583042333 | BZ39: 0.02110723111 | CA39: 0.01815221875 | CB39: 0.02216259267 | CC39: 0.009498253999 | CD39: 0.04854663155 | CE39: 0.02110723111 | CF39: 0.03377156978 | CG39: 0.02427331578 | CH39: 0 | CI39: 0 | CJ39: 0 | CK39: 0.5910024711 | CL39: 0.1625256795 | CM39: 0.1055361555 | CN39: 0.08442892444 | CO39: 0.7842729434 | CP39: 0.5838260125 | CQ39: 0.01226034626 | CR39: 0.007589738162 | CS39: 0 | CT39: 0.6227477467 | CU39: 0 | CV39: 5.799338391 | CW39: 0.8757390187 | CX39: 0.009730433542 | CY39: 1.712556303 | CZ39: 0.05254434112 | DA39: 0 | DB39: 0 | DC39: 0 | DD39: 0.008601196677 | DE39: 0.01839495191 | DF39: 0.007123690499 | DG39: 0.04272103577 | DH39: 0.2321795422 | DY39: ŞEK.PAN.POSASI,KURU
BL40: DİKALSİYUM FOSFAT | BM40: =IF($BL11=0,0,IF(ISERROR($BK11*BM11/100)=TRUE,0,$BK11*BM11/100)) -> 1.764882273 | BN40: 0 | BO40: 0 | BP40: 0.4235717456 | BQ40: 0.3176788092 | BR40: 0.2859109283 | BS40: 0.001764882273 | BT40: 0.001058929364 | BU40: 0.0002294346955 | BV40: 0 | BW40: 0 | BX40: 0 | BY40: 0 | BZ40: 0 | CA40: 0 | CB40: 0 | CC40: 0 | CD40: 0 | CE40: 0 | CF40: 0 | CG40: 0 | CH40: 0 | CI40: 0 | CJ40: 0 | CK40: 0 | CL40: 1.764882273 | CM40: 0 | CN40: 0 | CO40: 0 | CP40: 0 | CQ40: 0 | CR40: 0.01951606818 | CS40: 0 | CT40: 0 | CU40: 0 | CV40: 0.2465187559 | CW40: 0 | CX40: 0 | CY40: 0 | CZ40: 0 | DA40: 0 | DB40: 0 | DC40: 0 | DD40: 0 | DE40: 0 | DF40: 0 | DG40: 0 | DH40: 0.6177087956
BL41: MERMER TOZU | BM41: =IF($BL12=0,0,IF(ISERROR($BK12*BM12/100)=TRUE,0,$BK12*BM12/100)) -> 1.299071319 | BN41: 0 | BO41: 0 | BP41: 0.485511503 | BQ41: 0 | BR41: 0 | BS41: 0 | BT41: 0 | BU41: 0 | BV41: 0 | BW41: 0 | BX41: 0 | BY41: 0 | BZ41: 0 | CA41: 0 | CB41: 0 | CC41: 0 | CD41: 0 | CE41: 0 | CF41: 0 | CG41: 0 | CH41: 0 | CI41: 0 | CJ41: 0 | CK41: 0 | CL41: 1.312193251 | CM41: 0 | CN41: 0 | CO41: 0 | CP41: 0 | CQ41: 0 | CR41: 0 | CS41: 0 | CT41: 0 | CU41: 0 | CV41: 0 | CW41: 0 | CX41: 0 | CY41: 0 | CZ41: 0 | DA41: 0 | DB41: 0 | DC41: 0 | DD41: 0 | DE41: 0 | DF41: 0 | DG41: 0 | DH41: 0.02624386503
BL42: TUZ | BM42: =IF($BL13=0,0,IF(ISERROR($BK13*BM13/100)=TRUE,0,$BK13*BM13/100)) -> 0.3048495737 | BN42: 0 | BO42: 0 | BP42: 0.000914548721 | BQ42: 0 | BR42: 0 | BS42: 0 | BT42: 0.1188913337 | BU42: 0.1829097442 | BV42: 0 | BW42: 0 | BX42: 0 | BY42: 0 | BZ42: 0 | CA42: 0 | CB42: 0 | CC42: 0 | CD42: 0 | CE42: 0 | CF42: 0 | CG42: 0 | CH42: 0 | CI42: 0 | CJ42: 0 | CK42: 0 | CL42: 0.3048495737 | CM42: 0 | CN42: 0 | CO42: 0 | CP42: 0 | CQ42: 0 | CR42: 0 | CS42: 0 | CT42: 0 | CU42: 0 | CV42: 0 | CW42: 0 | CX42: 0 | CY42: 0 | CZ42: 0 | DA42: 0 | DB42: 0 | DC42: 0 | DD42: 0 | DE42: 0 | DF42: 0 | DG42: 0 | DH42: 0.004572743605
BL43: VİTAMİN-MİNERAL KARMASI | BM43: =IF($BL14=0,0,IF(ISERROR($BK14*BM14/100)=TRUE,0,$BK14*BM14/100)) -> 0.25 | BN43: 0 | BO43: 0 | BP43: 0.0025 | BQ43: 0 | BR43: 0 | BS43: 0 | BT43: 0 | BU43: 0 | BV43: 0 | BW43: 0 | BX43: 0 | BY43: 0 | BZ43: 0 | CA43: 0 | CB43: 0 | CC43: 0 | CD43: 0 | CE43: 0 | CF43: 0 | CG43: 0 | CH43: 0 | CI43: 0 | CJ43: 0 | CK43: 0 | CL43: 0 | CM43: 0 | CN43: 0 | CO43: 0 | CP43: 0 | CQ43: 0 | CR43: 0 | CS43: 0.125 | CT43: 6.25 | CU43: 0.5 | CV43: 50 | CW43: 100 | CX43: 0.1875 | CY43: 75 | CZ43: 0 | DA43: 15 | DB43: 3.3 | DC43: 25 | DD43: 0 | DE43: 0 | DF43: 0 | DG43: 0 | DH43: 0.0625
BL44: L-LİZİN hidroklorid | BM44: =IF($BL15=0,0,IF(ISERROR($BK15*BM15/100)=TRUE,0,$BK15*BM15/100)) -> 0.1721324769 | BN44: 0.1649675717 | BO44: 8.038674046 | BP44: 0 | BQ44: 0 | BR44: 0 | BS44: 0 | BT44: 0 | BU44: 0 | BV44: 0 | BW44: 0 | BX44: 0 | BY44: 0 | BZ44: 0.1380554891 | CA44: 0.1380554891 | CB44: 0 | CC44: 0 | CD44: 0 | CE44: 0 | CF44: 0 | CG44: 0 | CH44: 0 | CI44: 0 | CJ44: 0 | CK44: 0 | CL44: 0 | CM44: 0 | CN44: 0 | CO44: 0 | CP44: 0 | CQ44: 0 | CR44: 0 | CS44: 0 | CT44: 0 | CU44: 0 | CV44: 0 | CW44: 0 | CX44: 0 | CY44: 0 | CZ44: 0 | DA44: 0 | DB44: 0 | DC44: 0 | DD44: 0 | DE44: 0 | DF44: 0 | DG44: 0 | DH44: 0.1135899593
BL45: =BL16 -> DL-METHİONİN | BM45: =IF($BL16=0,0,IF(ISERROR($BK16*BM16/100)=TRUE,0,$BK16*BM16/100)) -> 0.115395756 | BN45: 0.06773730875 | BO45: 4.24656382 | BP45: 0 | BQ45: 0 | BR45: 0 | BS45: 0 | BT45: 0 | BU45: 0 | BV45: 0.1142417984 | BW45: 0 | BX45: 0.1142417984 | BY45: 0.1142417984 | BZ45: 0 | CA45: 0 | CB45: 0 | CC45: 0 | CD45: 0 | CE45: 0 | CF45: 0 | CG45: 0 | CH45: 0 | CI45: 0 | CJ45: 0 | CK45: 0 | CL45: 0 | CM45: 0 | CN45: 0 | CO45: 0 | CP45: 0 | CQ45: 0 | CR45: 0 | CS45: 0 | CT45: 0 | CU45: 0 | CV45: 0 | CW45: 0 | CX45: 0 | CY45: 0 | CZ45: 0 | DA45: 0 | DB45: 0 | DC45: 0 | DD45: 0 | DE45: 0 | DF45: 0 | DG45: 0 | DH45: 0.1096259682
BL46: L-TREONİN | BM46: =IF($BL17=0,0,IF(ISERROR($BK17*BM17/100)=TRUE,0,$BK17*BM17/100)) -> 0.02369409559 | BN46: 0.01768036574 | BO46: 0.7577299604 | BP46: 0 | BQ46: 0 | BR46: 0 | BS46: 0 | BT46: 0 | BU46: 0 | BV46: 0 | BW46: 0 | BX46: 0 | BY46: 0 | BZ46: 0 | CA46: 0 | CB46: 0.02369409559 | CC46: 0 | CD46: 0 | CE46: 0 | CF46: 0 | CG46: 0 | CH46: 0 | CI46: 0 | CJ46: 0 | CK46: 0 | CL46: 0 | CM46: 0 | CN46: 0 | CO46: 0 | CP46: 0 | CQ46: 0 | CR46: 0 | CS46: 0 | CT46: 0 | CU46: 0 | CV46: 0 | CW46: 0 | CX46: 0 | CY46: 0 | CZ46: 0 | DA46: 0 | DB46: 0 | DC46: 0 | DD46: 0 | DE46: 0 | DF46: 0 | DG46: 0 | DH46: 0.01587624679
BL47: 0 | BM47: =IF($BL18=0,0,IF(ISERROR($BK18*BM18/100)=TRUE,0,$BK18*BM18/100)) -> 0 | BN47: 0 | BO47: 0 | BP47: 0 | BQ47: 0 | BR47: 0 | BS47: 0 | BT47: 0 | BU47: 0 | BV47: 0 | BW47: 0 | BX47: 0 | BY47: 0 | BZ47: 0 | CA47: 0 | CB47: 0 | CC47: 0 | CD47: 0 | CE47: 0 | CF47: 0 | CG47: 0 | CH47: 0 | CI47: 0 | CJ47: 0 | CK47: 0 | CL47: 0 | CM47: 0 | CN47: 0 | CO47: 0 | CP47: 0 | CQ47: 0 | CR47: 0 | CS47: 0 | CT47: 0 | CU47: 0 | CV47: 0 | CW47: 0 | CX47: 0 | CY47: 0 | CZ47: 0 | DA47: 0 | DB47: 0 | DC47: 0 | DD47: 0 | DE47: 0 | DF47: 0 | DG47: 0 | DH47: 0
BL48: 0 | BM48: =IF($BL19=0,0,IF(ISERROR($BK19*BM19/100)=TRUE,0,$BK19*BM19/100)) -> 0 | BN48: 0 | BO48: 0 | BP48: 0 | BQ48: 0 | BR48: 0 | BS48: 0 | BT48: 0 | BU48: 0 | BV48: 0 | BW48: 0 | BX48: 0 | BY48: 0 | BZ48: 0 | CA48: 0 | CB48: 0 | CC48: 0 | CD48: 0 | CE48: 0 | CF48: 0 | CG48: 0 | CH48: 0 | CI48: 0 | CJ48: 0 | CK48: 0 | CL48: 0 | CM48: 0 | CN48: 0 | CO48: 0 | CP48: 0 | CQ48: 0 | CR48: 0 | CS48: 0 | CT48: 0 | CU48: 0 | CV48: 0 | CW48: 0 | CX48: 0 | CY48: 0 | CZ48: 0 | DA48: 0 | DB48: 0 | DC48: 0 | DD48: 0 | DE48: 0 | DF48: 0 | DG48: 0 | DH48: 0
BL49: 0 | BM49: =IF($BL20=0,0,IF(ISERROR($BK20*BM20/100)=TRUE,0,$BK20*BM20/100)) -> 0 | BN49: 0 | BO49: 0 | BP49: 0 | BQ49: 0 | BR49: 0 | BS49: 0 | BT49: 0 | BU49: 0 | BV49: 0 | BW49: 0 | BX49: 0 | BY49: 0 | BZ49: 0 | CA49: 0 | CB49: 0 | CC49: 0 | CD49: 0 | CE49: 0 | CF49: 0 | CG49: 0 | CH49: 0 | CI49: 0 | CJ49: 0 | CK49: 0 | CL49: 0 | CM49: 0 | CN49: 0 | CO49: 0 | CP49: 0 | CQ49: 0 | CR49: 0 | CS49: 0 | CT49: 0 | CU49: 0 | CV49: 0 | CW49: 0 | CX49: 0 | CY49: 0 | CZ49: 0 | DA49: 0 | DB49: 0 | DC49: 0 | DD49: 0 | DE49: 0 | DF49: 0 | DG49: 0 | DH49: 0
BL50: 0 | BM50: =IF($BL21=0,0,IF(ISERROR($BK21*BM21/100)=TRUE,0,$BK21*BM21/100)) -> 0 | BN50: 0 | BO50: 0 | BP50: 0 | BQ50: 0 | BR50: 0 | BS50: 0 | BT50: 0 | BU50: 0 | BV50: 0 | BW50: 0 | BX50: 0 | BY50: 0 | BZ50: 0 | CA50: 0 | CB50: 0 | CC50: 0 | CD50: 0 | CE50: 0 | CF50: 0 | CG50: 0 | CH50: 0 | CI50: 0 | CJ50: 0 | CK50: 0 | CL50: 0 | CM50: 0 | CN50: 0 | CO50: 0 | CP50: 0 | CQ50: 0 | CR50: 0 | CS50: 0 | CT50: 0 | CU50: 0 | CV50: 0 | CW50: 0 | CX50: 0 | CY50: 0 | CZ50: 0 | DA50: 0 | DB50: 0 | DC50: 0 | DD50: 0 | DE50: 0 | DF50: 0 | DG50: 0 | DH50: 0
BL51: 0 | BM51: =IF($BL22=0,0,IF(ISERROR($BK22*BM22/100)=TRUE,0,$BK22*BM22/100)) -> 0 | BN51: 0 | BO51: 0 | BP51: 0 | BQ51: 0 | BR51: 0 | BS51: 0 | BT51: 0 | BU51: 0 | BV51: 0 | BW51: 0 | BX51: 0 | BY51: 0 | BZ51: 0 | CA51: 0 | CB51: 0 | CC51: 0 | CD51: 0 | CE51: 0 | CF51: 0 | CG51: 0 | CH51: 0 | CI51: 0 | CJ51: 0 | CK51: 0 | CL51: 0 | CM51: 0 | CN51: 0 | CO51: 0 | CP51: 0 | CQ51: 0 | CR51: 0 | CS51: 0 | CT51: 0 | CU51: 0 | CV51: 0 | CW51: 0 | CX51: 0 | CY51: 0 | CZ51: 0 | DA51: 0 | DB51: 0 | DC51: 0 | DD51: 0 | DE51: 0 | DF51: 0 | DG51: 0 | DH51: 0
BL52: 0 | BM52: =IF($BL23=0,0,IF(ISERROR($BK23*BM23/100)=TRUE,0,$BK23*BM23/100)) -> 0 | BN52: 0 | BO52: 0 | BP52: 0 | BQ52: 0 | BR52: 0 | BS52: 0 | BT52: 0 | BU52: 0 | BV52: 0 | BW52: 0 | BX52: 0 | BY52: 0 | BZ52: 0 | CA52: 0 | CB52: 0 | CC52: 0 | CD52: 0 | CE52: 0 | CF52: 0 | CG52: 0 | CH52: 0 | CI52: 0 | CJ52: 0 | CK52: 0 | CL52: 0 | CM52: 0 | CN52: 0 | CO52: 0 | CP52: 0 | CQ52: 0 | CR52: 0 | CS52: 0 | CT52: 0 | CU52: 0 | CV52: 0 | CW52: 0 | CX52: 0 | CY52: 0 | CZ52: 0 | DA52: 0 | DB52: 0 | DC52: 0 | DD52: 0 | DE52: 0 | DF52: 0 | DG52: 0 | DH52: 0
BL53: 0 | BM53: =IF($BL24=0,0,IF(ISERROR($BK24*BM24/100)=TRUE,0,$BK24*BM24/100)) -> 0 | BN53: 0 | BO53: 0 | BP53: 0 | BQ53: 0 | BR53: 0 | BS53: 0 | BT53: 0 | BU53: 0 | BV53: 0 | BW53: 0 | BX53: 0 | BY53: 0 | BZ53: 0 | CA53: 0 | CB53: 0 | CC53: 0 | CD53: 0 | CE53: 0 | CF53: 0 | CG53: 0 | CH53: 0 | CI53: 0 | CJ53: 0 | CK53: 0 | CL53: 0 | CM53: 0 | CN53: 0 | CO53: 0 | CP53: 0 | CQ53: 0 | CR53: 0 | CS53: 0 | CT53: 0 | CU53: 0 | CV53: 0 | CW53: 0 | CX53: 0 | CY53: 0 | CZ53: 0 | DA53: 0 | DB53: 0 | DC53: 0 | DD53: 0 | DE53: 0 | DF53: 0 | DG53: 0 | DH53: 0
AT54: Sin.Amino Asitler | AU54: İhtiyaç | AV54: Rasyon | BL54: 0 | BM54: =IF($BL25=0,0,IF(ISERROR($BK25*BM25/100)=TRUE,0,$BK25*BM25/100)) -> 0 | BN54: 0 | BO54: 0 | BP54: 0 | BQ54: 0 | BR54: 0 | BS54: 0 | BT54: 0 | BU54: 0 | BV54: 0 | BW54: 0 | BX54: 0 | BY54: 0 | BZ54: 0 | CA54: 0 | CB54: 0 | CC54: 0 | CD54: 0 | CE54: 0 | CF54: 0 | CG54: 0 | CH54: 0 | CI54: 0 | CJ54: 0 | CK54: 0 | CL54: 0 | CM54: 0 | CN54: 0 | CO54: 0 | CP54: 0 | CQ54: 0 | CR54: 0 | CS54: 0 | CT54: 0 | CU54: 0 | CV54: 0 | CW54: 0 | CX54: 0 | CY54: 0 | CZ54: 0 | DA54: 0 | DB54: 0 | DC54: 0 | DD54: 0 | DE54: 0 | DF54: 0 | DG54: 0 | DH54: 0
AR55: Performans | AT55: Sin. Met+Sis,% | AU55: =VLOOKUP(KanatTipi,EA3:FM484,21,FALSE) -> 0 | AV55: =BY31 -> 0.6098073254 | BL55: 0 | BM55: =IF($BL26=0,0,IF(ISERROR($BK26*BM26/100)=TRUE,0,$BK26*BM26/100)) -> 0 | BN55: 0 | BO55: 0 | BP55: 0 | BQ55: 0 | BR55: 0 | BS55: 0 | BT55: 0 | BU55: 0 | BV55: 0 | BW55: 0 | BX55: 0 | BY55: 0 | BZ55: 0 | CA55: 0 | CB55: 0 | CC55: 0 | CD55: 0 | CE55: 0 | CF55: 0 | CG55: 0 | CH55: 0 | CI55: 0 | CJ55: 0 | CK55: 0 | CL55: 0 | CM55: 0 | CN55: 0 | CO55: 0 | CP55: 0 | CQ55: 0 | CR55: 0 | CS55: 0 | CT55: 0 | CU55: 0 | CV55: 0 | CW55: 0 | CX55: 0 | CY55: 0 | CZ55: 0 | DA55: 0 | DB55: 0 | DC55: 0 | DD55: 0 | DE55: 0 | DF55: 0 | DG55: 0 | DH55: 0
AR56: Adresleri | AT56: Sin.Lizin,% | AU56: =VLOOKUP(KanatTipi,EA3:FM484,25,FALSE) -> 0 | AV56: =CA31 -> 0.8857285966 | BL56: 0 | BM56: =IF($BL27=0,0,IF(ISERROR($BK27*BM27/100)=TRUE,0,$BK27*BM27/100)) -> 0 | BN56: 0 | BO56: 0 | BP56: 0 | BQ56: 0 | BR56: 0 | BS56: 0 | BT56: 0 | BU56: 0 | BV56: 0 | BW56: 0 | BX56: 0 | BY56: 0 | BZ56: 0 | CA56: 0 | CB56: 0 | CC56: 0 | CD56: 0 | CE56: 0 | CF56: 0 | CG56: 0 | CH56: 0 | CI56: 0 | CJ56: 0 | CK56: 0 | CL56: 0 | CM56: 0 | CN56: 0 | CO56: 0 | CP56: 0 | CQ56: 0 | CR56: 0 | CS56: 0 | CT56: 0 | CU56: 0 | CV56: 0 | CW56: 0 | CX56: 0 | CY56: 0 | CZ56: 0 | DA56: 0 | DB56: 0 | DC56: 0 | DD56: 0 | DE56: 0 | DF56: 0 | DG56: 0 | DH56: 0
AR57: DM | AT57: Sin.Treonin,% | AU57: =VLOOKUP(KanatTipi,EA3:FM484,29,FALSE) -> 0 | AV57: =DE31 -> 0.5437750025 | BL57: 0 | BM57: =IF($BL28=0,0,IF(ISERROR($BK28*BM28/100)=TRUE,0,$BK28*BM28/100)) -> 0 | BN57: 0 | BO57: 0 | BP57: 0 | BQ57: 0 | BR57: 0 | BS57: 0 | BT57: 0 | BU57: 0 | BV57: 0 | BW57: 0 | BX57: 0 | BY57: 0 | BZ57: 0 | CA57: 0 | CB57: 0 | CC57: 0 | CD57: 0 | CE57: 0 | CF57: 0 | CG57: 0 | CH57: 0 | CI57: 0 | CJ57: 0 | CK57: 0 | CL57: 0 | CM57: 0 | CN57: 0 | CO57: 0 | CP57: 0 | CQ57: 0 | CR57: 0 | CS57: 0 | CT57: 0 | CU57: 0 | CV57: 0 | CW57: 0 | CX57: 0 | CY57: 0 | CZ57: 0 | DA57: 0 | DB57: 0 | DC57: 0 | DD57: 0 | DE57: 0 | DF57: 0 | DG57: 0 | DH57: 0
A58: =IF(B6="","",IF(C6="","",A6)) -> 1 | B58: =IF(B6="","",IF(C6="","",B6)) -> MISIR, SARI | C58: =IF(B6="","",IF(C6="","",C6)) -> 47.7804569 | AR58: DN | AT58: Sin.Triptofan,% | AU58: =VLOOKUP(KanatTipi,EA3:FM484,33,FALSE) -> 0 | AV58: =DF31 -> 0.1763836017 | BL58: 0 | BM58: =IF($BL29=0,0,IF(ISERROR($BK29*BM29/100)=TRUE,0,$BK29*BM29/100)) -> 0 | BN58: 0 | BO58: 0 | BP58: 0 | BQ58: 0 | BR58: 0 | BS58: 0 | BT58: 0 | BU58: 0 | BV58: 0 | BW58: 0 | BX58: 0 | BY58: 0 | BZ58: 0 | CA58: 0 | CB58: 0 | CC58: 0 | CD58: 0 | CE58: 0 | CF58: 0 | CG58: 0 | CH58: 0 | CI58: 0 | CJ58: 0 | CK58: 0 | CL58: 0 | CM58: 0 | CN58: 0 | CO58: 0 | CP58: 0 | CQ58: 0 | CR58: 0 | CS58: 0 | CT58: 0 | CU58: 0 | CV58: 0 | CW58: 0 | CX58: 0 | CY58: 0 | CZ58: 0 | DA58: 0 | DB58: 0 | DC58: 0 | DD58: 0 | DE58: 0 | DF58: 0 | DG58: 0 | DH58: 0 | EA58: TAVUK-ETÇİ TİP-TİCARİ
A59: 1 | B59: BUĞDAY,SERT,KIRMIZI,KIŞLIK | C59: 16.40030938 | AR59: DO | AT59: Sin.Arjinin,% | AU59: =VLOOKUP(KanatTipi,EA3:FM484,37,FALSE) -> 0 | AV59: =DG31 -> 0.9786334868 | BM59: 2 | BN59: 3 | BO59: 4 | BP59: 5 | BQ59: 6 | BR59: 7 | BS59: 8 | BT59: 9 | BU59: 10 | BV59: 11 | BW59: 12 | BX59: 13 | BY59: 14 | BZ59: 15 | CA59: 16 | CB59: 17 | CC59: 18 | CD59: 19 | CE59: 20 | CF59: 21 | CG59: 22 | CH59: 23 | CI59: 24 | CJ59: 25 | CK59: 26 | CL59: 27 | CM59: 28 | CN59: 29 | CO59: 30 | CP59: 31 | CQ59: 32 | CR59: 33 | CS59: 34 | CT59: 35 | CU59: 36 | CV59: 37 | CW59: 38 | CX59: 39 | CY59: 40 | CZ59: 41 | DA59: 42 | DB59: 43 | DC59: 44 | DD59: 45 | DE59: 46 | DF59: 47 | DG59: 48 | DH59: 49 | DI59: 50 | DJ59: 51 | FL59: =FK59 -> 0
A60: 1 | B60: BUĞDAY KEPEĞİ,RAZMOL | C60: 10 | AR60: DP | AT60: Arjinin | AU60: =VLOOKUP(KanatTipi,EA3:FM484,35,FALSE) -> 0 | AV60: =CD31 -> 1.1085301 | BL60: ENERJİ KAYNAKLARI ve YAN ÜRÜNLERİ | BM60: KM | BN60: HP | BO60: ME | BP60: Ca | BQ60: Top.P | BR60: Kul.P | BS60: K | BT60: Na | BU60: Cl | BV60: Metionin | BW60: Sistin | BX60: Met+Sis | BY60: Sin.Met+Sis | BZ60: Lizin | CA60: Sin.Lizin | CB60: Treonin | CC60: Triptofan | CD60: Arjinin | CE60: İzolöysin | CF60: Löysin | CG60: Fenilalanin | CH60: Tirozin | CI60: HY | CJ60: Linoleik | CK60: HS | CL60: HK | CM60: Nişasta | CN60: Şeker | CO60: NDF | CP60: ADF | CQ60: Mg | CR60: S | CS60: Co | CT60: Cu | CU60: I | CV60: Fe | CW60: Mn | CX60: Se | CY60: Zn | CZ60: Mo | DA60: Vit A,1000 IU/kg | DB60: Vit D,1000 IU/kg | DC60: Vit E,IU/kg | DD60: Sin.Met. | DE60: Sin.Treonin | DF60: Sin.Triptofan | DG60: Sin.Arjinin | DH60: Fiat,TL | DI60: Enaz | DJ60: Ençok | EA60: COBB 500, BAŞLANGIÇ (0-10 gün) (250 g CA'a kadar) | EB60: 21 | EC60: 22 | ED60: 3035 | EE60: =ED60 -> 3035 | EF60: 0.9 | EG60: =EF60 -> 0.9 | EI60: 0.45 | EJ60: =EI60 -> 0.45 | EK60: 0.16 | EL60: 0.23 | EM60: 0.17 | EN60: 0.35 | EO60: 0.5 | EP60: =EO60 -> 0.5 | EQ60: 0.45 | ER60: =EQ60 -> 0.45 | ES60: 0.98 | ET60: =ES60 -> 0.98 | EU60: 0.88 | EV60: =EU60 -> 0.88 | EW60: 1.32 | EX60: =EW60 -> 1.32 | EY60: 1.18 | EZ60: =EY60 -> 1.18 | FA60: 0.86 | FB60: =FA60 -> 0.86 | FC60: 0.77 | FD60: =FC60 -> 0.77 | FE60: 0.2 | FF60: =FE60 -> 0.2 | FG60: 0.18 | FH60: =FG60 -> 0.18 | FI60: 1.38 | FJ60: =FI60 -> 1.38 | FK60: 1.24 | FL60: 1.24 | FM60: 1
A61: 1 | B61: BİTKİSEL YAĞ | C61: 1.316419942e-06 | AR61: DQ | AT61: İzolöysin | AV61: =CE31 -> 0.728662715 | BL61: ARPA | BM61: 89 | BN61: 11 | BO61: 2640 | BP61: 0.03 | BQ61: 0.36 | BR61: 0.17 | BS61: 0.48 | BT61: 0.04 | BU61: 0.15 | BV61: 0.18 | BW61: 0.24 | BX61: 0.42 | BY61: =BX61*0.8 -> 0.336 | BZ61: 0.39 | CA61: =BZ61*0.78 -> 0.3042 | CB61: 0.37 | CC61: 0.14 | CD61: 0.52 | CE61: 0.37 | CF61: 0.76 | CG61: 0.56 | CH61: 0.35 | CI61: 1.8 | CJ61: 0.83 | CK61: 5.5 | CL61: 2.639 | CM61: 60 | CN61: 0.8 | CO61: 18.928 | CP61: 6.552 | CQ61: 0.1274 | CR61: 0.1092 | CS61: 0.3185 | CT61: 5.46 | CU61: 0 | CV61: 63.7 | CW61: 20.02 | CX61: 0.1001 | CY61: 34.58 | CZ61: 1.001 | DA61: 0 | DB61: 0 | DC61: 0 | DD61: =BV61*0.815 -> 0.1467 | DE61: 0.29 | DF61: 0.15 | DG61: 0.41 | DH61: 8.5 | DI61: 0 | DJ61: 30 | EA61: COBB 500, BÜYÜTME (11-22 gün) (1000 g CA'a kadar) | EB61: 19 | EC61: 20 | ED61: 3108 | EE61: 3108 | EF61: 0.84 | EG61: 0.84 | EI61: 0.42 | EJ61: 0.42 | EK61: 0.16 | EL61: 0.23 | EM61: 0.16 | EN61: 0.35 | EO61: 0.48 | EP61: =EO61 -> 0.48 | EQ61: 0.42 | ER61: 0.42 | ES61: 0.89 | ET61: 0.89 | EU61: 0.8 | EV61: 0.8 | EW61: 1.19 | EX61: 1.19 | EY61: 1.05 | EZ61: 1.05 | FA61: 0.78 | FB61: 0.78 | FC61: 0.69 | FD61: 0.69 | FE61: 0.19 | FF61: 0.19 | FG61: 0.17 | FH61: 0.17 | FI61: 1.25 | FJ61: 1.25 | FK61: 1.1 | FL61: 1.1 | FM61: 1
A62: 2 | B62: SOYA KÜSPESİ, %46 | C62: 13.13959733 | AR62: DR | AT62: Löysin | AV62: =CF31 -> 1.499678225 | BL62: ARPA, (Devekuşu için) | BM62: 89 | BN62: 11 | BO62: 3400 | BP62: 0.03 | BQ62: 0.36 | BR62: 0.17 | BS62: 0.48 | BT62: 0.04 | BU62: 0.15 | BV62: 0.18 | BW62: 0.24 | BX62: 0.42 | BY62: =BX62*0.75 -> 0.315 | BZ62: 0.4 | CA62: =BZ62*0.86 -> 0.344 | CB62: 0.37 | CC62: 0.14 | CD62: 0.52 | CE62: 0.37 | CF62: 0.76 | CG62: 0.56 | CH62: 0.35 | CI62: 1.8 | CJ62: 0.83 | CK62: 5.5 | CL62: 2.639 | CM62: 60 | CN62: 0.8 | CO62: 18.928 | CP62: 6.552 | CQ62: 0.1274 | CR62: 0.1092 | CS62: 0.3185 | CT62: 5.46 | CU62: 0 | CV62: 63.7 | CW62: 20.02 | CX62: 0.1001 | CY62: 34.58 | CZ62: 1.001 | DA62: 0 | DB62: 0 | DC62: 0 | DD62: =BV62*0.815 -> 0.1467 | DE62: =CB62*0.83 -> 0.3071 | DF62: =CC62*0.75 -> 0.105 | DG62: =CD62*0.88 -> 0.4576 | DH62: 8.5 | DI62: 5 | DJ62: 40 | EA62: COBB 500, BİTİRME 1 (23-42 gün) | EB62: 18 | EC62: 19 | ED62: 3180 | EE62: 3180 | EF62: 0.76 | EG62: 0.76 | EI62: 0.38 | EJ62: 0.38 | EK62: 0.15 | EL62: 0.23 | EM62: 0.15 | EN62: 0.35 | EO62: 0.43 | EP62: 0.43 | EQ62: 0.39 | ER62: 0.39 | ES62: 0.82 | ET62: 0.82 | EU62: 0.74 | EV62: 0.74 | EW62: 1.05 | EX62: 1.05 | EY62: 0.95 | EZ62: 0.95 | FA62: 0.71 | FB62: 0.71 | FC62: 0.65 | FD62: 0.65 | FE62: 0.19 | FF62: 0.19 | FG62: 0.17 | FH62: 0.17 | FI62: 1.13 | FJ62: 1.13 | FK62: 1.03 | FL62: 1.03 | FM62: 1
A63: 2 | B63: SOYA KÜSPESİ, %51 | C63: 6.622782409 | AR63: DS | AT63: Fenilalanin | AV63: =CG31 -> 0.8320051506 | BL63: ARPA, MALT ÇİLİ, KURU | BM63: 93 | BN63: 22.9 | BO63: 1592 | BP63: 0.18 | BQ63: 0.63 | BR63: =BQ63*0.3 -> 0.189 | BS63: 0.43 | BT63: 0.08 | BU63: 0 | BV63: 0.2 | BW63: 0.34 | BX63: 0.54 | BY63: =BX63*0.84 -> 0.4536 | BZ63: 1.12 | CA63: 0.9632 | CB63: 0.4 | CC63: 0.2 | CD63: 0.4 | CE63: 0.6 | CF63: 0.7 | CG63: 0.6 | CH63: 0 | CI63: 1.4 | CJ63: 0 | CK63: 14.2 | CL63: 6.51 | CM63: 15 | CN63: 0.3 | CO63: 42.535 | CP63: 19.729 | CQ63: 0.1629 | CR63: 0.26245 | CS63: 0 | CT63: 8.145 | CU63: 0 | CV63: 319.465 | CW63: 44.345 | CX63: 0.60635 | CY63: 58.825 | CZ63: 1.81 | DA63: 0 | DB63: 0 | DC63: 0 | DD63: =BV63*0.815 -> 0.163 | DE63: =CB63*0.83 -> 0.332 | DF63: =CC63*0.75 -> 0.15 | DG63: =CD63*0.88 -> 0.352 | DH63: 9 | DI63: 0 | DJ63: 10 | EA63: COBB 500, BİTİRME 2 (43 gün-) | EB63: 17 | EC63: 18 | ED63: 3203 | EE63: 3203 | EF63: 0.76 | EG63: 0.76 | EI63: 0.38 | EJ63: 0.38 | EK63: 0.15 | EL63: 0.23 | EM63: 0.15 | EN63: 0.35 | EO63: 0.41 | EP63: 0.41 | EQ63: 0.37 | ER63: 0.37 | ES63: 0.78 | ET63: 0.78 | EU63: 0.7 | EV63: 0.7 | EW63: 1 | EX63: 1 | EY63: 0.9 | EZ63: 0.9 | FA63: 0.68 | FB63: 0.68 | FC63: 0.61 | FD63: 0.61 | FE63: 0.18 | FF63: 0.18 | FG63: 0.16 | FH63: 0.16 | FI63: 1.08 | FJ63: 1.08 | FK63: 0.97 | FL63: 0.97 | FM63: 1
A64: 2 | B64: AYÇİÇEĞİ KÜSPESİ, %23HP | C64: 2.110723111 | N64: Yemin Miktarı : | AT64: Tirozin | AV64: =CH31 -> 0.6448913841 | BL64: ARPA, SAHİL | BM64: 89 | BN64: 9.2 | BO64: 2620 | BP64: 0.03 | BQ64: 0.36 | BR64: 0.16 | BS64: 0.53 | BT64: 0.02 | BU64: 0.15 | BV64: 0.13 | BW64: 0.18 | BX64: 0.31 | BY64: =BX64*0.75 -> 0.2325 | BZ64: 0.29 | CA64: 0.2494 | CB64: 0.3 | CC64: 0.12 | CD64: 0.48 | CE64: 0.4 | CF64: 0.6 | CG64: 0.48 | CH64: 0.31 | CI64: 2 | CJ64: 0.85 | CK64: 6.4 | CL64: 2.639 | CM64: 53 | CN64: 0.8 | CO64: 18.928 | CP64: 6.552 | CQ64: 0.1274 | CR64: 0.1092 | CS64: 0.3185 | CT64: 5.46 | CU64: 0 | CV64: 63.7 | CW64: 20.02 | CX64: 0.1001 | CY64: 34.58 | CZ64: 1.001 | DA64: 0 | DB64: 0 | DC64: 0 | DD64: =BV64*0.815 -> 0.10595 | DE64: =CB64*0.83 -> 0.249 | DF64: =CC64*0.75 -> 0.09 | DG64: =CD64*0.88 -> 0.4224 | DH64: 8 | DI64: 0 | DJ64: 20
A65: 3 | B65: DİKALSİYUM FOSFAT | C65: 1.764882273 | AR65: Performans | BL65: ASİT YAĞ | BM65: 100 | BN65: 0 | BO65: 6500 | BP65: 0 | BQ65: 0 | BR65: 0 | BS65: 0 | BT65: 0 | BU65: 0 | BV65: 0 | BW65: 0 | BX65: 0 | BY65: 0 | BZ65: 0 | CA65: 0 | CB65: 0 | CC65: 0 | CD65: 0 | CE65: 0 | CF65: 0 | CG65: 0 | CH65: 0 | CI65: 100 | CJ65: 58 | CK65: 0 | DH65: 50 | DI65: 0 | DJ65: 4 | EA65: NRC 0-3 haftalık BROYLER | EB65: 23 | EC65: =EB65 -> 23 | ED65: 3200 | EE65: =ED65 -> 3200 | EF65: 1 | EG65: =EF65 -> 1 | EI65: 0.45 | EJ65: =EI65 -> 0.45 | EK65: 0.2 | EL65: =EK65/0.75 -> 0.2666666667 | EM65: 0.2 | EN65: =EM65/0.75 -> 0.2666666667 | EO65: 0.5 | EP65: =EO65 -> 0.5 | ES65: 0.9 | ET65: =ES65 -> 0.9 | EW65: 1.1 | EX65: =EW65 -> 1.1 | FA65: 0.8 | FB65: =FA65 -> 0.8 | FE65: 0.2 | FF65: =FE65 -> 0.2 | FM65: 1
A66: 3 | B66: MERMER TOZU | C66: 1.312193251 | AR66: Adresleri | BL66: BAKLA | BM66: 87 | BN66: 24 | BO66: 2431 | BP66: 0.13 | BQ66: 0.54 | BR66: 0.15 | BS66: 1.2 | BT66: 0.08 | BU66: 0.04 | BV66: 0.18 | BW66: 0.28 | BX66: 0.46 | BY66: =(BV66*0.91+BW66*0.76) -> 0.3766 | BZ66: 1.5 | CA66: =BZ66*0.86 -> 1.29 | CB66: 0.85 | CC66: 0.2 | CD66: 2.12 | CE66: 0.95 | CF66: 1.76 | CG66: 1 | CH66: 0.8 | CI66: 1.4 | CJ66: 0 | CK66: 7 | CL66: 3.3 | CM66: 39 | CN66: 3 | CO66: 12 | CP66: 8 | CQ66: 1.5 | CT66: 10 | CV66: 70 | CW66: 8 | CY66: 30 | DD66: =BV66*0.815 -> 0.1467 | DE66: =CB66*0.83 -> 0.7055 | DF66: =CC66*0.75 -> 0.15 | DG66: =CD66*0.88 -> 1.8656 | DH66: 65 | DI66: 0 | DJ66: 10 | EA66: NRC 3-6 haftalık BROYLER | EB66: 20 | EC66: =EB66 -> 20 | ED66: 3200 | EE66: =ED66 -> 3200 | EF66: 0.9 | EG66: =EF66 -> 0.9 | EI66: 0.35 | EJ66: =EI66 -> 0.35 | EK66: 0.15 | EL66: =EK66/0.75 -> 0.2 | EM66: 0.15 | EN66: 0.2 | EO66: 0.38 | EP66: 0.38 | ES66: 0.72 | ET66: 0.72 | EW66: 1 | EX66: 1 | FA66: 0.74 | FB66: 0.74 | FE66: 0.18 | FF66: 0.18 | FM66: 1
A67: 3 | B67: TUZ | C67: 0.3048495737 | AR67: DT | BL67: BEZELYE | BM67: 87 | BN67: 23.8 | BO67: 2570 | BP67: 0.11 | BQ67: 0.42 | BR67: 0.15 | BS67: 1.02 | BT67: 0.04 | BU67: 0.06 | BV67: 0.24 | BW67: 0.33 | BX67: 0.57 | BY67: =BX67*0.75 -> 0.4275 | BZ67: 1.68 | CA67: =BZ67*0.86 -> 1.4448 | CB67: 0.84 | CC67: 0.18 | CD67: 2.23 | CE67: 0.97 | CF67: 1.65 | CG67: 1.1 | CH67: 0.73 | CI67: 1.3 | CJ67: 0 | CK67: 5.5 | CL67: 3.5 | CM67: 42 | CN67: 2.1 | CO67: 11 | CP67: 6 | CQ67: 1.3 | CT67: 6 | CV67: 98 | CW67: 8 | CY67: 33 | DD67: =BV67*0.815 -> 0.1956 | DE67: =CB67*0.83 -> 0.6972 | DF67: =CC67*0.75 -> 0.135 | DG67: =CD67*0.88 -> 1.9624 | DH67: 20 | DI67: 0 | DJ67: 10 | EA67: NRC 6-8 haftalık BROYLER | EB67: 18 | EC67: =EB67 -> 18 | ED67: 3200 | EE67: =ED67 -> 3200 | EF67: 0.8 | EG67: =EF67 -> 0.8 | EI67: 0.3 | EJ67: =EI67 -> 0.3 | EK67: 0.12 | EL67: 0.16 | EM67: 0.12 | EN67: 0.16 | EO67: 0.32 | EP67: 0.32 | ES67: 0.6 | ET67: 0.6 | EW67: 0.85 | EX67: 0.85 | FA67: 0.68 | FB67: 0.68 | FE67: 0.16 | FF67: 0.16 | FM67: 1
A68: 3 | B68: VİTAMİN-MİNERAL KARMASI | C68: 0.25 | AR68: DU | BL68: BİTKİSEL YAĞ | BM68: 99 | BN68: 0 | BO68: 9250 | BP68: 0 | BQ68: 0 | BR68: 0 | BS68: 0 | BT68: 0 | BU68: 0 | BV68: 0 | BW68: 0 | BX68: 0 | BY68: 0 | BZ68: 0 | CA68: 0 | CB68: 0 | CC68: 0 | CD68: 0 | CE68: 0 | CF68: 0 | CG68: 0 | CH68: 0 | CI68: 98.7 | CJ68: 51 | CK68: 0 | DH68: 50 | DI68: 0 | DJ68: 10
A69: 3 | B69: L-LİZİN hidroklorid | C69: 0.1747537836 | AR69: DV | BL69: BUĞDAY KEPEĞİ, (Devekuşu için) | BM69: 89 | BN69: 15.7 | BO69: 2804 | BP69: 0.14 | BQ69: 1.15 | BR69: 0.6 | BS69: 1.19 | BT69: 0.05 | BU69: 0.06 | BV69: 0.23 | BW69: 0.32 | BX69: 0.2 | BY69: 0.15 | BZ69: 0.61 | CA69: 0.42 | CB69: 0.34 | CC69: 0.31 | CD69: 0.85 | CE69: 0.47 | CF69: 0.96 | CG69: 0.61 | CH69: 0.46 | CI69: 3 | CJ69: 1.7 | CK69: 11 | CL69: 5.6133 | CM69: 12 | CN69: 6.5 | CO69: 37.8675 | CP69: 13.8105 | CQ69: 0.47223 | CR69: 0.18711 | CS69: 0 | CT69: 9.801 | CU69: 0 | CV69: 139.887 | CW69: 108.702 | CX69: 0.4455 | CY69: 75.735 | CZ69: 2.2275 | DA69: 0 | DB69: 0 | DC69: 0 | DD69: =BV69*0.815 -> 0.18745 | DE69: 0.28 | DF69: 0.24 | DG69: 0.79 | DH69: 7 | DI69: 0 | DJ69: 20 | EA69: ROSS 308, (≤1,6 kg CA) , BAŞLANGIÇ (0-10 gün) | EB69: 23 | EC69: =EB69 -> 23 | ED69: 3000 | EE69: =ED69 -> 3000 | EF69: 0.96 | EG69: =EF69 -> 0.96 | EI69: 0.48 | EJ69: =EI69 -> 0.48 | EK69: 0.16 | EL69: 0.23 | EM69: 0.16 | EN69: 0.23 | EO69: 0.56 | EP69: =EO69 -> 0.56 | EQ69: 0.51 | ER69: =EQ69 -> 0.51 | ES69: 1.08 | ET69: =ES69 -> 1.08 | EU69: 0.95 | EV69: =EU69 -> 0.95 | EW69: 1.44 | EX69: =EW69 -> 1.44 | EY69: 1.28 | EZ69: =EY69 -> 1.28 | FA69: 0.97 | FB69: 0.97 | FC69: 0.86 | FD69: =FC69 -> 0.86 | FE69: 0.23 | FF69: =FE69 -> 0.23 | FG69: 0.2 | FH69: =FG69 -> 0.2 | FI69: 1.52 | FJ69: =FI69 -> 1.52 | FK69: 1.37 | FL69: =FK69 -> 1.37 | FM69: 1.25
A70: 3 | B70: DL-METHİONİN | C70: 0.115395756 | AR70: DW | BL70: BUĞDAY KEPEĞİ, KABA | BM70: 89 | BN70: 15.7 | BO70: 1300 | BP70: 0.14 | BQ70: 1.15 | BR70: 0.6 | BS70: 1.19 | BT70: 0.05 | BU70: 0.06 | BV70: 0.23 | BW70: 0.32 | BX70: 0.2 | BY70: 0.15 | BZ70: 0.61 | CA70: 0.42 | CB70: 0.34 | CC70: 0.31 | CD70: 0.85 | CE70: 0.47 | CF70: 0.96 | CG70: 0.61 | CH70: 0.46 | CI70: 3 | CJ70: 1.7 | CK70: 11 | CL70: 5.6133 | CM70: 12 | CN70: 6.5 | CO70: 37.8675 | CP70: 13.8105 | CQ70: 0.47223 | CR70: 0.18711 | CS70: 0 | CT70: 9.801 | CU70: 0 | CV70: 139.887 | CW70: 108.702 | CX70: 0.4455 | CY70: 75.735 | CZ70: 2.2275 | DA70: 0 | DB70: 0 | DC70: 0 | DD70: 0.18745 | DE70: 0.28 | DF70: 0.24 | DG70: 0.79 | DH70: 7 | DI70: 0 | DJ70: 10 | EA70: ROSS 308, (≤1,6 kg CA) , BÜYÜTME (11-24 gün) | EB70: 21.5 | EC70: 21.5 | ED70: 3100 | EE70: 3100 | EF70: 0.87 | EG70: 0.87 | EI70: 0.435 | EJ70: 0.435 | EK70: 0.16 | EL70: 0.23 | EM70: 0.16 | EN70: 0.23 | EO70: 0.51 | EP70: 0.51 | EQ70: 0.47 | ER70: 0.47 | ES70: 0.99 | ET70: 0.99 | EU70: 0.87 | EV70: 0.87 | EW70: 1.29 | EX70: 1.29 | EY70: 1.15 | EZ70: 1.15 | FA70: 0.88 | FB70: 0.88 | FC70: 0.77 | FD70: 0.77 | FE70: 0.21 | FF70: 0.21 | FG70: 0.18 | FH70: 0.18 | FI70: 1.37 | FJ70: 1.37 | FK70: 1.23 | FL70: 1.23 | FM70: 1.2
A71: 3 | B71: L-TREONİN | C71: 0.02405491938 | AR71: DX | BL71: BUĞDAY KEPEĞİ,RAZMOL | BM71: 88 | BN71: 15 | BO71: 2000 | BP71: 0.12 | BQ71: 0.85 | BR71: 0.45 | BS71: 0.99 | BT71: 0.12 | BU71: 0.03 | BV71: 0.21 | BW71: 0.32 | BX71: 0.2 | BY71: 0.15 | BZ71: 0.61 | CA71: 0.42 | CB71: 0.34 | CC71: 0.31 | CD71: 0.85 | CE71: 0.58 | CF71: 1.07 | CG71: 0.64 | CH71: 0.45 | CI71: 3 | CJ71: 1.87 | CK71: 7.5 | CL71: 4.475 | CM71: 18 | CN71: 4 | CO71: 32.8465 | CP71: 10.8295 | CQ71: 0.3759 | CR71: 0.1611 | CS71: 0 | CT71: 8.95 | CU71: 0 | CV71: 141.41 | CW71: 111.875 | CX71: 0.4117 | CY71: 81.445 | CZ71: 2.2375 | DA71: 0 | DB71: 0 | DC71: 0 | DD71: 0.17115 | DE71: 0.28 | DF71: 0.24 | DG71: 0.79 | DH71: 9 | DI71: 0 | DJ71: 10 | EA71: ROSS 308, (≤1,6 kg CA) , BİTİRME (25 gün-) | EB71: 20 | EC71: 20 | ED71: 3200 | EE71: 3200 | EF71: 0.81 | EG71: 0.81 | EI71: 0.405 | EJ71: =EI71 -> 0.405 | EK71: 0.16 | EL71: 0.2 | EM71: 0.16 | EN71: 0.23 | EO71: 0.48 | EP71: 0.48 | EQ71: 0.45 | ER71: 0.45 | ES71: 0.94 | ET71: 0.94 | EU71: 0.83 | EV71: 0.83 | EW71: 1.19 | EX71: 1.19 | EY71: 1.06 | EZ71: 1.06 | FA71: 0.81 | FB71: 0.81 | FC71: 0.71 | FD71: 0.71 | FE71: 0.19 | FF71: 0.19 | FG71: 0.17 | FH71: 0.17 | FI71: 1.26 | FJ71: 1.26 | FK71: 1.13 | FL71: 1.13 | FM71: 1
A72: 3 | B72: L-TRİPTOFAN | C72: 0 | AR72: DY | BL72: BUĞDAY KEPEĞİ,RAZMOL, (Devekuşu için) | BM72: 88 | BN72: 15 | BO72: 2000 | BP72: 0.12 | BQ72: 0.85 | BR72: 0.45 | BS72: 0.99 | BT72: 0.12 | BU72: 0.03 | BV72: 0.21 | BW72: 0.32 | BX72: 0.2 | BY72: 0.15 | BZ72: 0.61 | CA72: 0.42 | CB72: 0.34 | CC72: 0.31 | CD72: 0.85 | CE72: 0.58 | CF72: 1.07 | CG72: 0.64 | CH72: 0.45 | CI72: 3 | CJ72: 1.87 | CK72: 7.5 | CL72: 4.475 | CM72: 18 | CN72: 4 | CO72: 32.8465 | CP72: 10.8295 | CQ72: 0.3759 | CR72: 0.1611 | CS72: 0 | CT72: 8.95 | CU72: 0 | CV72: 141.41 | CW72: 111.875 | CX72: 0.4117 | CY72: 81.445 | CZ72: 2.2375 | DA72: 0 | DB72: 0 | DC72: 0 | DD72: 0.17115 | DE72: 0.28 | DF72: 0.24 | DG72: 0.79 | DH72: 9 | DI72: 0 | DJ72: 15 | EA72: ROSS 308, (1,7-2,4 kg CA) , BAŞLANGIÇ (0-10 gün) | EB72: 23 | EC72: 23 | ED72: 3000 | EE72: 3000 | EF72: 0.96 | EG72: 0.96 | EI72: 0.48 | EJ72: 0.48 | EK72: 0.16 | EL72: 0.23 | EM72: 0.16 | EN72: 0.23 | EO72: 0.56 | EP72: 0.56 | EQ72: 0.51 | ER72: 0.51 | ES72: 1.08 | ET72: 1.08 | EU72: 0.95 | EV72: 0.95 | EW72: 1.44 | EX72: 1.44 | EY72: 1.28 | EZ72: 1.28 | FA72: 0.97 | FB72: 0.97 | FC72: 0.86 | FD72: 0.86 | FE72: 0.23 | FF72: 0.23 | FG72: 0.2 | FH72: 0.2 | FI72: 1.52 | FJ72: 1.52 | FK72: 1.37 | FL72: 1.37 | FM72: 1.25
A73: 0 | B73: 0 | C73: 0 | AR73: DZ | BL73: BUĞDAY UNU, BONKALİTE | BM73: 88 | BN73: 15.3 | BO73: 2568 | BP73: 0.04 | BQ73: 0.49 | BR73: 0.25 | BS73: 0.51 | BT73: 0.04 | BU73: 0.14 | BV73: 0.23 | BW73: 0.37 | BX73: 0.6 | BY73: 0.45 | BZ73: 0.59 | CA73: 0.4 | CB73: 0.5 | CC73: 0.1 | CD73: 0.96 | CE73: 0.55 | CF73: 1.06 | CG73: 0.66 | CH73: 0.46 | CI73: 3.3 | CJ73: 0 | CK73: 2.6 | CL73: 2.376 | CM73: 45 | CN73: 3.5 | CO73: 17.6 | CP73: 5.28 | CQ73: 0.3696 | CR73: 0.1584 | CS73: 0 | CT73: 8.8 | CU73: 0 | CV73: 139.04 | CW73: 110 | CX73: 0.4048 | CY73: 80.08 | CZ73: 2.2 | DA73: 0 | DB73: 0 | DC73: 0 | DD73: 0.18745 | DE73: 0.28 | DF73: 0.24 | DG73: 0.79 | DH73: 12 | DI73: 0 | DJ73: 10 | EA73: ROSS 308, (1,7-2,4 kg CA) , BÜYÜTME (11-24 gün) | EB73: 21.5 | EC73: 21.5 | ED73: 3100 | EE73: 3100 | EF73: 0.87 | EG73: 0.87 | EI73: 0.435 | EJ73: 0.435 | EK73: 0.16 | EL73: 0.23 | EM73: 0.16 | EN73: 0.23 | EO73: 0.51 | EP73: 0.51 | EQ73: 0.47 | ER73: 0.47 | ES73: 0.99 | ET73: 0.99 | EU73: 0.87 | EV73: 0.87 | EW73: 1.29 | EX73: 1.29 | EY73: 1.15 | EZ73: 1.15 | FA73: 0.88 | FB73: 0.88 | FC73: 0.77 | FD73: 0.77 | FE73: 0.21 | FF73: 0.21 | FG73: 0.18 | FH73: 0.18 | FI73: 1.37 | FJ73: 1.37 | FK73: 1.23 | FL73: 1.23 | FM73: 1.2
A74: 0 | B74: 0 | C74: 0 | BL74: BUĞDAY UNU, BONKALİTE,İNCE KEPEK | BM74: 88 | BN74: 16.5 | BO74: 2162 | BP74: 0.09 | BQ74: 0.81 | BR74: 0.4 | BS74: 0.93 | BT74: 0.02 | BU74: 0.07 | BV74: 0.27 | BW74: 0.36 | BX74: 0.63 | BY74: =(BV74*0.8+BW74*0.69) -> 0.4644 | BZ74: 0.79 | CA74: =BZ74*0.81 -> 0.6399 | CB74: 0.6 | CC74: 0.21 | CD74: 1.18 | CE74: 0.58 | CF74: 1.09 | CG74: 0.67 | CH74: 0.47 | CI74: 4.6 | CJ74: 0 | CK74: 6.8 | CL74: 2.376 | CM74: 45 | CN74: 3.5 | CO74: 17.6 | CP74: 5.28 | CQ74: 0.3696 | CR74: 0.1584 | CS74: 0 | CT74: 8.8 | CU74: 0 | CV74: 139.04 | CW74: 110 | CX74: 0.4048 | CY74: 80.08 | CZ74: 2.2 | DA74: 0 | DB74: 0 | DC74: 0 | DD74: 0.22005 | DE74: 0.28 | DF74: 0.24 | DG74: 0.79 | DH74: 11 | DI74: 0 | DJ74: 10 | EA74: ROSS 308, (1,7-2,4 kg CA) , BİTİRME (25 gün-) | EB74: 19.5 | EC74: 19.5 | ED74: 3200 | EE74: 3200 | EF74: 0.79 | EG74: 0.79 | EI74: 0.395 | EJ74: =EI74 -> 0.395 | EK74: 0.16 | EL74: 0.2 | EM74: 0.16 | EN74: 0.23 | EO74: 0.47 | EP74: 0.47 | EQ74: 0.43 | ER74: 0.43 | ES74: 0.91 | ET74: 0.91 | EU74: 0.8 | EV74: 0.8 | EW74: 1.16 | EX74: 1.16 | EY74: 1.03 | EZ74: 1.03 | FA74: 0.78 | FB74: 0.78 | FC74: 0.69 | FD74: 0.69 | FE74: 0.19 | FF74: 0.19 | FG74: 0.16 | FH74: 0.16 | FI74: 1.22 | FJ74: 1.22 | FK74: 1.1 | FL74: 1.1 | FM74: 1
A75: 0 | B75: 0 | C75: 0 | BL75: BUĞDAY, (Devekuşu için) | BM75: 87 | BN75: 14.1 | BO75: 2900 | BP75: 0.05 | BQ75: 0.37 | BR75: 0.13 | BS75: 0.45 | BT75: 0.04 | BU75: 0.05 | BV75: 0.21 | BW75: 0.3 | BX75: 0.51 | BY75: =BX75*0.87 -> 0.4437 | BZ75: 0.37 | CA75: 0.2997 | CB75: 0.39 | CC75: 0.16 | CD75: 0.6 | CE75: 0.44 | CF75: 0.89 | CG75: 0.6 | CH75: 0.43 | CI75: 2.5 | CJ75: 0.59 | CK75: 3 | CL75: 1.78 | CM75: 65 | CN75: 3.1 | CO75: 11.9796 | CP75: 3.9336 | CQ75: 0.1341 | CR75: 0.1341 | CS75: 0 | CT75: 4.47 | CU75: 0 | CV75: 64.368 | CW75: 37.548 | CX75: 0.25032 | CY75: 35.76 | CZ75: 1.1622 | DA75: 0 | DB75: 0 | DC75: 0 | DD75: 0.17115 | DE75: =CB75*0.83 -> 0.3237 | DF75: =CC75*0.75 -> 0.12 | DG75: =CD75*0.88 -> 0.528 | DH75: 10.5 | DI75: 0 | DJ75: 60 | EA75: ROSS 308, (2,5-3,0 kg CA) , BAŞLANGIÇ (0-10 gün) | EB75: 23.5 | EC75: 23.5 | ED75: 3000 | EE75: 3000 | EF75: 0.96 | EG75: 0.96 | EI75: 0.48 | EJ75: 0.48 | EK75: 0.16 | EL75: 0.23 | EM75: 0.16 | EN75: 0.23 | EO75: 0.56 | EP75: 0.56 | EQ75: 0.51 | ER75: 0.51 | ES75: 1.08 | ET75: 1.08 | EU75: 0.95 | EV75: 0.95 | EW75: 1.44 | EX75: 1.44 | EY75: 1.28 | EZ75: 1.28 | FA75: 0.97 | FB75: 0.97 | FC75: 0.86 | FD75: 0.86 | FE75: 0.23 | FF75: 0.23 | FG75: 0.2 | FH75: 0.2 | FI75: 1.52 | FJ75: 1.52 | FK75: 1.37 | FL75: 1.37 | FM75: 1.25
A76: 0 | B76: 0 | C76: 0 | BL76: BUĞDAY, KARA | BM76: 88 | BN76: 10.8 | BO76: 2660 | BP76: 0.09 | BQ76: 0.32 | BR76: 0.12 | BS76: 0.4 | BT76: 0.05 | BU76: 0.04 | BV76: 0.2 | BW76: 0.2 | BX76: 0.4 | BY76: =BX76*0.87 -> 0.348 | BZ76: 0.61 | CA76: 0.4941 | CB76: 0.46 | CC76: 0.19 | CD76: 1.02 | CE76: 0.37 | CF76: 0.56 | CG76: 0.44 | CH76: 0.21 | CI76: 2.5 | CJ76: 0 | CK76: 10.5 | CL76: 2.11 | CM76: 48 | CN76: 1.5 | CO76: 11.9796 | CP76: 3.9336 | CQ76: 0.1341 | CR76: 0.1341 | CS76: 0 | CT76: 4.47 | CU76: 0 | CV76: 64.368 | CW76: 37.548 | CX76: 0.25032 | CY76: 35.76 | CZ76: 1.1622 | DA76: 0 | DB76: 0 | DC76: 0 | DD76: 0.163 | DE76: 0.3818 | DF76: 0.1425 | DG76: 0.8976 | DH76: 10.5 | DI76: 0 | DJ76: 60 | EA76: ROSS 308, (2,5-3,0 kg CA) , BÜYÜTME (11-24 gün) | EB76: 21.5 | EC76: 21.5 | ED76: 3100 | EE76: 3100 | EF76: 0.87 | EG76: 0.87 | EI76: 0.435 | EJ76: 0.435 | EK76: 0.16 | EL76: 0.23 | EM76: 0.16 | EN76: 0.23 | EO76: 0.51 | EP76: 0.51 | EQ76: 0.47 | ER76: 0.47 | ES76: 0.99 | ET76: 0.99 | EU76: 0.87 | EV76: 0.87 | EW76: 1.29 | EX76: 1.29 | EY76: 1.15 | EZ76: 1.15 | FA76: 0.88 | FB76: 0.88 | FC76: 0.77 | FD76: 0.77 | FE76: 0.21 | FF76: 0.21 | FG76: 0.18 | FH76: 0.18 | FI76: 1.37 | FJ76: 1.37 | FK76: 1.23 | FL76: 1.23 | FM76: 1.2
A77: 0 | B77: 0 | C77: 0 | BL77: BUĞDAY,DURUM | BM77: 88 | BN77: 13.8 | BO77: 3200 | BP77: 0.1 | BQ77: 0.36 | BR77: =BQ77*0.3 -> 0.108 | BS77: 0.4 | BT77: 0.05 | BU77: 0.04 | BV77: 0.15 | BW77: 0.22 | BX77: 0.27 | BY77: =BX77*0.87 -> 0.2349 | BZ77: 1.05 | CA77: 0.8505 | CB77: 0.39 | CC77: 0.16 | CD77: 0.6 | CE77: 0.44 | CF77: 0.89 | CG77: 0.6 | CH77: 0.43 | CI77: 1.8 | CJ77: 0.81 | CK77: 2.2 | CL77: 1.78 | CM77: 65 | CN77: 3.1 | CO77: 11.9796 | CP77: 3.9336 | CQ77: 0.1341 | CR77: 0.1341 | CS77: 0 | CT77: 4.47 | CU77: 0 | CV77: 64.368 | CW77: 37.548 | CX77: 0.25032 | CY77: 35.76 | CZ77: 1.1622 | DA77: 0 | DB77: 0 | DC77: 0 | DD77: 0.12225 | DE77: 0.3237 | DF77: 0.12 | DG77: 0.528 | DH77: 10.5 | DI77: 0 | DJ77: 60 | EA77: ROSS 308, (2,5-3,0 kg CA) , BİTİRME 1 (25-39 gün) | EB77: 19.5 | EC77: 19.5 | ED77: 3200 | EE77: 3200 | EF77: 0.78 | EG77: 0.78 | EI77: 0.39 | EJ77: =EI77 -> 0.39 | EK77: 0.16 | EL77: 0.2 | EM77: 0.16 | EN77: 0.23 | EO77: 0.47 | EP77: 0.47 | EQ77: 0.43 | ER77: 0.43 | ES77: 0.9 | ET77: 0.9 | EU77: 0.8 | EV77: 0.8 | EW77: 1.15 | EX77: 1.15 | EY77: 1.02 | EZ77: 1.02 | FA77: 0.78 | FB77: 0.78 | FC77: 0.68 | FD77: 0.68 | FE77: 0.18 | FF77: 0.18 | FG77: 0.16 | FH77: 0.16 | FI77: 1.21 | FJ77: 1.21 | FK77: 1.09 | FL77: 1.09 | FM77: 1
A78: 0 | B78: 0 | C78: 0 | BL78: BUĞDAY,SERT,KIRMIZI,KIŞLIK | BM78: 87 | BN78: 14.1 | BO78: 2900 | BP78: 0.05 | BQ78: 0.37 | BR78: 0.13 | BS78: 0.45 | BT78: 0.04 | BU78: 0.05 | BV78: 0.21 | BW78: 0.3 | BX78: 0.51 | BY78: =BX78*0.87 -> 0.4437 | BZ78: 0.37 | CA78: 0.2997 | CB78: 0.39 | CC78: 0.16 | CD78: 0.6 | CE78: 0.44 | CF78: 0.89 | CG78: 0.6 | CH78: 0.43 | CI78: 2.5 | CJ78: 0.59 | CK78: 3 | CL78: 1.78 | CM78: 65 | CN78: 3.1 | CO78: 11.9796 | CP78: 3.9336 | CQ78: 0.1341 | CR78: 0.1341 | CS78: 0 | CT78: 4.47 | CU78: 0 | CV78: 64.368 | CW78: 37.548 | CX78: 0.25032 | CY78: 35.76 | CZ78: 1.1622 | DA78: 0 | DB78: 0 | DC78: 0 | DD78: 0.17115 | DE78: 0.3237 | DF78: 0.12 | DG78: 0.528 | DH78: 10.5 | DI78: 0 | DJ78: 60 | EA78: ROSS 308, (2,5-3,0 kg CA) , BİTİRME 2 (40 gün-) | EB78: 18.3 | EC78: 18.3 | ED78: 3200 | EE78: 3200 | EF78: 0.75 | EG78: 0.75 | EI78: 0.375 | EJ78: =EI78 -> 0.375 | EK78: 0.16 | EL78: 0.2 | EM78: 0.16 | EN78: 0.23 | EO78: 0.44 | EP78: 0.44 | EQ78: 0.4 | ER78: 0.4 | ES78: 0.85 | ET78: 0.85 | EU78: 0.75 | EV78: 0.75 | EW78: 1.08 | EX78: 1.08 | EY78: 0.96 | EZ78: 0.96 | FA78: 0.73 | FB78: 0.73 | FC78: 0.64 | FD78: 0.64 | FE78: 0.17 | FF78: 0.17 | FG78: 0.15 | FH78: 0.15 | FI78: 1.14 | FJ78: 1.14 | FK78: 1.03 | FL78: 1.03 | FM78: 1
A79: 0 | B79: 0 | C79: 0 | BL79: BUĞDAY,YUMUŞAK,BEYAZ,KIŞLIK | BM79: 89 | BN79: 11.5 | BO79: 3120 | BP79: 0.05 | BQ79: 0.31 | BR79: =BQ79*0.3 -> 0.093 | BS79: 0.42 | BT79: 0.06 | BU79: 0.05 | BV79: 0.15 | BW79: 0.22 | BX79: 0.37 | BY79: =BX79*0.87 -> 0.3219 | BZ79: 0.31 | CA79: 0.2511 | CB79: 0.32 | CC79: 0.12 | CD79: 0.4 | CE79: 0.42 | CF79: 0.59 | CG79: 0.45 | CH79: 0.39 | CI79: 2.5 | CJ79: 0 | CK79: 3 | CL79: 1.65 | CM79: 62 | CN79: 3 | CO79: 11.9796 | CP79: 3.9336 | CQ79: 0.1341 | CR79: 0.1341 | CS79: 0 | CT79: 4.47 | CU79: 0 | CV79: 64.368 | CW79: 37.548 | CX79: 0.25032 | CY79: 35.76 | CZ79: 1.1622 | DA79: 0 | DB79: 0 | DC79: 0 | DD79: 0.12225 | DE79: 0.2656 | DF79: 0.09 | DG79: 0.352 | DH79: 10.5 | DI79: 0 | DJ79: 60 | EA79: ROSS 308, (3,1-3,5 kg CA) , BAŞLANGIÇ (0-10 gün) | EB79: 23 | EC79: 23 | ED79: 3000 | EE79: 3000 | EF79: 0.96 | EG79: 0.96 | EI79: 0.48 | EJ79: =EI79 -> 0.48 | EK79: 0.16 | EL79: 0.23 | EM79: 0.16 | EN79: 0.23 | EO79: 0.56 | EP79: 0.56 | EQ79: 0.51 | ER79: 0.51 | ES79: 1.08 | ET79: 1.08 | EU79: 0.95 | EV79: 0.95 | EW79: 1.44 | EX79: 1.44 | EY79: 1.28 | EZ79: 1.28 | FA79: 0.97 | FB79: 0.97 | FC79: 0.86 | FD79: 0.86 | FE79: 0.23 | FF79: 0.23 | FG79: 0.2 | FH79: 0.2 | FI79: 1.52 | FJ79: 1.52 | FK79: 1.37 | FL79: 1.37 | FM79: 1.25
A80: 0 | B80: 0 | C80: 0 | BL80: ÇAVDAR | BM80: 88 | BN80: 12.1 | BO80: 2626 | BP80: 0.06 | BQ80: 0.32 | BR80: 0.06 | BS80: 0.46 | BT80: 0.02 | BU80: 0.03 | BV80: 0.17 | BW80: 0.19 | BX80: 0.36 | BY80: 0.3 | BZ80: 0.42 | CA80: 0.3 | CB80: 0.36 | CC80: 0.11 | CD80: 0.53 | CE80: 0.47 | CF80: 0.7 | CG80: 0.56 | CH80: 0.26 | CI80: 1.5 | CJ80: 0 | CK80: 2.2 | CL80: 1.72 | CM80: 58 | CN80: 3 | CO80: 11 | CP80: 3.5 | CW80: 15 | CY80: 20 | DD80: 0.13855 | DE80: 0.2988 | DF80: 0.0825 | DG80: 0.4664 | DH80: 35 | DI80: 0 | DJ80: 10 | EA80: ROSS 308, (3,1-3,5 kg CA) , BÜYÜTME (11-24 gün) | EB80: 21.5 | EC80: 21.5 | ED80: 3100 | EE80: 3100 | EF80: 0.87 | EG80: 0.87 | EI80: 0.435 | EJ80: 0.435 | EK80: 0.16 | EL80: 0.23 | EM80: 0.16 | EN80: 0.23 | EO80: 0.51 | EP80: 0.51 | EQ80: 0.47 | ER80: 0.47 | ES80: 0.99 | ET80: 0.99 | EU80: 0.87 | EV80: 0.87 | EW80: 1.29 | EX80: 1.29 | EY80: 1.15 | EZ80: 1.15 | FA80: 0.88 | FB80: 0.88 | FC80: 0.77 | FD80: 0.77 | FE80: 0.21 | FF80: 0.21 | FG80: 0.18 | FH80: 0.18 | FI80: 1.37 | FJ80: 1.37 | FK80: 1.23 | FL80: 1.23 | FM80: 1.2
A81: 0 | B81: 0 | C81: 0 | BL81: DARI | BM81: 91 | BN81: 14 | BO81: 2675 | BP81: 0.05 | BQ81: 0.32 | BR81: 0.12 | BS81: 0.43 | BT81: 0.04 | BU81: 0.14 | BV81: 0.25 | BW81: 0.24 | BX81: 0.49 | BY81: 0.3 | BZ81: 0.45 | CA81: 0.28 | CB81: 0.48 | CC81: 0.08 | CD81: 0.74 | CE81: 0.37 | CF81: 1.14 | CG81: 0.56 | CH81: 0.36 | CI81: 4.3 | CJ81: 0.84 | CK81: 3 | CL81: 3.73 | CM81: 50 | CN81: 1.3 | CO81: 14 | CP81: 12 | CQ81: 1.5 | CT81: 4.3 | CV81: 108 | CW81: 10 | CY81: 20 | DD81: 0.20375 | DE81: 0.3984 | DF81: 0.06 | DG81: 0.6512 | DH81: 40 | DI81: 0 | DJ81: 30 | EA81: ROSS 308, (3,1-3,5 kg CA) , BİTİRME 1 (25-39 gün) | EB81: 19.5 | EC81: 19.5 | ED81: 3200 | EE81: 3200 | EF81: 0.78 | EG81: 0.78 | EI81: 0.39 | EJ81: =EI81 -> 0.39 | EK81: 0.16 | EL81: 0.2 | EM81: 0.16 | EN81: 0.23 | EO81: 0.47 | EP81: 0.47 | EQ81: 0.43 | ER81: 0.43 | ES81: 0.9 | ET81: 0.9 | EU81: 0.8 | EV81: 0.8 | EW81: 1.15 | EX81: 1.15 | EY81: 1.02 | EZ81: 1.02 | FA81: 0.78 | FB81: 0.78 | FC81: 0.68 | FD81: 0.68 | FE81: 0.18 | FF81: 0.18 | FG81: 0.16 | FH81: 0.16 | FI81: 1.21 | FJ81: 1.21 | FK81: 1.09 | FL81: 1.09 | FM81: 1
A82: 0 | B82: 0 | C82: 0 | AT82: Vitaminler | AU82: Rasyon | BL82: DARI,AK | BM82: 90 | BN82: 11.6 | BO82: 2898 | BP82: 0.03 | BQ82: 0.3 | BR82: 0.14 | BS82: 0.43 | BT82: 0.04 | BU82: 0.14 | BV82: 0.16 | BW82: 0.17 | BX82: 0.33 | BY82: 0.3 | BZ82: 0.21 | CA82: 0.12 | CB82: 0.29 | CC82: 0.08 | CD82: 0.35 | CE82: 0.35 | CF82: 1.14 | CG82: 0.47 | CH82: 0.34 | CI82: 3.5 | CJ82: 0 | CK82: 6.1 | CL82: 3.73 | CM82: 50 | CN82: 1.3 | CO82: 14 | CP82: 12 | CQ82: 1.5 | CT82: 4.3 | CV82: 108 | CW82: 10 | CY82: 20 | DD82: 0.1304 | DE82: 0.2407 | DF82: 0.06 | DG82: 0.308 | DH82: 40 | DI82: 0 | DJ82: 30 | EA82: ROSS 308, (3,1-3,5 kg CA) , BİTİRME 2 (40-46 gün) | EB82: 18 | EC82: 18 | ED82: 3225 | EE82: 3225 | EF82: 0.74 | EG82: 0.74 | EI82: 0.37 | EJ82: =EI82 -> 0.37 | EK82: 0.16 | EL82: 0.2 | EM82: 0.16 | EN82: 0.23 | EO82: 0.44 | EP82: 0.44 | EQ82: 0.4 | ER82: 0.4 | ES82: 0.85 | ET82: 0.85 | EU82: 0.75 | EV82: 0.75 | EW82: 1.08 | EX82: 1.08 | EY82: 0.96 | EZ82: 0.96 | FA82: 0.73 | FB82: 0.73 | FC82: 0.64 | FD82: 0.64 | FE82: 0.17 | FF82: 0.17 | FG82: 0.15 | FH82: 0.15 | FI82: 1.15 | FJ82: 1.15 | FK82: 1.04 | FL82: 1.04 | FM82: 1
A83: 0 | B83: 0 | C83: 0 | AT83: Vit. A, IU/kg | AU83: =DA31 -> 15 | BL83: FIRIN ARTIKLARI, KURUTULMUŞ | BM83: 92 | BN83: 9.8 | BO83: 3682 | BP83: 0.13 | BQ83: 0.24 | BR83: =BQ83*0.2 -> 0.048 | BS83: 0.35 | BT83: 1.14 | BU83: 1.23 | BV83: 0.17 | BW83: 0.17 | BX83: 0.4 | BY83: 0.34 | BZ83: 0.29 | CA83: =BZ83*0.64 -> 0.1856 | CB83: 0.3 | CC83: 0.13 | CD83: 0.5 | CE83: 0.45 | CF83: 0.73 | CG83: 0.4 | CH83: 0.41 | CI83: 11.7 | CJ83: 0 | CK83: 0 | CL83: 1.9124 | CM83: 50 | CN83: 3.1 | CO83: 8 | CP83: 4 | CQ83: 0.09 | CR83: 0.11 | CS83: 0.22 | CT83: 3.75 | CU83: 0 | CV83: 190.4 | CW83: 19.89 | CX83: 0.06 | CY83: 38.73 | CZ83: 0.56 | DA83: 0 | DB83: 0 | DC83: 0 | DD83: 0.13855 | DE83: 0.21 | DF83: 0.08 | DG83: 0.4 | DH83: 45 | DI83: 0 | DJ83: 10 | EA83: ROSS 308, (3,1-3,5 kg CA) , BİTİRME 3 (47 gün-) | EB83: 17.5 | EC83: 17.5 | ED83: 3225 | EE83: 3225 | EF83: 0.73 | EG83: 0.73 | EI83: 0.365 | EJ83: =EI83 -> 0.365 | EK83: 0.16 | EL83: 0.2 | EM83: 0.16 | EN83: 0.23 | EO83: 0.42 | EP83: 0.42 | EQ83: 0.39 | ER83: 0.39 | ES83: 0.82 | ET83: 0.82 | EU83: 0.73 | EV83: 0.73 | EW83: 1.04 | EX83: 1.04 | EY83: 0.93 | EZ83: 0.93 | FA83: 0.71 | FB83: 0.71 | FC83: 0.62 | FD83: 0.62 | FE83: 0.17 | FF83: 0.17 | FG83: 0.15 | FH83: 0.15 | FI83: 1.12 | FJ83: 1.12 | FK83: 1 | FL83: 1 | FM83: 1
AT84: Vit D, IU/kg | AU84: =DB31 -> 3.3 | BL84: HAYVANSAL YAĞ | BM84: 99 | BN84: 0 | BO84: 8500 | BP84: 0 | BQ84: 0 | BR84: 0 | BS84: 0 | BT84: 0 | BU84: 0 | BV84: 0 | BW84: 0 | BX84: 0 | BY84: 0 | BZ84: 0 | CA84: 0 | CB84: 0 | CC84: 0 | CD84: 0 | CE84: 0 | CF84: 0 | CG84: 0 | CH84: 0 | CI84: 98.4 | CJ84: 3.5 | CK84: 0 | DH84: 150 | DI84: 0 | DJ84: 5 | EA84: ROSS 308, (3,6-4,0 kg CA) , BAŞLANGIÇ (0-10 gün) | EB84: 23 | EC84: 23 | ED84: 3000 | EE84: 3000 | EF84: 0.96 | EG84: 0.96 | EI84: 0.48 | EJ84: =EI84 -> 0.48 | EK84: 0.16 | EL84: 0.23 | EM84: 0.16 | EN84: 0.23 | EO84: 0.56 | EP84: 0.56 | EQ84: 0.51 | ER84: 0.51 | ES84: 1.08 | ET84: 1.08 | EU84: 0.95 | EV84: 0.95 | EW84: 1.44 | EX84: 1.44 | EY84: 1.28 | EZ84: 1.28 | FA84: 0.97 | FB84: 0.97 | FC84: 0.86 | FD84: 0.86 | FE84: 0.23 | FF84: 0.23 | FG84: 0.2 | FH84: 0.2 | FI84: 1.52 | FJ84: 1.52 | FK84: 1.37 | FL84: 1.37 | FM84: 1.25
AT85: Vit E, IU/kg | AU85: =DC31 -> 25 | BL85: MELAS | BM85: 78 | BN85: 6.6 | BO85: 1929 | BP85: 0.12 | BQ85: 0.03 | BR85: =BQ85*0.3 -> 0.009 | BS85: 4 | BT85: 1 | BU85: 1.3 | BV85: 0.05 | BW85: 0.05 | BX85: 0.1 | BY85: =BX85*0.75 -> 0.075 | BZ85: 0.04 | CA85: =BZ85*0.86 -> 0.0344 | CB85: 0.06 | CC85: 0.1 | CD85: 0.02 | CE85: 0.23 | CF85: 0.22 | CG85: 0 | CH85: 0 | CI85: 0.2 | CJ85: 0 | CK85: 0 | CL85: 8.8806 | CN85: 55.5 | CO85: 0.1 | CP85: 0.1 | CQ85: 0.22591 | CR85: 0.4674 | CS85: 0 | CT85: 17.138 | CU85: 0 | CV85: 67.773 | CW85: 51.414 | CX85: 0 | CY85: 14.022 | CZ85: 0 | DA85: 0 | DB85: 0 | DC85: 0 | DD85: =BV85*0.815 -> 0.04075 | DE85: =CB85*0.83 -> 0.0498 | DF85: =CC85*0.75 -> 0.075 | DG85: =CD85*0.88 -> 0.0176 | DH85: 35 | DI85: 0 | DJ85: 5 | EA85: ROSS 308, (3,6-4,0 kg CA) , BÜYÜTME (11-24 gün) | EB85: 21.5 | EC85: 21.5 | ED85: 3100 | EE85: 3100 | EF85: 0.87 | EG85: 0.87 | EI85: 0.435 | EJ85: 0.435 | EK85: 0.16 | EL85: 0.23 | EM85: 0.16 | EN85: 0.23 | EO85: 0.51 | EP85: 0.51 | EQ85: 0.47 | ER85: 0.47 | ES85: 0.99 | ET85: 0.99 | EU85: 0.87 | EV85: 0.87 | EW85: 1.29 | EX85: 1.29 | EY85: 1.15 | EZ85: 1.15 | FA85: 0.88 | FB85: 0.88 | FC85: 0.77 | FD85: 0.77 | FE85: 0.21 | FF85: 0.21 | FG85: 0.18 | FH85: 0.18 | FI85: 1.37 | FJ85: 1.37 | FK85: 1.23 | FL85: 1.23 | FM85: 1.2
BL86: MERCİMEK | BM86: 88 | BN86: 24.7 | BO86: 2585 | BP86: 0.1 | BQ86: 0.4 | BR86: 0.13 | BS86: 1 | BT86: 0.01 | BU86: 0.03 | BV86: 0.25 | BW86: 0.22 | BX86: 0.47 | BY86: 0.3525 | BZ86: 1.68 | CA86: 1.3 | CB86: 1.09 | CC86: 0.28 | CD86: 1.9 | CE86: 1.16 | CF86: 1.98 | CG86: 0 | CH86: 0 | CI86: 1.7 | CJ86: 0 | CK86: 4.3 | CL86: 3.17 | CM86: 32 | CO86: 11 | CP86: 5 | CQ86: 1 | CT86: 12 | CV86: 80 | CW86: 15 | CY86: 35 | DD86: 0.20375 | DE86: 0.9047 | DF86: 0.21 | DG86: 1.672 | DH86: 20 | DI86: 0 | DJ86: 10 | EA86: ROSS 308, (3,6-4,0 kg CA) , BİTİRME 1 (25-39 gün) | EB86: 19.5 | EC86: 19.5 | ED86: 3200 | EE86: 3200 | EF86: 0.78 | EG86: 0.78 | EI86: 0.39 | EJ86: =EI86 -> 0.39 | EK86: 0.16 | EL86: 0.2 | EM86: 0.16 | EN86: 0.23 | EO86: 0.47 | EP86: 0.47 | EQ86: 0.43 | ER86: 0.43 | ES86: 0.9 | ET86: 0.9 | EU86: 0.8 | EV86: 0.8 | EW86: 1.15 | EX86: 1.15 | EY86: 1.02 | EZ86: 1.02 | FA86: 0.78 | FB86: 0.78 | FC86: 0.68 | FD86: 0.68 | FE86: 0.18 | FF86: 0.18 | FG86: 0.16 | FH86: 0.16 | FI86: 1.21 | FJ86: 1.21 | FK86: 1.09 | FL86: 1.09 | FM86: 1
BL87: MISIR GRİZİ(KEPEK,GERM,NİŞASTA) | BM87: 90 | BN87: 10.4 | BO87: 2896 | BP87: 0.05 | BQ87: 0.52 | BR87: =BQ87*0.3 -> 0.156 | BS87: 0.59 | BT87: 0.08 | BU87: 0.05 | BV87: 0.13 | BW87: 0.13 | BX87: 0.26 | BY87: 0.195 | BZ87: 0.4 | CA87: 0.25 | CB87: 0.4 | CC87: 0.1 | CD87: 0.47 | CE87: 0.4 | CF87: 0.84 | CG87: 0.35 | CH87: 0.49 | CI87: 8 | CJ87: 3.75 | CK87: 5 | CL87: 2.3895 | CM87: 38 | CN87: 4 | CO87: 18.6735 | CP87: 5.487 | CQ87: 0.2301 | CR87: 0.1062 | CS87: 0 | CT87: 2.655 | CU87: 0 | CV87: 76.995 | CW87: 12.39 | CX87: 0 | CY87: 43.365 | CZ87: 1.062 | DA87: 4.4 | DB87: 0 | DC87: 0 | DD87: 0.10595 | DE87: 0.332 | DF87: 0.075 | DG87: 0.4136 | DH87: 10 | DI87: 0 | DJ87: 20 | EA87: ROSS 308, (3,6-4,0 kg CA) , BİTİRME 2 (40-51 gün) | EB87: 18 | EC87: 18 | ED87: 3225 | EE87: 3225 | EF87: 0.74 | EG87: 0.74 | EI87: 0.37 | EJ87: =EI87 -> 0.37 | EK87: 0.16 | EL87: 0.2 | EM87: 0.16 | EN87: 0.23 | EO87: 0.43 | EP87: 0.43 | EQ87: 0.4 | ER87: 0.4 | ES87: 0.84 | ET87: 0.84 | EU87: 0.74 | EV87: 0.74 | EW87: 1.07 | EX87: 1.07 | EY87: 0.95 | EZ87: 0.95 | FA87: 0.72 | FB87: 0.72 | FC87: 0.64 | FD87: 0.64 | FE87: 0.17 | FF87: 0.17 | FG87: 0.15 | FH87: 0.15 | FI87: 1.14 | FJ87: 1.14 | FK87: 1.03 | FL87: 1.03 | FM87: 1
BL88: MISIR KEPEĞİ | BM88: 89 | BN88: 9 | BO88: 1450 | BP88: 0.03 | BQ88: 0.23 | BR88: 0.13 | BS88: 0.65 | BT88: 0.03 | BU88: 0.05 | BV88: 0.15 | BW88: 0.21 | BX88: 0.36 | BY88: 0.27 | BZ88: 0.27 | CA88: 0.1 | CI88: 6 | CJ88: 3.75 | CK88: 9 | CL88: 2.69 | CM88: 33 | CN88: 2.5 | CO88: 36.5 | CP88: 11.5 | CQ88: 0.06 | CT88: 2.48 | CV88: 28 | CW88: 1 | CX88: 0.17 | CY88: 16 | DA88: 0.71 | DD88: 0.12225 | DE88: 0 | DF88: 0 | DG88: 0 | DH88: 9 | DI88: 0 | DJ88: 20 | EA88: ROSS 308, (3,6-4,0 kg CA) , BİTİRME 3 (52 gün-) | EB88: 17 | EC88: 17 | ED88: 3225 | EE88: 3225 | EF88: 0.72 | EG88: 0.72 | EI88: 0.36 | EJ88: =EI88 -> 0.36 | EK88: 0.16 | EL88: 0.2 | EM88: 0.16 | EN88: 0.23 | EO88: 0.42 | EP88: 0.42 | EQ88: 0.38 | ER88: 0.38 | ES88: 0.81 | ET88: 0.81 | EU88: 0.71 | EV88: 0.71 | EW88: 1.02 | EX88: 1.02 | EY88: 0.91 | EZ88: 0.91 | FA88: 0.69 | FB88: 0.69 | FC88: 0.61 | FD88: 0.61 | FE88: 0.16 | FF88: 0.16 | FG88: 0.15 | FH88: 0.15 | FI88: 1.09 | FJ88: 1.09 | FK88: 0.96 | FL88: 0.96 | FM88: 1
BL89: MISIR, (Devekuşu için) | BM89: 89 | BN89: 8.5 | BO89: 3560 | BP89: 0.02 | BQ89: 0.28 | BR89: 0.08 | BS89: 0.3 | BT89: 0.02 | BU89: 0.04 | BV89: 0.18 | BW89: 0.18 | BX89: 0.36 | BY89: 0.32 | BZ89: 0.26 | CA89: 0.21 | CB89: 0.29 | CC89: 0.06 | CD89: 0.38 | CE89: 0.29 | CF89: 1 | CG89: 0.38 | CH89: 0.3 | CI89: 3.8 | CJ89: 2.2 | CK89: 2.2 | CL89: 1.35 | CM89: 60.5 | CN89: 2.1 | CO89: 8.3695 | CP89: 2.9954 | CQ89: 0.10572 | CR89: 0.0881 | CS89: 0 | CT89: 2.643 | CU89: 0 | CV89: 47.574 | CW89: 9.691 | CX89: 0.06167 | CY89: 23.787 | CZ89: 0.7048 | DA89: 0 | DB89: 0 | DC89: 0 | DD89: 0.1467 | DE89: 0.2407 | DF89: 0.045 | DG89: 0.3344 | DH89: 8.5 | DI89: 0 | DJ89: 60
N90: Yemin Fiyatı : | BL90: MISIR, SARI | BM90: 89 | BN90: 8.5 | BO90: 3350 | BP90: 0.02 | BQ90: 0.28 | BR90: 0.08 | BS90: 0.3 | BT90: 0.02 | BU90: 0.04 | BV90: 0.18 | BW90: 0.18 | BX90: 0.36 | BY90: =(BV90*0.91+BW90*0.85) -> 0.3168 | BZ90: 0.26 | CA90: =BZ90*0.81 -> 0.2106 | CB90: 0.29 | CC90: 0.06 | CD90: 0.38 | CE90: 0.29 | CF90: 1 | CG90: 0.38 | CH90: 0.3 | CI90: 2.5 | CJ90: 1.82 | CK90: 2.2 | CL90: 1.35 | CM90: 65 | CN90: 2.1 | CO90: 8.3695 | CP90: 2.9954 | CQ90: 0.10572 | CR90: 0.0881 | CS90: 0 | CT90: 2.643 | CU90: 0 | CV90: 47.574 | CW90: 9.691 | CX90: 0.06167 | CY90: 23.787 | CZ90: 0.7048 | DA90: 0 | DB90: 0 | DC90: 0 | DD90: 0.1467 | DE90: 0.2407 | DF90: 0.045 | DG90: 0.3344 | DH90: 8.5 | DI90: 0 | DJ90: 70
BL91: PİRİNÇ | BM91: 89 | BN91: 8.7 | BO91: 2990 | BP91: 0.08 | BQ91: 0.08 | BR91: 0.03 | BS91: 0.13 | BT91: 0.07 | BU91: 0.08 | BV91: 0.12 | BW91: 0.11 | BX91: 0.23 | BY91: 0.15 | BZ91: 0.22 | CA91: 0.17 | CB91: 0.34 | CC91: 0.11 | CD91: 0.62 | CE91: 0.37 | CF91: 0.74 | CG91: 0.48 | CH91: 0.33 | CI91: 0.7 | CJ91: 0.6 | CK91: 9.8 | CL91: 4.53 | CM91: 40 | CN91: 4 | CO91: 14 | CP91: 0.5 | CQ91: 0.02 | CT91: 2 | CV91: 8 | CW91: 11 | CX91: 0.03 | CY91: 11.6 | DC91: 1.3 | DD91: 0.0978 | DE91: 0.27 | DF91: 0.07 | DG91: 0.5 | DH91: 12 | DI91: 0 | DJ91: 25
BL92: PİRİNÇ KEPEĞİ, KABA (EMBRİYOLU) | BM92: 91 | BN92: 12.9 | BO92: 2980 | BP92: 0.07 | BQ92: 1.5 | BR92: 0.8 | BS92: 1.73 | BT92: 0.07 | BU92: 0.07 | BV92: 0.26 | BW92: 0.27 | BX92: 0.3 | BY92: 0.22 | BZ92: 0.51 | CA92: 0.39 | CB92: 0.48 | CC92: 0.12 | CD92: 0.96 | CE92: 0.45 | CF92: 0.91 | CG92: 0.6 | CH92: 0.42 | CI92: 13 | CJ92: 3.57 | CK92: 11.4 | CL92: 9.4224 | CM92: 20 | CN92: 2.5 | CO92: 23.6466 | CP92: 11.8686 | CQ92: 0.73386 | CR92: 0.17214 | CS92: 0 | CT92: 9.06 | CU92: 0 | CV92: 216.534 | CW92: 168.516 | CX92: 0.15402 | CY92: 64.326 | CZ92: 2.5368 | DA92: 0 | DB92: 0 | DC92: 60 | DD92: 0.2119 | DE92: 0.28 | DF92: 0.13 | DG92: 0.4 | DH92: 9 | DI92: 0 | DJ92: 5
BL93: SOAPSTOCK | BM93: 100 | BN93: 0 | BO93: 6500 | BP93: 0 | BQ93: 0 | BR93: 0 | BS93: 0 | BT93: 0 | BU93: 0 | BV93: 0 | BW93: 0 | BX93: 0 | BY93: 0 | BZ93: 0 | CA93: 0 | CB93: 0 | CC93: 0 | CD93: 0 | CE93: 0 | CF93: 0 | CG93: 0 | CH93: 0 | CI93: 100 | CJ93: 63 | CK93: 0 | DH93: 35 | DI93: 0 | DJ93: 4
BL94: SORGUM, (Devekuşu için) | BM94: 87 | BN94: 8.8 | BO94: 3288 | BP94: 0.04 | BQ94: 0.32 | BR94: =BQ94*0.3 -> 0.096 | BS94: 0.33 | BT94: 0.01 | BU94: 0.09 | BV94: 0.15 | BW94: 0.11 | BX94: 0.26 | BY94: =(BV94*0.89+BW94*0.83) -> 0.2248 | BZ94: 0.22 | CA94: =BZ94*0.78 -> 0.1716 | CB94: 0.33 | CC94: 0.09 | CD94: 0.35 | CE94: 0.43 | CF94: 1.37 | CG94: 0.52 | CH94: 0.17 | CI94: 2.9 | CJ94: 1.13 | CK94: 2.3 | CL94: 1.772 | CM94: 70 | CN94: 1 | CO94: 9.6574 | CP94: 5.2274 | CQ94: 0.15062 | CR94: 0.09746 | CS94: 0 | CT94: 5.316 | CU94: 0 | CV94: 78.854 | CW94: 18.606 | CX94: 0.40756 | CY94: 22.15 | CZ94: 0.886 | DA94: 0 | DB94: 0 | DC94: 0 | DD94: =BV94*0.815 -> 0.12225 | DE94: =CB94*0.83 -> 0.2739 | DF94: =CC94*0.75 -> 0.0675 | DG94: =CD94*0.88 -> 0.308 | DH94: 100 | DI94: 0 | DJ94: 40
BL95: SORGUM, %11 HP | BM95: 88 | BN95: 11 | BO95: 3212 | BP95: 0.04 | BQ95: 0.32 | BR95: =BQ95*0.3 -> 0.096 | BS95: 0.33 | BT95: 0.01 | BU95: 0.09 | BV95: 0.15 | BW95: 0.11 | BX95: 0.26 | BY95: =(BV95*0.89+BW95*0.83) -> 0.2248 | BZ95: 0.22 | CA95: =BZ95*0.78 -> 0.1716 | CB95: 0.33 | CC95: 0.09 | CD95: 0.35 | CE95: 0.43 | CF95: 1.37 | CG95: 0.52 | CH95: 0.17 | CI95: 2.6 | CJ95: 0.82 | CK95: 2.3 | CL95: 1.772 | CM95: 70 | CN95: 1 | CO95: 9.6574 | CP95: 5.2274 | CQ95: 0.15062 | CR95: 0.09746 | CS95: 0 | CT95: 5.316 | CU95: 0 | CV95: 78.854 | CW95: 18.606 | CX95: 0.40756 | CY95: 22.15 | CZ95: 0.886 | DA95: 0 | DB95: 0 | DC95: 0 | DD95: 0.12225 | DE95: 0.2739 | DF95: 0.0675 | DG95: 0.308 | DH95: 100 | DI95: 0 | DJ95: 40
BL96: SORGUM, %8 HP | BM96: 87 | BN96: 8.8 | BO96: 3288 | BP96: 0.04 | BQ96: 0.3 | BR96: =BQ96*0.3 -> 0.09 | BS96: 0.35 | BT96: 0.01 | BU96: 0.09 | BV96: 0.16 | BW96: 0.17 | BX96: 0.33 | BY96: =(BV96*0.89+BW96*0.83) -> 0.2835 | BZ96: 0.21 | CA96: =BZ96*0.78 -> 0.1638 | CB96: 0.29 | CC96: 0.08 | CD96: 0.35 | CE96: 0.35 | CF96: 1.14 | CG96: 0.47 | CH96: 0.34 | CI96: 2.9 | CJ96: 1.13 | CK96: 2.3 | CL96: 1.772 | CM96: 70 | CN96: 1 | CO96: 9.6574 | CP96: 5.2274 | CQ96: 0.15062 | CR96: 0.09746 | CS96: 0 | CT96: 5.316 | CU96: 0 | CV96: 78.854 | CW96: 18.606 | CX96: 0.40756 | CY96: 22.15 | CZ96: 0.886 | DA96: 0 | DB96: 0 | DC96: 0 | DD96: 0.1304 | DE96: 0.2407 | DF96: 0.06 | DG96: 0.308 | DH96: 80 | DI96: 0 | DJ96: 40
BL97: ŞEK.PAN.POSASI,KURU | BM97: 91 | BN97: 8.8 | BO97: 648 | BP97: 0.63 | BQ97: 0.09 | BR97: =BQ97*0.3 -> 0.027 | BS97: 0.2 | BT97: 0.16 | BU97: 0.1 | BV97: 0.07 | BW97: 0.06 | BX97: 0.13 | BY97: =BX97*0.75 -> 0.0975 | BZ97: 0.54 | CA97: =BZ97*0.86 -> 0.4644 | CB97: 0.39 | CC97: 0.09 | CD97: 0.31 | CE97: 0.3 | CF97: 0.57 | CG97: 0 | CH97: 0 | CI97: 0.5 | CJ97: 0 | CK97: 18.2 | CL97: 5.42 | CM97: 1 | CN97: 7 | CO97: 37 | CP97: 21 | CQ97: 0.3 | CR97: 0.2649 | CS97: 0 | CT97: 9.713 | CU97: 0 | CV97: 566.886 | CW97: 54.746 | CX97: 0.12362 | CY97: 19.426 | CZ97: 1.3245 | DA97: 0 | DB97: 0 | DC97: 0 | DD97: 0.05705 | DE97: 0.3237 | DF97: 0.0675 | DG97: 0.2728 | DH97: 65 | DI97: 0 | DJ97: 5
BL98: ŞEK.PAN.POSASI,MELASLI | BM98: 92 | BN98: 9.3 | BO98: 660 | BP98: 0.56 | BQ98: 0.09 | BR98: =BQ98*0.3 -> 0.027 | BS98: 0.2 | BT98: 0.16 | BU98: 0.1 | BV98: 0.07 | BW98: 0.06 | BX98: 0.13 | BY98: 0.0975 | BZ98: 0.54 | CA98: 0.4644 | CB98: 0.39 | CC98: 0.09 | CD98: 0.31 | CE98: 0.3 | CF98: 0.57 | CG98: 0 | CH98: 0 | CI98: 0.6 | CJ98: 0 | CK98: 15.2 | CL98: 6.4459 | CM98: 1 | CN98: 7 | CO98: 40.4414 | CP98: 20.3973 | CQ98: 0.20309 | CR98: 0.2649 | CS98: 0 | CT98: 9.713 | CU98: 0 | CV98: 566.886 | CW98: 54.746 | CX98: 0.12362 | CY98: 19.426 | CZ98: 1.3245 | DA98: 0 | DB98: 0 | DC98: 0 | DD98: 0.05705 | DE98: 0.3237 | DF98: 0.0675 | DG98: 0.2728 | DH98: 70 | DI98: 0 | DJ98: 5
BL99: TAPİOKA | BM99: 85 | BN99: 2.6 | BO99: 2850 | BP99: 0.3 | BQ99: 0.19 | BR99: 0.06 | BS99: 1.1 | BT99: 0.04 | BU99: 0.1 | BV99: 0.03 | BW99: 0.03 | BX99: 0.06 | BY99: 0.045 | BZ99: 0.09 | CA99: 0.0774 | CB99: 0.07 | CC99: 0.02 | CD99: 0.12 | CE99: 0.07 | CF99: 0.12 | CG99: 0 | CH99: 0 | CI99: 0.7 | CJ99: 0 | CK99: 4.6 | CL99: 5.22 | CM99: 60 | CN99: 2.5 | CO99: 32 | CP99: 6 | CQ99: 0.13 | DD99: 0.02445 | DE99: 0.0581 | DF99: 0.015 | DG99: 0.1056 | DH99: 70 | DI99: 0 | DJ99: 15
BL100: TRİTİKALE | BM100: 90 | BN100: 14 | BO100: 3163 | BP100: 0.05 | BQ100: 0.3 | BR100: 0.1 | BS100: 0.36 | BT100: 0.03 | BU100: 0.02 | BV100: 0.26 | BW100: 0.26 | BX100: 0.52 | BY100: 0.39 | BZ100: 0.39 | CA100: 0.3354 | CB100: 0.36 | CC100: 0.14 | CD100: 0.57 | CE100: 0.39 | CF100: 0.76 | CG100: 0.49 | CH100: 0.32 | CI100: 1.5 | CJ100: 0 | CK100: 4 | CL100: 1.8601 | CM100: 53.5 | CN100: 4.7 | CO100: 15.397 | CP100: 4.5568 | CQ100: 0.2314 | CR100: 0 | CS100: 0.07743 | CT100: 8.277 | CU100: 0 | CV100: 44.5 | CW100: 42.542 | CX100: 0 | CY100: 31.239 | CZ100: 0 | DA100: 0 | DB100: 0 | DC100: 0 | DD100: 0.2119 | DE100: 0.2988 | DF100: 0.105 | DG100: 0.5016 | DH100: 20 | DI100: 0 | DJ100: 40
BL101: YULAF, (Devekuşu için) | BM101: 89 | BN101: 11.4 | BO101: 3025 | BP101: 0.06 | BQ101: 0.27 | BR101: 0.05 | BS101: 0.45 | BT101: 0.08 | BU101: 0.11 | BV101: 0.18 | BW101: 0.22 | BX101: 0.4 | BY101: =BX101*0.75 -> 0.3 | BZ101: 0.5 | CA101: 0.43 | CB101: 0.43 | CC101: 0.16 | CD101: 0.79 | CE101: 0.52 | CF101: 0.89 | CG101: 0.59 | CH101: 0.53 | CI101: 4.2 | CJ101: 1.47 | CK101: 10.8 | CL101: 2.7 | CM101: 53 | CN101: 1.2 | CO101: 27 | CP101: 13.14 | CQ101: 0.144 | CR101: 0.171 | CS101: 0.054 | CT101: 7.2 | CU101: 0 | CV101: 95.4 | CW101: 38.7 | CX101: 0.432 | CY101: 36.9 | CZ101: 1.53 | DA101: 0 | DB101: 0 | DC101: 0 | DD101: 0.1467 | DE101: 0.3569 | DF101: 0.12 | DG101: 0.6952 | DH101: 7 | DI101: 0 | DJ101: 40
BL102: YULAF, %11 HP | BM102: 89 | BN102: 11.4 | BO102: 2550 | BP102: 0.06 | BQ102: 0.27 | BR102: 0.05 | BS102: 0.45 | BT102: 0.08 | BU102: 0.11 | BV102: 0.18 | BW102: 0.22 | BX102: 0.4 | BY102: =(BV102*0.86+BW102*0.84) -> 0.3396 | BZ102: 0.5 | CA102: =BZ102*0.86 -> 0.43 | CB102: 0.43 | CC102: 0.16 | CD102: 0.79 | CE102: 0.52 | CF102: 0.89 | CG102: 0.59 | CH102: 0.53 | CI102: 4.2 | CJ102: 1.47 | CK102: 10.8 | CL102: 2.7 | CM102: 53 | CN102: 1.2 | CO102: 27 | CP102: 13.14 | CQ102: 0.144 | CR102: 0.171 | CS102: 0.054 | CT102: 7.2 | CU102: 0 | CV102: 95.4 | CW102: 38.7 | CX102: 0.432 | CY102: 36.9 | CZ102: 1.53 | DA102: 0 | DB102: 0 | DC102: 0 | DD102: 0.1467 | DE102: 0.3569 | DF102: 0.12 | DG102: 0.6952 | DH102: 7 | DI102: 0 | DJ102: 10
BL103: YULAF, %9 HP | BM103: 91 | BN103: 9 | BO103: 2610 | BP103: 0.08 | BQ103: 0.3 | BR103: =BQ103*0.3 -> 0.09 | BS103: 0.37 | BT103: 0.06 | BU103: 0.12 | BV103: 0.13 | BW103: 0.17 | BX103: 0.3 | BY103: =(BV103*0.86+BW103*0.84) -> 0.2546 | BZ103: 0.4 | CA103: =BZ103*0.86 -> 0.344 | CB103: 0.2 | CC103: 0.12 | CD103: 0.6 | CE103: 0.4 | CF103: 0.3 | CG103: 0.44 | CH103: 0.2 | CI103: 5 | CJ103: 1.47 | CK103: 11 | CL103: 2.7 | CM103: 53 | CN103: 1.2 | CO103: 27 | CP103: 13.14 | CQ103: 0.144 | CR103: 0.171 | CS103: 0.054 | CT103: 7.2 | CU103: 0 | CV103: 95.4 | CW103: 38.7 | CX103: 0.432 | CY103: 36.9 | CZ103: 1.53 | DA103: 0 | DB103: 0 | DC103: 0 | DD103: 0.10595 | DE103: 0.166 | DF103: 0.09 | DG103: 0.528 | DH103: 6.5 | DI103: 0 | DJ103: 10
BL104: ZEYTİN POSASI,KURU | BM104: 93 | BN104: 8.26 | BO104: 1200 | BP104: 0.63 | BQ104: 0.09 | BR104: 0.027 | BS104: 0.2 | BT104: 0.16 | BU104: 0.1 | BV104: 0.07 | BW104: 0.06 | BX104: 0.13 | BY104: 0.0975 | BZ104: 0.54 | CA104: 0.4644 | CB104: 0.39 | CC104: 0.09 | CD104: 0.31 | CE104: 0.3 | CF104: 0.57 | CG104: 0 | CH104: 0 | CI104: 10.11 | CJ104: 0 | CK104: 18.2 | CL104: 5.42 | CM104: 0 | CN104: 0 | CO104: 65.53 | CP104: 54.08 | CQ104: 0.3 | CR104: 0.2649 | CS104: 0 | CT104: 9713 | CU104: 0 | CV104: 566886 | CW104: 54746 | CX104: 0.12362 | CY104: 19426 | CZ104: 13245 | DA104: 0 | DB104: 0 | DC104: 0 | DD104: 0.05705 | DE104: 0.3237 | DF104: 0.0675 | DG104: 0.2728 | DH104: 45 | DI104: 0 | DJ104: 5
N116: En az :
EA135: TAVUK-YUMURTACI TİP-DAMIZLIK
EA137: BOVANS BEYAZ, DAMIZLIK, BAŞLANGIÇ (0-4 hf), 18-24ºC | EB137: 20.5 | EC137: =EB137 -> 20.5 | ED137: 2950 | EE137: 2975 | EF137: 1.05 | EG137: 1.1 | EI137: 0.48 | EJ137: =EI137 -> 0.48 | EK137: 0.16 | EL137: =EK137 -> 0.16 | EM137: 0.15 | EN137: =EM137/0.75 -> 0.2 | EO137: 0.52 | EP137: =EO137 -> 0.52 | EQ137: 0.48 | ER137: 0.48 | ES137: 0.86 | ET137: =ES137 -> 0.86 | EU137: 0.78 | EV137: =EU137 -> 0.78 | EW137: 1.16 | EX137: =EW137 -> 1.16 | EY137: 1 | EZ137: =EY137 -> 1 | FA137: 0.78 | FB137: =FA137 -> 0.78 | FC137: 0.67 | FD137: =FC137 -> 0.67 | FE137: 0.217 | FF137: =FE137 -> 0.217 | FG137: 0.186 | FH137: =FG137 -> 0.186
EA138: BOVANS BEYAZ, DAMIZLIK, BÜYÜTME (4-10 hf), 18-24ºC | EB138: 19 | EC138: =EB138 -> 19 | ED138: 2850 | EE138: 2875 | EF138: 0.9 | EG138: 1.1 | EI138: 0.42 | EJ138: 0.42 | EK138: 0.16 | EL138: 0.16 | EM138: 0.15 | EN138: =EM138/0.75 -> 0.2 | EO138: 0.45 | EP138: 0.45 | EQ138: 0.41 | ER138: 0.41 | ES138: 0.76 | ET138: =ES138 -> 0.76 | EU138: 0.66 | EV138: =EU138 -> 0.66 | EW138: 0.98 | EX138: =EW138 -> 0.98 | EY138: 0.85 | EZ138: =EY138 -> 0.85 | FA138: 0.66 | FB138: =FA138 -> 0.66 | FC138: 0.57 | FD138: =FC138 -> 0.57 | FE138: 0.194 | FF138: =FE138 -> 0.194 | FG138: 0.166 | FH138: =FG138 -> 0.166
EA139: BOVANS BEYAZ, DAMIZLIK, YARKA (10-16 hf), 18-24ºC | EB139: 16 | EC139: 16 | ED139: 2750 | EE139: =ED139 -> 2750 | EF139: 0.9 | EG139: 1 | EI139: 0.36 | EJ139: 0.36 | EK139: 0.15 | EL139: 0.15 | EM139: 0.14 | EN139: 0.1866666667 | EO139: 0.33 | EP139: 0.33 | EQ139: 0.3 | ER139: 0.3 | ES139: 0.6 | ET139: =ES139 -> 0.6 | EU139: 0.53 | EV139: =EU139 -> 0.53 | EW139: 0.74 | EX139: =EW139 -> 0.74 | EY139: 0.64 | EZ139: =EY139 -> 0.64 | FA139: 0.5 | FB139: =FA139 -> 0.5 | FC139: 0.43 | FD139: =FC139 -> 0.43 | FE139: 0.168 | FF139: =FE139 -> 0.168 | FG139: 0.145 | FH139: =FG139 -> 0.145
EA140: BOVANS BEYAZ, DAMIZLIK, ÖN YUMURTA (17 hf-%2 YV), 18-24ºC | EB140: 16.8 | EC140: 16.8 | ED140: 2750 | EE140: 2750 | EF140: 2 | EG140: 2.1 | EI140: 0.42 | EJ140: 0.42 | EK140: 0.15 | EL140: 0.15 | EM140: 0.14 | EN140: 0.1866666667 | EO140: 0.4 | EP140: 0.4 | EQ140: 0.38 | ER140: 0.38 | ES140: 0.67 | ET140: =ES140 -> 0.67 | EU140: 0.6 | EV140: =EU140 -> 0.6 | EW140: 0.8 | EX140: =EW140 -> 0.8 | EY140: 0.71 | EZ140: =EY140 -> 0.71 | FA140: 0.56 | FB140: =FA140 -> 0.56 | FC140: 0.48 | FD140: =FC140 -> 0.48 | FE140: 0.181 | FF140: =FE140 -> 0.181 | FG140: 0.155 | FH140: =FG140 -> 0.155
EA141: BOVANS BEYAZ, DAMIZLIK, YUMURTA (%2 YV-28 hf) (GYT 105 g) | EB141: 19 | EC141: 19 | ED141: 2800 | EE141: 2900 | EF141: 3.9 | EG141: 4.1 | EI141: 0.45 | EJ141: 0.45 | EK141: 0.18 | EL141: 0.18 | EM141: 0.17 | EN141: 0.26 | EO141: 0.48 | EP141: 0.48 | EQ141: 0.45 | ER141: 0.45 | ES141: 0.76 | ET141: =ES141 -> 0.76 | EU141: 0.69 | EV141: =EU141 -> 0.69 | EW141: 0.95 | EX141: =EW141 -> 0.95 | EY141: 0.84 | EZ141: =EY141 -> 0.84 | FA141: 0.59 | FB141: =FA141 -> 0.59 | FC141: 0.59 | FD141: =FC141 -> 0.59 | FE141: 0.221 | FF141: =FE141 -> 0.221 | FG141: 0.189 | FH141: =FG141 -> 0.189
N142: En çok : | EA142: BOVANS BEYAZ, DAMIZLIK, YUMURTA (%2 YV-28 hf) (GYT 110 g) | EB142: 18.4 | EC142: 18.4 | ED142: 2800 | EE142: 2900 | EF142: 3.8 | EG142: 4 | EI142: 0.43 | EJ142: 0.43 | EK142: 0.17 | EL142: 0.17 | EM142: 0.16 | EN142: 0.25 | EO142: 0.46 | EP142: 0.46 | EQ142: 0.43 | ER142: 0.43 | ES142: 0.73 | ET142: =ES142 -> 0.73 | EU142: 0.66 | EV142: =EU142 -> 0.66 | EW142: 0.91 | EX142: =EW142 -> 0.91 | EY142: 0.8 | EZ142: =EY142 -> 0.8 | FA142: 0.57 | FB142: =FA142 -> 0.57 | FC142: 0.57 | FD142: =FC142 -> 0.57 | FE142: 0.21 | FF142: =FE142 -> 0.21 | FG142: 0.18 | FH142: =FG142 -> 0.18
EA143: BOVANS BEYAZ, DAMIZLIK, YUMURTA (%2 YV-28 hf) (GYT 115 g) | EB143: 17.8 | EC143: 17.8 | ED143: 2800 | EE143: 2900 | EF143: 3.6 | EG143: 3.8 | EI143: 0.41 | EJ143: 0.41 | EK143: 0.16 | EL143: 0.16 | EM143: 0.16 | EN143: 0.24 | EO143: 0.44 | EP143: 0.44 | EQ143: 0.41 | ER143: 0.41 | ES143: 0.7 | ET143: =ES143 -> 0.7 | EU143: 0.63 | EV143: =EU143 -> 0.63 | EW143: 0.87 | EX143: =EW143 -> 0.87 | EY143: 0.77 | EZ143: =EY143 -> 0.77 | FA143: 0.54 | FB143: =FA143 -> 0.54 | FC143: 0.54 | FD143: =FC143 -> 0.54 | FE143: 0.201 | FF143: =FE143 -> 0.201 | FG143: 0.172 | FH143: =FG143 -> 0.172
EA144: BOVANS BEYAZ, DAMIZLIK, YUMURTA (%2 YV-28 hf) (GYT 120 g) | EB144: 17.2 | EC144: 17.2 | ED144: 2800 | EE144: 2900 | EF144: 3.4 | EG144: 3.6 | EI144: 0.39 | EJ144: 0.39 | EK144: 0.16 | EL144: 0.16 | EM144: 0.15 | EN144: 0.23 | EO144: 0.42 | EP144: 0.42 | EQ144: 0.39 | ER144: 0.39 | ES144: 0.67 | ET144: =ES144 -> 0.67 | EU144: 0.6 | EV144: =EU144 -> 0.6 | EW144: 0.83 | EX144: =EW144 -> 0.83 | EY144: 0.74 | EZ144: =EY144 -> 0.74 | FA144: 0.52 | FB144: =FA144 -> 0.52 | FC144: 0.52 | FD144: =FC144 -> 0.52 | FE144: 0.193 | FF144: =FE144 -> 0.193 | FG144: 0.165 | FH144: =FG144 -> 0.165
EA145: BOVANS BEYAZ, DAMIZLIK, YUMURTA (%2 YV-28 hf) (GYT 125 g) | EB145: 16.6 | EC145: 16.6 | ED145: 2800 | EE145: 2900 | EF145: 3.3 | EG145: 3.5 | EI145: 0.37 | EJ145: 0.37 | EK145: 0.15 | EL145: 0.15 | EM145: 0.15 | EN145: 0.22 | EO145: 0.4 | EP145: 0.4 | EQ145: 0.38 | ER145: 0.38 | ES145: 0.64 | ET145: =ES145 -> 0.64 | EU145: 0.58 | EV145: =EU145 -> 0.58 | EW145: 0.8 | EX145: =EW145 -> 0.8 | EY145: 0.71 | EZ145: =EY145 -> 0.71 | FA145: 0.5 | FB145: =FA145 -> 0.5 | FC145: 0.5 | FD145: =FC145 -> 0.5 | FE145: 0.185 | FF145: =FE145 -> 0.185 | FG145: 0.158 | FH145: =FG145 -> 0.158
EA146: BOVANS BEYAZ, DAMIZLIK, YUMURTA (28 hf-) (GYT 105 g) | EB146: 18.2 | EC146: 18.2 | ED146: 2800 | EE146: 2900 | EF146: 3.9 | EG146: 4.1 | EI146: 0.4 | EJ146: 0.4 | EK146: 0.17 | EL146: 0.17 | EM146: 0.16 | EN146: 0.25 | EO146: 0.45 | EP146: 0.45 | EQ146: 0.42 | ER146: 0.42 | ES146: 0.72 | ET146: =ES146 -> 0.72 | EU146: 0.65 | EV146: =EU146 -> 0.65 | EW146: 0.9 | EX146: =EW146 -> 0.9 | EY146: 0.8 | EZ146: =EY146 -> 0.8 | FA146: 0.66 | FB146: =FA146 -> 0.66 | FC146: 0.56 | FD146: =FC146 -> 0.56 | FE146: 0.208 | FF146: =FE146 -> 0.208 | FG146: 0.178 | FH146: =FG146 -> 0.178
EA147: BOVANS BEYAZ, DAMIZLIK, YUMURTA (28 hf-) (GYT 110 g) | EB147: 17.6 | EC147: 17.6 | ED147: 2800 | EE147: 2900 | EF147: 3.7 | EG147: 3.9 | EI147: 0.38 | EJ147: 0.38 | EK147: 0.16 | EL147: 0.16 | EM147: 0.16 | EN147: 0.24 | EO147: 0.43 | EP147: 0.43 | EQ147: 0.4 | ER147: 0.4 | ES147: 0.69 | ET147: =ES147 -> 0.69 | EU147: 0.62 | EV147: =EU147 -> 0.62 | EW147: 0.85 | EX147: =EW147 -> 0.85 | EY147: 0.76 | EZ147: =EY147 -> 0.76 | FA147: 0.63 | FB147: =FA147 -> 0.63 | FC147: 0.53 | FD147: =FC147 -> 0.53 | FE147: 0.199 | FF147: =FE147 -> 0.199 | FG147: 0.17 | FH147: =FG147 -> 0.17
EA148: BOVANS BEYAZ, DAMIZLIK, YUMURTA (28 hf-) (GYT 115 g) | EB148: 17 | EC148: 17 | ED148: 2800 | EE148: 2900 | EF148: 3.6 | EG148: 3.8 | EI148: 0.37 | EJ148: 0.37 | EK148: 0.16 | EL148: 0.16 | EM148: 0.15 | EN148: 0.23 | EO148: 0.41 | EP148: 0.41 | EQ148: 0.39 | ER148: 0.39 | ES148: 0.66 | ET148: =ES148 -> 0.66 | EU148: 0.59 | EV148: =EU148 -> 0.59 | EW148: 0.82 | EX148: =EW148 -> 0.82 | EY148: 0.73 | EZ148: =EY148 -> 0.73 | FA148: 0.6 | FB148: =FA148 -> 0.6 | FC148: 0.51 | FD148: =FC148 -> 0.51 | FE148: 0.19 | FF148: =FE148 -> 0.19 | FG148: 0.163 | FH148: =FG148 -> 0.163
EA149: BOVANS BEYAZ, DAMIZLIK, YUMURTA (28 hf-) (GYT 120 g) | EB149: 16.5 | EC149: 16.5 | ED149: 2800 | EE149: 2900 | EF149: 3.4 | EG149: 3.6 | EI149: 0.35 | EJ149: 0.35 | EK149: 0.15 | EL149: 0.15 | EM149: 0.14 | EN149: 0.22 | EO149: 0.39 | EP149: 0.39 | EQ149: 0.37 | ER149: 0.37 | ES149: 0.63 | ET149: =ES149 -> 0.63 | EU149: 0.57 | EV149: =EU149 -> 0.57 | EW149: 0.78 | EX149: =EW149 -> 0.78 | EY149: 0.7 | EZ149: =EY149 -> 0.7 | FA149: 0.57 | FB149: =FA149 -> 0.57 | FC149: 0.49 | FD149: =FC149 -> 0.49 | FE149: 0.182 | FF149: =FE149 -> 0.182 | FG149: 0.156 | FH149: =FG149 -> 0.156
EA150: BOVANS BEYAZ, DAMIZLIK, YUMURTA (28 hf-) (GYT 125 g) | EB150: 15.9 | EC150: 15.9 | ED150: 2800 | EE150: 2900 | EF150: 3.3 | EG150: 3.5 | EI150: 0.34 | EJ150: 0.34 | EK150: 0.14 | EL150: 0.14 | EM150: 0.14 | EN150: 0.21 | EO150: 0.38 | EP150: 0.38 | EQ150: 0.35 | ER150: 0.35 | ES150: 0.6 | ET150: =ES150 -> 0.6 | EU150: 0.55 | EV150: =EU150 -> 0.55 | EW150: 0.75 | EX150: =EW150 -> 0.75 | EY150: 0.67 | EZ150: =EY150 -> 0.67 | FA150: 0.55 | FB150: =FA150 -> 0.55 | FC150: 0.47 | FD150: =FC150 -> 0.47 | FE150: 0.175 | FF150: =FE150 -> 0.175 | FG150: 0.15 | FH150: =FG150 -> 0.15
EA152: LOHMANN LSL ve BROWN, DAMIZLIK, BAŞLANGIÇ (1-3 hf) | EB152: 20 | EC152: =EB152 -> 20 | ED152: 2900 | EE152: =ED152 -> 2900 | EF152: 1.05 | EG152: =EF152 -> 1.05 | EH152: 0.75 | EI152: 0.48 | EJ152: =EI152 -> 0.48 | EK152: 0.18 | EL152: =EK152/0.75 -> 0.24 | EM152: 0.2 | EN152: =EM152/0.75 -> 0.2666666667 | EO152: 0.48 | EP152: 0.48 | EQ152: 0.39 | ER152: =EQ152 -> 0.39 | ES152: 0.83 | ET152: =ES152 -> 0.83 | EU152: 0.68 | EV152: =EU152 -> 0.68 | EW152: 1.2 | EX152: =EW152 -> 1.2 | EY152: 0.98 | EZ152: =EY152 -> 0.98 | FA152: 0.8 | FB152: =FA152 -> 0.8 | FC152: 0.65 | FD152: =FC152 -> 0.65 | FE152: 0.23 | FF152: =FE152 -> 0.23 | FG152: 0.19 | FH152: =FG152 -> 0.19 | FM152: 2
EA153: LOHMANN LSL ve BROWN, DAMIZLIK, BÜYÜTME (4-8 hf) | EB153: 18.5 | EC153: =EB153 -> 18.5 | ED153: 2720 | EE153: 2800 | EF153: 1 | EG153: 1 | EH153: 0.7 | EI153: 0.45 | EJ153: 0.45 | EK153: 0.17 | EL153: 0.2266666667 | EM153: 0.19 | EN153: 0.2533333333 | EO153: 0.4 | EP153: 0.4 | EQ153: 0.33 | ER153: =EQ153 -> 0.33 | ES153: 0.7 | ET153: =ES153 -> 0.7 | EU153: 0.57 | EV153: =EU153 -> 0.57 | EW153: 1 | EX153: =EW153 -> 1 | EY153: 0.82 | EZ153: =EY153 -> 0.82 | FA153: 0.7 | FB153: =FA153 -> 0.7 | FC153: 0.57 | FD153: =FC153 -> 0.57 | FE153: 0.21 | FF153: =FE153 -> 0.21 | FG153: 0.17 | FH153: =FG153 -> 0.17 | FM153: 1.4
EA154: LOHMANN LSL ve BROWN, DAMIZLIK, GELİŞTİRME (9-17/18 hf) | EB154: 15 | EC154: 15 | ED154: 2720 | EE154: 2800 | EF154: 0.9 | EG154: 0.9 | EH154: 0.58 | EI154: 0.37 | EJ154: 0.37 | EK154: 0.16 | EL154: 0.2133333333 | EM154: 0.16 | EN154: 0.2133333333 | EO154: 0.34 | EP154: 0.34 | EQ154: 0.28 | ER154: =EQ154 -> 0.28 | ES154: 0.6 | ET154: =ES154 -> 0.6 | EU154: 0.5 | EV154: =EU154 -> 0.5 | EW154: 0.68 | EX154: =EW154 -> 0.68 | EY154: 0.55 | EZ154: =EY154 -> 0.55 | FA154: 0.55 | FB154: =FA154 -> 0.55 | FC154: 0.44 | FD154: =FC154 -> 0.44 | FE154: 0.17 | FF154: =FE154 -> 0.17 | FG154: 0.14 | FH154: =FG154 -> 0.14 | FM154: 1
EA155: LOHMANN LSL ve BROWN, DAMIZLIK, ÖN YUMURTA (18/19 hf-%5 YV) | EB155: 17.7 | EC155: 17.7 | ED155: 2720 | EE155: 2800 | EF155: 2 | EG155: 2 | EH155: 0.65 | EI155: 0.45 | EJ155: 0.45 | EK155: 0.16 | EL155: 0.2133333333 | EM155: 0.16 | EN155: 0.2133333333 | EO155: 0.36 | EP155: 0.36 | EQ155: 0.29 | ER155: =EQ155 -> 0.29 | ES155: 0.68 | ET155: =ES155 -> 0.68 | EU155: 0.56 | EV155: =EU155 -> 0.56 | EW155: 0.85 | EX155: =EW155 -> 0.85 | EY155: 0.7 | EZ155: =EY155 -> 0.7 | FA155: 0.6 | FB155: =FA155 -> 0.6 | FC155: 0.49 | FD155: =FC155 -> 0.49 | FE155: 0.2 | FF155: =FE155 -> 0.2 | FG155: 0.16 | FH155: =FG155 -> 0.16 | FM155: 1
EA156: LOHMANN LSL ve BROWN, DAMIZLIK, YUMURTA (20-50 hf) (GYT 100 g) | EB156: 19.2 | EC156: 19.2 | ED156: 2720 | EE156: 2800 | EF156: 4.1 | EG156: 4.1 | EH156: 0.63 | EI156: 0.44 | EJ156: 0.44 | EK156: 0.17 | EL156: 0.2266666667 | EM156: 0.17 | EN156: 0.2266666667 | EO156: 0.44 | EP156: 0.44 | EQ156: 0.36 | ER156: =EQ156 -> 0.36 | ES156: 0.8 | ET156: =ES156 -> 0.8 | EU156: 0.65 | EV156: =EU156 -> 0.65 | EW156: 0.87 | EX156: =EW156 -> 0.87 | EY156: 0.71 | EZ156: =EY156 -> 0.71 | FA156: 0.61 | FB156: =FA156 -> 0.61 | FC156: 0.5 | FD156: =FC156 -> 0.5 | FE156: 0.18 | FF156: =FE156 -> 0.18 | FG156: 0.15 | FH156: =FG156 -> 0.15 | FI156: 0.92 | FJ156: =FI156 -> 0.92 | FK156: 0.75 | FL156: =FK156 -> 0.75 | FM156: 2
EA157: LOHMANN LSL ve BROWN, DAMIZLIK, YUMURTA (50 hf-) (GYT 100 g) | EB157: 18.4 | EC157: 18.4 | ED157: 2720 | EE157: 2800 | EF157: 4.3 | EG157: 4.3 | EH157: 0.54 | EI157: 0.38 | EJ157: 0.38 | EK157: 0.17 | EL157: 0.2266666667 | EM157: 0.17 | EN157: 0.2266666667 | EO157: 0.44 | EP157: 0.44 | EQ157: 0.36 | ER157: =EQ157 -> 0.36 | ES157: 0.79 | ET157: =ES157 -> 0.79 | EU157: 0.64 | EV157: =EU157 -> 0.64 | EW157: 0.85 | EX157: =EW157 -> 0.85 | EY157: 0.7 | EZ157: =EY157 -> 0.7 | FA157: 0.6 | FB157: =FA157 -> 0.6 | FC157: 0.49 | FD157: =FC157 -> 0.49 | FE157: 0.18 | FF157: =FE157 -> 0.18 | FG157: 0.15 | FH157: =FG157 -> 0.15 | FI157: 0.9 | FJ157: =FI157 -> 0.9 | FK157: 0.74 | FL157: =FK157 -> 0.74 | FM157: 1.6
EA159: HY-LINE, DAMIZLIK, BAŞLANGIÇ (0-6 hf) | EB159: 20 | EC159: =EB159 -> 20 | ED159: 2915 | EE159: 3025 | EF159: 1 | EG159: =EF159 -> 1 | EH159: 0.75 | EI159: 0.45 | EJ159: =EI159 -> 0.45 | EK159: 0.18 | EL159: =EK159/0.75 -> 0.24 | EM159: 0.16 | EN159: =EM159/0.75 -> 0.2133333333 | EO159: 0.46 | EP159: 0.46 | ES159: 0.82 | ET159: =ES159 -> 0.82 | EW159: 1.1 | EX159: =EW159 -> 1.1 | FA159: 0.75 | FB159: =FA159 -> 0.75 | FE159: 0.22 | FF159: =FE159 -> 0.22 | FM159: 1
EA160: HY-LINE, DAMIZLIK, BÜYÜTME (6-8 hf) | EB160: 18 | EC160: =EB160 -> 18 | ED160: 2970 | EE160: 3080 | EF160: 1 | EG160: =EF160 -> 1 | EH160: 0.72 | EI160: 0.45 | EJ160: =EI160 -> 0.45 | EK160: 0.18 | EL160: 0.24 | EM160: 0.16 | EN160: 0.2133333333 | EO160: 0.44 | EP160: 0.44 | ES160: 0.73 | ET160: =ES160 -> 0.73 | EW160: 0.9 | EX160: =EW160 -> 0.9 | FA160: 0.7 | FB160: =FA160 -> 0.7 | FE160: 0.2 | FF160: =FE160 -> 0.2 | FM160: 1
EA161: HY-LINE, DAMIZLIK, GELİŞTİRME (8-15 hf) | EB161: 16 | EC161: 16 | ED161: 3025 | EE161: 3135 | EF161: 1 | EG161: 1 | EH161: 0.7 | EI161: 0.4 | EJ161: 0.4 | EK161: 0.17 | EL161: 0.2266666667 | EM161: 0.15 | EN161: 0.2 | EO161: 0.4 | EP161: 0.4 | ES161: 0.66 | ET161: =ES161 -> 0.66 | EW161: 0.75 | EX161: =EW161 -> 0.75 | FA161: 0.6 | FB161: =FA161 -> 0.6 | FE161: 0.16 | FF161: =FE161 -> 0.16 | FM161: 1
EA162: HY-LINE, DAMIZLIK, ÖN YUMURTA (15-18 hf) | EB162: 15.5 | EC162: 15.5 | ED162: 2970 | EE162: 3080 | EF162: 2.75 | EG162: 2.75 | EH162: 0.6 | EI162: 0.4 | EJ162: 0.4 | EK162: 0.18 | EL162: 0.24 | EM162: 0.16 | EN162: 0.2133333333 | EO162: 0.36 | EP162: 0.36 | ES162: 0.6 | ET162: =ES162 -> 0.6 | EW162: 0.7 | EX162: =EW162 -> 0.7 | FA162: 0.55 | FB162: =FA162 -> 0.55 | FE162: 0.15 | FF162: =FE162 -> 0.15 | FM162: 1
BL163: PROTEİN KAYNAKLARI | BM163: KM | BN163: HP | BO163: ME | BP163: Ca | BQ163: Top.P | BR163: Kul.P | BS163: K | BT163: Na | BU163: Cl | BV163: Metionin | BW163: Sistin | BX163: Met+Sis | BY163: Kul.Met+Sis | BZ163: Lizin | CA163: Kul.Lizin | CB163: Treonin | CC163: Triptofan | CD163: Arjinin | CE163: İzolöysin | CF163: Löysin | CG163: Fenilalanin | CH163: Tirozin | CI163: HY | CJ163: Linoleik | CK163: HS | CL163: HK | CM163: Nişasta | CN163: Şeker | CO163: NDF | CP163: ADF | CQ163: Mg | CR163: S | CS163: Co | CT163: Cu | CU163: I | CV163: Fe | CW163: Mn | CX163: Se | CY163: Zn | CZ163: Mo | DA163: Vit A,1000 IU/kg | DB163: Vit D,1000 IU/kg | DC163: Vit E,IU/kg | DD163: Sin.Met. | DE163: Sin.Treonin | DF163: Sin.Triptofan | DG163: Sin.Arjinin | DH163: Fiat,TL | DI163: Enaz | DJ163: Ençok | EA163: HY-LINE, DAMIZLIK, PİK ÖNCESİ YUMURTA (18 hf-%50 YV) | EB163: 17.5 | EC163: 17.5 | ED163: 2948 | EE163: 2970 | EF163: 3.75 | EG163: 3.75 | EH163: 0.65 | EI163: 0.46 | EJ163: 0.46 | EK163: 0.21 | EL163: 0.28 | EM163: 0.2 | EN163: 0.2666666667 | EO163: 0.51 | EP163: 0.51 | ES163: 0.82 | ET163: =ES163 -> 0.82 | EW163: 0.92 | EX163: =EW163 -> 0.92 | FA163: 0.68 | FB163: =FA163 -> 0.68 | FE163: 0.17 | FF163: =FE163 -> 0.17 | FM163: 1.5
BL164: ASPİR KÜSPESİ | BM164: 92 | BN164: 27 | BO164: 1193 | BP164: 0.34 | BQ164: 0.75 | BR164: =BQ164*0.3 -> 0.225 | BS164: 0.76 | BT164: 0.05 | BU164: 0.16 | BV164: 0.42 | BW164: 0.45 | BX164: 0.87 | BY164: =(BV164*0.93+BW164*0.78) -> 0.7416 | BZ164: 0.9 | CA164: =BZ164*0.86 -> 0.774 | CB164: 0.85 | CC164: 0.37 | CD164: 2.21 | CE164: 1.02 | CF164: 1.74 | CG164: 1.1 | CH164: 0.71 | CI164: 1.4 | CJ164: 0 | CK164: 30 | CL164: 4.7 | CM164: 5 | CO164: 50.303 | CP164: 36.5585 | CQ164: 0.58905 | CR164: 0.36465 | CS164: 0 | CT164: 29.92 | CU164: 0 | CV164: 278.63 | CW164: 42.075 | CX164: 0.4675 | CY164: 82.28 | CZ164: 2.5245 | DA164: 0 | DB164: 0 | DC164: 0 | DD164: =BV164*0.815 -> 0.3423 | DE164: =CB164*0.83 -> 0.7055 | DF164: =CC164*0.75 -> 0.2775 | DG164: =CD164*0.88 -> 1.9448 | DH164: 8.5 | DI164: 0 | DJ164: 20 | EA164: HY-LINE W-36, DAMIZLIK, PİK YUMURTA (% 50 YV-32 hf)(GYT 86 g) | EB164: 18.55 | EC164: =EB164 -> 18.55 | ED164: 2838 | EE164: 2915 | EF164: 4.25 | EG164: =EF164 -> 4.25 | EH164: 0.78 | EI164: 0.52 | EJ164: =EI164 -> 0.52 | EK164: 0.2 | EL164: 0.2666666667 | EO164: 0.51 | EP164: 0.51 | ES164: 0.84 | ET164: =ES164 -> 0.84 | EW164: 0.96 | EX164: =EW164 -> 0.96 | FE164: 0.21 | FF164: =FE164 -> 0.21
BL165: ASPİR KÜSPESİ,KABUKSUZ | BM165: 92 | BN165: 43 | BO165: 1921 | BP165: 0.35 | BQ165: 1.29 | BR165: 0.39 | BS165: 1.1 | BT165: 0.04 | BU165: 0.16 | BV165: 0.68 | BW165: 0.7 | BX165: 1.38 | BY165: =(BV165*0.93+BW165*0.78) -> 1.1784 | BZ165: 1.27 | CA165: =BZ165*0.84 -> 1.0668 | CB165: 1.3 | CC165: 0.59 | CD165: 3.65 | CE165: 1.56 | CF165: 2.46 | CG165: 1.75 | CH165: 1.07 | CI165: 1.3 | CJ165: 0 | CK165: 13.5 | CL165: 4.7 | CM165: 5 | CO165: 50.303 | CP165: 36.5585 | CQ165: 0.58905 | CR165: 0.36465 | CS165: 0 | CT165: 29.92 | CU165: 0 | CV165: 278.63 | CW165: 42.075 | CX165: 0.4675 | CY165: 82.28 | CZ165: 2.5245 | DA165: 0 | DB165: 0 | DC165: 0 | DD165: 0.5542 | DE165: 1.079 | DF165: 0.4425 | DG165: 3.212 | DH165: 8.5 | DI165: 0 | DJ165: 30 | EA165: HY-LINE W-36, DAMIZLIK, YUMURTA (32-44 hf)(GYT 91 g) | EB165: 17.35 | EC165: 17.35 | ED165: 2838 | EE165: 2935 | EF165: 4.2 | EG165: =EF165 -> 4.2 | EH165: 0.74 | EI165: 0.46 | EJ165: =EI165 -> 0.46 | EK165: 0.19 | EL165: 0.2533333333 | EO165: 0.46 | EP165: 0.46 | ES165: 0.76 | ET165: =ES165 -> 0.76 | EW165: 0.88 | EX165: =EW165 -> 0.88 | FE165: 0.2 | FF165: =FE165 -> 0.2
BL166: AYÇİÇEĞİ KÜSPESİ,KABUKSUZ, %36 HP | BM166: 89.8 | BN166: 36.8 | BO166: 1543 | BP166: 0.21 | BQ166: 0.93 | BR166: 0.14 | BS166: 0.96 | BT166: 0.2 | BU166: 0.11 | BV166: 0.8 | BW166: 0.64 | BX166: 1.44 | BY166: =BX166*0.75 -> 1.08 | BZ166: 1.24 | CA166: =BZ166*0.86 -> 1.0664 | CB166: 1.29 | CC166: 0.41 | CD166: 2.85 | CE166: 1.43 | CF166: 2.22 | CG166: 1.66 | CH166: 0.91 | CI166: 0 | CJ166: 0 | CK166: 14 | CL166: 7.2 | CM166: 5 | CN166: 5.5 | CO166: 29.504 | CP166: 20.284 | CQ166: 0.58905 | CR166: 0.36465 | CS166: 0 | CT166: 29.92 | CU166: 0 | CV166: 278.63 | CW166: 42.075 | CX166: 0.4675 | CY166: 82.28 | CZ166: 2.5245 | DA166: 0 | DB166: 0 | DC166: 0 | DD166: 0.652 | DE166: 1.0707 | DF166: 0.3075 | DG166: 2.508 | DH166: 13 | DI166: 0 | DJ166: 30 | EA166: HY-LINE W-36, DAMIZLIK, YUMURTA (44-55 hf)(GYT 100 g) | EB166: 15.5 | EC166: 15.5 | ED166: 2816 | EE166: 2915 | EF166: 4 | EG166: =EF166 -> 4 | EH166: 0.55 | EI166: 0.4 | EJ166: =EI166 -> 0.4 | EK166: 0.18 | EL166: 0.24 | EO166: 0.38 | EP166: 0.38 | ES166: 0.62 | ET166: =ES166 -> 0.62 | EW166: 0.77 | EX166: =EW166 -> 0.77 | FE166: 0.17 | FF166: =FE166 -> 0.17
BL167: AYÇİÇEĞİ KÜSPESİ,KABUKSUZ, %45 HP | BM167: 93 | BN167: 45.4 | BO167: 2320 | BP167: 0.37 | BQ167: 1 | BR167: 0.16 | BS167: 1 | BT167: 0.2 | BU167: 0.1 | BV167: 1.5 | BW167: 0.7 | BX167: 2.2 | BY167: 1.65 | BZ167: 1.7 | CA167: 1.462 | CB167: 1.5 | CC167: 0.5 | CD167: 3.5 | CE167: 2.1 | CF167: 2.6 | CG167: 2.2 | CH167: 0 | CI167: 2.9 | CJ167: 1.59 | CK167: 12.2 | CL167: 7.2 | CM167: 5 | CN167: 5.5 | CO167: 29.504 | CP167: 20.284 | CQ167: 0.58905 | CR167: 0.36465 | CS167: 0 | CT167: 29.92 | CU167: 0 | CV167: 278.63 | CW167: 42.075 | CX167: 0.4675 | CY167: 82.28 | CZ167: 2.5245 | DA167: 0 | DB167: 0 | DC167: 0 | DD167: 1.2225 | DE167: 1.245 | DF167: 0.375 | DG167: 3.08 | DH167: 15 | DI167: 0 | DJ167: 30 | EA167: HY-LINE W-36, DAMIZLIK, YUMURTA (55 hf-)(GYT 104 g) | EB167: 14.6 | EC167: 14.6 | ED167: 2794 | EE167: 2840 | EF167: 4.25 | EG167: 4.25 | EH167: 0.45 | EI167: 0.31 | EJ167: 0.31 | EK167: 0.17 | EL167: 0.2266666667 | EO167: 0.34 | EP167: 0.34 | ES167: 0.52 | ET167: =ES167 -> 0.52 | EW167: 0.71 | EX167: =EW167 -> 0.71 | FE167: 0.16 | FF167: =FE167 -> 0.16
BL168: AYÇİÇEĞİ KÜSPESİ, (Devekuşu için) | BM168: 90 | BN168: 32 | BO168: 2515 | BP168: 0.21 | BQ168: 0.93 | BR168: 0.14 | BS168: 0.96 | BT168: 0.2 | BU168: 0.11 | BV168: 0.5 | BW168: 0.5 | BX168: 1 | BY168: 0.75 | BZ168: 1.13 | CA168: 0.9718 | CB168: 1.05 | CC168: 0.45 | CD168: 2.3 | CE168: 1 | CF168: 1.6 | CG168: 1.15 | CH168: 0 | CI168: 1.1 | CJ168: 0.6 | CK168: 24 | CL168: 7.2 | CM168: 5 | CN168: 5.5 | CO168: 35.036 | CP168: 25.816 | CQ168: 0.58086 | CR168: 0.35958 | CS168: 0 | CT168: 29.504 | CU168: 0 | CV168: 274.756 | CW168: 41.49 | CX168: 0.461 | CY168: 81.136 | CZ168: 2.4894 | DA168: 0 | DB168: 0 | DC168: 0 | DD168: 0.4075 | DE168: 0.8715 | DF168: 0.3375 | DG168: 2.024 | DH168: 11 | DI168: 0 | DJ168: 30 | EA168: HY-LINE W-98, DAMIZLIK, PİK YUMURTA (% 50 YV-32 hf)(GYT 91 g) | EB168: 18.15 | EC168: 18.15 | ED168: 2838 | EE168: 2915 | EF168: 4.3 | EG168: =EF168 -> 4.3 | EH168: 0.84 | EI168: 0.54 | EJ168: =EI168 -> 0.54 | EK168: 0.19 | EL168: 0.2533333333 | EO168: 0.44 | EP168: 0.44 | ES168: 0.73 | ET168: =ES168 -> 0.73 | EW168: 0.99 | EX168: =EW168 -> 0.99 | FE168: 0.21 | FF168: =FE168 -> 0.21
BL169: AYÇİÇEĞİ KÜSPESİ, %23HP | BM169: 90 | BN169: 23.3 | BO169: 1415 | BP169: 0.35 | BQ169: 0.9 | BR169: 0.14 | BS169: 0.96 | BT169: 0.2 | BU169: 0.11 | BV169: 0.5 | BW169: 0.5 | BX169: 1 | BY169: 0.75 | BZ169: 1 | CA169: 0.86 | CB169: 1.05 | CC169: 0.45 | CD169: 2.3 | CE169: 1 | CF169: 1.6 | CG169: 1.15 | CH169: 0 | CI169: 0 | CJ169: 0 | CK169: 28 | CL169: 7.7 | CM169: 5 | CN169: 4 | CO169: 37.1566 | CP169: 27.66 | CQ169: 0.58086 | CR169: 0.35958 | CS169: 0 | CT169: 29.504 | CU169: 0 | CV169: 274.756 | CW169: 41.49 | CX169: 0.461 | CY169: 81.136 | CZ169: 2.4894 | DA169: 0 | DB169: 0 | DC169: 0 | DD169: 0.4075 | DE169: 0.8715 | DF169: 0.3375 | DG169: 2.024 | DH169: 11 | DI169: 0 | DJ169: 15 | EA169: HY-LINE W-98, DAMIZLIK, YUMURTA (32-44 hf)(GYT 95 g) | EB169: 16.8 | EC169: 16.8 | ED169: 2838 | EE169: 2935 | EF169: 4.45 | EG169: =EF169 -> 4.45 | EH169: 0.73 | EI169: 0.47 | EJ169: =EI169 -> 0.47 | EK169: 0.18 | EL169: 0.24 | EO169: 0.4 | EP169: 0.4 | ES169: 0.65 | ET169: =ES169 -> 0.65 | EW169: 0.9 | EX169: =EW169 -> 0.9 | FE169: 0.19 | FF169: =FE169 -> 0.19
BL170: AYÇİÇEĞİ KÜSPESİ, %28HP | BM170: 90 | BN170: 28 | BO170: 1500 | BP170: 0.3 | BQ170: 0.91 | BR170: 0.14 | BS170: 0.96 | BT170: 0.2 | BU170: 0.11 | BV170: 0.5 | BW170: 0.5 | BX170: 1.1 | BY170: 0.825 | BZ170: 1.03 | CA170: 0.8858 | CB170: 1.05 | CC170: 0.4 | CD170: 2.4 | CE170: 1.2 | CF170: 1.7 | CG170: 1.15 | CH170: 0 | CI170: 0 | CJ170: 0 | CK170: 26 | CL170: 7.3 | CM170: 5 | CN170: 4 | CO170: 35.036 | CP170: 25.816 | CQ170: 0.58086 | CR170: 0.35958 | CS170: 0 | CT170: 29.504 | CU170: 0 | CV170: 274.756 | CW170: 41.49 | CX170: 0.461 | CY170: 81.136 | CZ170: 2.4894 | DA170: 0 | DB170: 0 | DC170: 0 | DD170: 0.4075 | DE170: 0.8715 | DF170: 0.3 | DG170: 2.112 | DH170: 11 | DI170: 0 | DJ170: 15 | EA170: HY-LINE W-98, DAMIZLIK, YUMURTA (44-55 hf)(GYT 100 g) | EB170: 15.5 | EC170: =EB170 -> 15.5 | ED170: 2816 | EE170: 2915 | EF170: 4.4 | EG170: =EF170 -> 4.4 | EH170: 0.73 | EI170: 0.4 | EJ170: =EI170 -> 0.4 | EK170: 0.17 | EL170: 0.2266666667 | EO170: 0.35 | EP170: 0.35 | ES170: 0.58 | ET170: =ES170 -> 0.58 | EW170: 0.8 | EX170: =EW170 -> 0.8 | FE170: 0.17 | FF170: =FE170 -> 0.17
BL171: AYÇİÇEĞİ KÜSPESİ, %32 HP | BM171: 90 | BN171: 32 | BO171: 1543 | BP171: 0.21 | BQ171: 0.93 | BR171: 0.14 | BS171: 0.96 | BT171: 0.2 | BU171: 0.11 | BV171: 0.73 | BW171: 0.53 | BX171: 1.26 | BY171: 0.945 | BZ171: 1.07 | CA171: 0.9202 | CB171: 1.06 | CC171: 0.38 | CD171: 2.56 | CE171: 1.4 | CF171: 1.89 | CG171: 1.15 | CH171: 0 | CI171: 0 | CJ171: 0.6 | CK171: 24 | CL171: 7.3 | CM171: 5 | CN171: 4 | CO171: 33.192 | CP171: 23.972 | CQ171: 0.58086 | CR171: 0.35958 | CS171: 0 | CT171: 29.504 | CU171: 0 | CV171: 274.756 | CW171: 41.49 | CX171: 0.461 | CY171: 81.136 | CZ171: 2.4894 | DA171: 0 | DB171: 0 | DC171: 0 | DD171: 0.59495 | DE171: 0.8798 | DF171: 0.285 | DG171: 2.2528 | DH171: 11 | DI171: 0 | DJ171: 20 | EA171: HY-LINE W-98, DAMIZLIK, YUMURTA (55 hf-)(GYT 104 g) | EB171: 14.35 | EC171: 14.35 | ED171: 2794 | EE171: 2840 | EF171: 4.55 | EG171: 4.55 | EH171: 0.73 | EI171: 0.34 | EJ171: 0.34 | EK171: 0.16 | EL171: 0.2133333333 | EO171: 0.32 | EP171: 0.32 | ES171: 0.52 | ET171: =ES171 -> 0.52 | EW171: 0.75 | EX171: =EW171 -> 0.75 | FE171: 0.15 | FF171: =FE171 -> 0.15
BL172: AYÇİÇEĞİ TOHUMU | BM172: 89.2 | BN172: 17.7 | BO172: 4527 | BP172: 0.3 | BQ172: 0.72 | BR172: 0.2 | BS172: 0.96 | BT172: 0.2 | BU172: 0.11 | BV172: 0.43 | BW172: 0.32 | BX172: 0.71 | BY172: 0.6 | BZ172: 0.55 | CA172: =BZ172*0.86 -> 0.473 | CB172: 0.64 | CC172: 0.3 | CD172: 1.06 | CE172: 0.73 | CF172: 1.09 | CG172: 0.68 | CH172: 0.34 | CI172: 39.5 | CJ172: 0.26 | CK172: 14.33 | CL172: 3.45 | CO172: 23.59 | CP172: 14.47 | CQ172: 0.5 | CR172: 0.3 | CS172: 0 | CT172: 28 | CU172: 0 | CV172: 250 | CW172: 40 | CX172: 0.3 | CY172: 70 | CZ172: 1.5 | DA172: 0 | DB172: 0 | DC172: 0 | DD172: =BV172*0.815 -> 0.35045 | DE172: 0.52 | DF172: 0.25 | DG172: 0.9 | DH172: 45 | DI172: 0 | DJ172: 7 | EA172: HY-LINE BROWN, DAMIZLIK, PİK YUMURTA (% 50 YV-32 hf)(GYT 100 g) | EB172: 18 | EC172: =EB172 -> 18 | ED172: 2795 | EE172: 2905 | EF172: 4 | EG172: =EF172 -> 4 | EH172: 0.72 | EI172: 0.45 | EJ172: =EI172 -> 0.45 | EK172: 0.18 | EL172: 0.24 | EO172: 0.46 | EP172: 0.46 | ES172: 0.76 | ET172: =ES172 -> 0.76 | EW172: 0.93 | EX172: =EW172 -> 0.93 | FE172: 0.19 | FF172: =FE172 -> 0.19
BL173: BALIK RENDERİNG SUYU, KURUTULMUŞ | BM173: 92 | BN173: 63.6 | BO173: 2830 | BP173: 1.23 | BQ173: 1.63 | BR173: 0.93 | BS173: 0.37 | BT173: 0.3 | BU173: 0 | BV173: 1 | BW173: 0.66 | BX173: 1.66 | BY173: =BX173*0.75 -> 1.245 | BZ173: 3.28 | CA173: 2.8208 | CB173: 1.35 | CC173: 0.51 | CD173: 2.78 | CE173: 1.95 | CF173: 3.16 | CG173: 1.48 | CH173: 0.78 | CI173: 9.3 | CJ173: 0.12 | CK173: 0.5 | CL173: 17.8 | CQ173: 0.02 | CV173: 303 | CW173: 50 | CY173: 77 | DD173: 0.815 | DE173: =CB173*0.83 -> 1.1205 | DF173: =CC173*0.75 -> 0.3825 | DG173: =CD173*0.88 -> 2.4464 | DH173: 70 | DI173: 0 | DJ173: 5 | EA173: HY-LINE BROWN, DAMIZLIK, YUMURTA (32-44 hf)(GYT 104 g) | EB173: 17 | EC173: =EB173 -> 17 | ED173: 2770 | EE173: 2880 | EF173: 4.15 | EG173: =EF173 -> 4.15 | EH173: 0.61 | EI173: 0.38 | EJ173: =EI173 -> 0.38 | EK173: 0.17 | EL173: 0.2266666667 | EO173: 0.42 | EP173: 0.42 | ES173: 0.7 | ET173: =ES173 -> 0.7 | EW173: 0.86 | EX173: =EW173 -> 0.86 | FE173: 0.18 | FF173: =FE173 -> 0.18
BL174: BALIK UNU, (Devekuşu için) | BM174: 93 | BN174: 60 | BO174: 2820 | BP174: 5.11 | BQ174: 2.88 | BR174: 2.33 | BS174: 0.65 | BT174: 0.61 | BU174: 0.6 | BV174: 1.63 | BW174: 0.57 | BX174: 2.66 | BY174: 1.995 | BZ174: 4.51 | CA174: 3.8786 | CB174: 2.46 | CC174: 0.49 | CD174: 3.68 | CE174: 2.28 | CF174: 4.16 | CG174: 2.21 | CH174: 1.8 | CI174: 9.4 | CJ174: 0.12 | CK174: 0.7 | CL174: 16 | CM174: 8 | CQ174: 0.2484 | CR174: 0.7176 | CS174: 0 | CT174: 9.2 | CU174: 3.1372 | CV174: 215.28 | CW174: 11.04 | CX174: 1.3524 | CY174: 104.88 | CZ174: 0.184 | DA174: 0 | DB174: 0 | DC174: 0 | DD174: 1.32845 | DE174: 2.0418 | DF174: 0.3675 | DG174: 3.2384 | DH174: 70 | DI174: 0 | DJ174: 5 | EA174: HY-LINE BROWN, DAMIZLIK, YUMURTA (44-55 hf)(GYT 104 g) | EB174: 16.3 | EC174: =EB174 -> 16.3 | ED174: 2750 | EE174: 2860 | EF174: 4.3 | EG174: =EF174 -> 4.3 | EH174: 0.58 | EI174: 0.36 | EJ174: =EI174 -> 0.36 | EK174: 0.17 | EL174: 0.2266666667 | EO174: 0.38 | EP174: 0.38 | ES174: 0.63 | ET174: =ES174 -> 0.63 | EW174: 0.82 | EX174: =EW174 -> 0.82 | FE174: 0.17 | FF174: =FE174 -> 0.17
BL175: BALIK UNU, HAMSİ, %64 HP | BM175: 92 | BN175: 64.2 | BO175: 2750 | BP175: 6.5 | BQ175: 3.5 | BR175: 3.5 | BS175: 0.32 | BT175: 0.47 | BU175: 0.55 | BV175: 1.82 | BW175: 1.1 | BX175: 2.92 | BY175: 2.42 | BZ175: 5.28 | CA175: 4.72 | CB175: 3.01 | CC175: 0.58 | CD175: 3.68 | CE175: 2.28 | CF175: 4.16 | CG175: 2.21 | CH175: 1.8 | CI175: 2 | CJ175: 0.3 | CK175: 1 | CL175: 16 | CM175: 8 | CQ175: 0.2484 | CR175: 0.7176 | CS175: 0 | CT175: 9.2 | CU175: 3.1372 | CV175: 215.28 | CW175: 11.04 | CX175: 1.3524 | CY175: 104.88 | CZ175: 0.184 | DA175: 0 | DB175: 0 | DC175: 0 | DD175: 1.4833 | DE175: 2.5 | DF175: 0.48 | DG175: 3.62 | DH175: 70 | DI175: 0 | DJ175: 8 | EA175: HY-LINE BROWN, DAMIZLIK, YUMURTA (55 hf-)(GYT 104 g) | EB175: 15.35 | EC175: 15.35 | ED175: 2720 | EE175: 2830 | EF175: 4.45 | EG175: 4.45 | EH175: 0.52 | EI175: 0.33 | EJ175: 0.33 | EK175: 0.17 | EL175: 0.2266666667 | EO175: 0.36 | EP175: 0.36 | ES175: 0.59 | ET175: =ES175 -> 0.59 | EW175: 0.79 | EX175: =EW175 -> 0.79 | FE175: 0.15 | FF175: =FE175 -> 0.15
BL176: BALIK UNU, MEZGİT, MORİNA, %62 HP | BM176: 91 | BN176: 62.6 | BO176: 2750 | BP176: 6.5 | BQ176: 3.5 | BR176: 3.5 | BS176: 0.32 | BT176: 0.47 | BU176: 0.55 | BV176: 1.82 | BW176: 1.1 | BX176: 2.92 | BY176: 2.42 | BZ176: 5.28 | CA176: 4.72 | CB176: 3.01 | CC176: 0.58 | CD176: 3.68 | CE176: 2.28 | CF176: 4.16 | CG176: 2.21 | CH176: 1.8 | CI176: 2 | CJ176: 0.3 | CK176: 1 | CL176: 20 | CM176: 8 | CQ176: 0.1824 | CR176: 1.05792 | CS176: 0 | CT176: 6.384 | CU176: 1.08528 | CV176: 512.544 | CW176: 29.184 | CX176: 2.06112 | CY176: 102.144 | CZ176: 1.6416 | DA176: 0 | DB176: 0 | DC176: 0 | DD176: 1.4833 | DE176: 2.5 | DF176: 0.48 | DG176: 3.62 | DH176: 70 | DI176: 0 | DJ176: 8
BL177: BALIK UNU, RİNGA, %60 HP | BM177: 92 | BN177: 60.5 | BO177: 2750 | BP177: 6.5 | BQ177: 3.5 | BR177: 3.5 | BS177: 0.32 | BT177: 0.47 | BU177: 0.55 | BV177: 1.82 | BW177: 1.1 | BX177: 2.92 | BY177: 2.42 | BZ177: 5.28 | CA177: 4.72 | CB177: 3.01 | CC177: 0.58 | CD177: 3.68 | CE177: 2.28 | CF177: 4.16 | CG177: 2.21 | CH177: 1.8 | CI177: 2 | CJ177: 0.3 | CK177: 1 | CL177: 19.7 | CM177: 8 | CQ177: 0.1824 | CR177: 1.05792 | CS177: 0 | CT177: 6.384 | CU177: 1.08528 | CV177: 512.544 | CW177: 29.184 | CX177: 2.06112 | CY177: 102.144 | CZ177: 1.6416 | DA177: 0 | DB177: 0 | DC177: 0 | DD177: 1.4833 | DE177: 2.5 | DF177: 0.48 | DG177: 3.62 | DH177: 80 | DI177: 0 | DJ177: 8 | EA177: NICK, DAMIZLIK, BAŞLANGIÇ (0-3 hf) | EB177: 20 | EC177: 21 | ED177: 2900 | EE177: =ED177 -> 2900 | EF177: 1.05 | EG177: =EF177 -> 1.05 | EH177: 0.75 | EI177: 0.48 | EJ177: =EI177 -> 0.48 | EK177: 0.18 | EL177: =EK177/0.75 -> 0.24 | EM177: 0.2 | EN177: =EM177/0.75 -> 0.2666666667 | EO177: 0.48 | EP177: 0.48 | EQ177: 0.39 | ER177: =EQ177 -> 0.39 | ES177: 0.83 | ET177: =ES177 -> 0.83 | EU177: 0.68 | EV177: =EU177 -> 0.68 | EW177: 1.2 | EX177: =EW177 -> 1.2 | EY177: 0.98 | EZ177: =EY177 -> 0.98 | FA177: 0.8 | FB177: =FA177 -> 0.8 | FC177: 0.65 | FD177: =FC177 -> 0.65 | FE177: 0.23 | FF177: =FE177 -> 0.23 | FG177: 0.19 | FH177: =FG177 -> 0.19 | FM177: 2
BL178: BALIK UNU, RİNGA, %72 HP | BM178: 93 | BN178: 72.3 | BO178: 3190 | BP178: 2.29 | BQ178: 1.7 | BR178: 1.38 | BS178: 1.09 | BT178: 0.65 | BU178: 0.9 | BV178: 2.16 | BW178: 0.72 | BX178: 2.88 | BY178: =BX178*0.75 -> 2.16 | BZ178: 5.47 | CA178: =BZ178*0.86 -> 4.7042 | CB178: 3.07 | CC178: 0.83 | CD178: 4.21 | CE178: 3.23 | CF178: 5.46 | CG178: 2.82 | CH178: 2.25 | CI178: 10 | CJ178: 0.15 | CK178: 0.7 | CL178: 19.7 | CM178: 8 | CQ178: 0.2484 | CR178: 0.7176 | CS178: 0 | CT178: 9.2 | CU178: 3.1372 | CV178: 215.28 | CW178: 11.04 | CX178: 1.3524 | CY178: 104.88 | CZ178: 0.184 | DA178: 0 | DB178: 0 | DC178: 0 | DD178: 1.7604 | DE178: 2.5 | DF178: 0.48 | DG178: 3.62 | DH178: 80 | DI178: 0 | DJ178: 8 | EA178: NICK, DAMIZLIK, BÜYÜTME (1-10 hf) | EB178: 18 | EC178: 19 | ED178: 2750 | EE178: 2800 | EF178: 1 | EG178: 1 | EH178: 0.7 | EI178: 0.45 | EJ178: 0.45 | EK178: 0.17 | EL178: 0.2266666667 | EM178: 0.19 | EN178: 0.2533333333 | EO178: 0.4 | EP178: 0.4 | EQ178: 0.33 | ER178: =EQ178 -> 0.33 | ES178: 0.7 | ET178: =ES178 -> 0.7 | EU178: 0.57 | EV178: =EU178 -> 0.57 | EW178: 1 | EX178: =EW178 -> 1 | EY178: 0.82 | EZ178: =EY178 -> 0.82 | FA178: 0.7 | FB178: =FA178 -> 0.7 | FC178: 0.57 | FD178: =FC178 -> 0.57 | FE178: 0.21 | FF178: =FE178 -> 0.21 | FG178: 0.17 | FH178: =FG178 -> 0.17 | FM178: 1.4
BL179: BİRA POSASI, KURUTULMUŞ | BM179: 92 | BN179: 25.3 | BO179: 2080 | BP179: 0.29 | BQ179: 0.52 | BR179: =BQ179*0.3 -> 0.156 | BS179: 0.09 | BT179: 0.26 | BU179: 0.12 | BV179: 0.57 | BW179: 0.39 | BX179: 0.96 | BY179: =BX179*0.75 -> 0.72 | BZ179: 0.9 | CA179: 0.774 | CB179: 0.98 | CC179: 0.34 | CD179: 1.28 | CE179: 1.44 | CF179: 2.48 | CG179: 1.45 | CH179: 1.19 | CI179: 6.2 | CJ179: 2.94 | CK179: 15.3 | CL179: 4.3 | CM179: 8.3 | CN179: 4.8 | CO179: 42.9918 | CP179: 20.1354 | CQ179: 0.23582 | CR179: 0.34466 | CS179: 0 | CT179: 9.977 | CU179: 0 | CV179: 203.168 | CW179: 40.815 | CX179: 0.96142 | CY179: 77.095 | CZ179: 2.9024 | DA179: 0 | DB179: 0 | DC179: 0 | DD179: 0.46455 | DE179: =CB179*0.83 -> 0.8134 | DF179: =CC179*0.75 -> 0.255 | DG179: =CD179*0.88 -> 1.1264 | DH179: 75 | DI179: 0 | DJ179: 15 | EA179: NICK, DAMIZLIK, GELİŞTİRME (11-16 hf) | EB179: 14.5 | EC179: 15.5 | ED179: 2750 | EE179: 2800 | EF179: 0.9 | EG179: 0.9 | EH179: 0.58 | EI179: 0.37 | EJ179: 0.37 | EK179: 0.16 | EL179: 0.2133333333 | EM179: 0.16 | EN179: 0.2133333333 | EO179: 0.34 | EP179: 0.34 | EQ179: 0.28 | ER179: =EQ179 -> 0.28 | ES179: 0.6 | ET179: =ES179 -> 0.6 | EU179: 0.5 | EV179: =EU179 -> 0.5 | EW179: 0.68 | EX179: =EW179 -> 0.68 | EY179: 0.55 | EZ179: =EY179 -> 0.55 | FA179: 0.5 | FB179: =FA179 -> 0.5 | FC179: 0.44 | FD179: =FC179 -> 0.44 | FE179: 0.17 | FF179: =FE179 -> 0.17 | FG179: 0.14 | FH179: =FG179 -> 0.14 | FM179: 1
BL180: ÇÖREKOTU TOHUMU KÜSPESİ | BM180: 90 | BN180: 31 | BO180: 3200 | BP180: 0.261 | BQ180: 0.81 | BR180: 0.45 | BV180: 0.55 | BW180: 5.28 | BZ180: 1.48 | CB180: 1.45 | CD180: 3.24 | CE180: 1.42 | CF180: 2.44 | CG180: 1.69 | CH180: 1.69 | CI180: 13 | CJ180: 5.85 | CK180: 12.4 | CL180: 7.3 | DH180: 12 | DI180: 0 | DJ180: 5 | EA180: NICK, DAMIZLIK, ÖN YUMURTA (17 hf-%5 YV) | EB180: 16.5 | EC180: 17.5 | ED180: 2750 | EE180: 2800 | EF180: 2 | EG180: 2 | EH180: 0.65 | EI180: 0.45 | EJ180: 0.45 | EK180: 0.16 | EL180: 0.2133333333 | EM180: 0.16 | EN180: 0.2133333333 | EO180: 0.36 | EP180: 0.36 | EQ180: 0.29 | ER180: =EQ180 -> 0.29 | ES180: 0.68 | ET180: =ES180 -> 0.68 | EU180: 0.56 | EV180: =EU180 -> 0.56 | EW180: 0.85 | EX180: =EW180 -> 0.85 | EY180: 0.7 | EZ180: =EY180 -> 0.7 | FA180: 0.6 | FB180: =FA180 -> 0.6 | FC180: 0.49 | FD180: =FC180 -> 0.49 | FE180: 0.2 | FF180: =FE180 -> 0.2 | FG180: 0.16 | FH180: =FG180 -> 0.16 | FM180: 1
BL181: ET UNU | BM181: 92 | BN181: 54.4 | BO181: 2195 | BP181: 8.27 | BQ181: 4.1 | BR181: 4.1 | BS181: 0.6 | BT181: 1.15 | BU181: 0.91 | BV181: 0.75 | BW181: 0.66 | BX181: 1.41 | BY181: =(BV181*0.85+BW181*0.58) -> 1.0203 | BZ181: 3 | CA181: =BZ181*0.79 -> 2.37 | CB181: 1.74 | CC181: 0.36 | CD181: 3.73 | CE181: 1.6 | CF181: 3.32 | CG181: 1.7 | CH181: 0.84 | CI181: 7.1 | CJ181: 0.28 | CK181: 2.7 | CL181: 22.9 | CQ181: 0.24414 | CR181: 0.47889 | CS181: 0 | CT181: 19.719 | CU181: 0 | CV181: 658.239 | CW181: 24.414 | CX181: 0.42255 | CY181: 107.046 | CZ181: 2.2536 | DA181: 0 | DB181: 0 | DC181: 0 | DD181: =BV181*0.815 -> 0.61125 | DE181: =CB181*0.83 -> 1.4442 | DF181: =CC181*0.75 -> 0.27 | DG181: =CD181*0.88 -> 3.2824 | DH181: 80 | DI181: 0 | DJ181: 8 | EA181: NICK, DAMIZLIK, YUMURTA 1 (GYT 105 g) | EB181: 17.14 | EC181: =EB181 -> 17.14 | ED181: 2750 | EE181: 2800 | EF181: 3.9 | EG181: =EF181 -> 3.9 | EH181: 0.6 | EI181: 0.42 | EJ181: 0.42 | EK181: 0.17 | EL181: 0.2266666667 | EM181: 0.17 | EN181: 0.2266666667 | EO181: 0.42 | EP181: 0.42 | EQ181: 0.34 | ER181: =EQ181 -> 0.34 | ES181: 0.76 | ET181: =ES181 -> 0.76 | EU181: 0.62 | EV181: =EU181 -> 0.62 | EW181: 0.82 | EX181: =EW181 -> 0.82 | EY181: 0.68 | EZ181: =EY181 -> 0.68 | FA181: 0.58 | FB181: =FA181 -> 0.58 | FC181: 0.47 | FD181: =FC181 -> 0.47 | FE181: 0.17 | FF181: =FE181 -> 0.17 | FG181: 0.14 | FH181: =FG181 -> 0.14 | FI181: 0.87 | FJ181: =FI181 -> 0.87 | FK181: 0.72 | FL181: =FK181 -> 0.72 | FM181: 1.9
BL182: ET-KEMİK UNU, (Devekuşu için) | BM182: 93 | BN182: 50.4 | BO182: 2450 | BP182: 8 | BQ182: 4 | BR182: 4 | BS182: 1.25 | BT182: 0.5 | BU182: 0.9 | BV182: 0.71 | BW182: 0.61 | BX182: 1.32 | BY182: =(BV182*0.73+BW182*0.73) -> 0.9636 | BZ182: 2.68 | CA182: 2.09 | CB182: 1.52 | CC182: 0.36 | CD182: 3.5 | CE182: 1.54 | CF182: 3.28 | CG182: 1.81 | CH182: 1.2 | CI182: 10 | CJ182: 1.82 | CK182: 0 | CL182: 30.4 | CQ182: 0.2256 | CR182: 0.3666 | CS182: 0 | CT182: 9.4 | CU182: 0 | CV182: 565.88 | CW182: 20.68 | CX182: 0 | CY182: 88.36 | CZ182: 2.538 | DA182: 0 | DB182: 0 | DC182: 0 | DD182: 0.57865 | DE182: 1.17 | DF182: 0.26 | DG182: 2.78 | DH182: 80 | DI182: 0 | DJ182: 4 | EA182: NICK, DAMIZLIK, YUMURTA 2 (GYT 105 g) | EB182: 16.19 | EC182: =EB182 -> 16.19 | ED182: 2750 | EE182: 2800 | EF182: 4.1 | EG182: =EF182 -> 4.1 | EH182: 0.52 | EI182: 0.36 | EJ182: 0.36 | EK182: 0.17 | EL182: 0.2266666667 | EM182: 0.17 | EN182: 0.2266666667 | EO182: 0.41 | EP182: 0.41 | EQ182: 0.34 | ER182: =EQ182 -> 0.34 | ES182: 0.75 | ET182: =ES182 -> 0.75 | EU182: 0.61 | EV182: =EU182 -> 0.61 | EW182: 0.81 | EX182: =EW182 -> 0.81 | EY182: 0.67 | EZ182: =EY182 -> 0.67 | FA182: 0.57 | FB182: =FA182 -> 0.57 | FC182: 0.47 | FD182: =FC182 -> 0.47 | FE182: 0.17 | FF182: =FE182 -> 0.17 | FG182: 0.14 | FH182: =FG182 -> 0.14 | FI182: 0.86 | FJ182: =FI182 -> 0.86 | FK182: 0.71 | FL182: =FK182 -> 0.71 | FM182: 1.52
BL183: ET-KEMİK UNU, %42 HP | BM183: 93 | BN183: 42.7 | BO183: 1930 | BP183: 12.9 | BQ183: 6.1 | BR183: 6.1 | BS183: 0.68 | BT183: 0.95 | BU183: 0.8 | BV183: 0.53 | BW183: 0.38 | BX183: 0.91 | BY183: 0.6643 | BZ183: 2.11 | CA183: =BZ183*0.86 -> 1.8146 | CB183: 1.32 | CC183: 0.21 | CD183: 2.9 | CE183: 1.08 | CF183: 2.14 | CG183: 1.4 | CH183: 0.78 | CI183: 7.2 | CJ183: 0.31 | CK183: 0 | CL183: 30.4 | CQ183: 0.2256 | CR183: 0.3666 | CS183: 0 | CT183: 9.4 | CU183: 0 | CV183: 565.88 | CW183: 20.68 | CX183: 0 | CY183: 88.36 | CZ183: 2.538 | DA183: 0 | DB183: 0 | DC183: 0 | DD183: 0.43195 | DE183: =CB183*0.83 -> 1.0956 | DF183: =CC183*0.75 -> 0.1575 | DG183: =CD183*0.88 -> 2.552 | DH183: 75 | DI183: 0 | DJ183: 4 | EA183: NICK, DAMIZLIK, YUMURTA 3 (GYT 105 g) | EB183: 15.24 | EC183: =EB183 -> 15.24 | ED183: 2750 | EE183: 2800 | EF183: 4.29 | EG183: =EF183 -> 4.29 | EH183: 0.48 | EI183: 0.33 | EJ183: 0.33 | EK183: 0.17 | EL183: 0.2266666667 | EM183: 0.17 | EN183: 0.2266666667 | EO183: 0.41 | EP183: 0.41 | EQ183: 0.34 | ER183: =EQ183 -> 0.34 | ES183: 0.75 | ET183: =ES183 -> 0.75 | EU183: 0.61 | EV183: =EU183 -> 0.61 | EW183: 0.81 | EX183: =EW183 -> 0.81 | EY183: 0.67 | EZ183: =EY183 -> 0.67 | FA183: 0.57 | FB183: =FA183 -> 0.57 | FC183: 0.47 | FD183: =FC183 -> 0.47 | FE183: 0.17 | FF183: =FE183 -> 0.17 | FG183: 0.14 | FH183: =FG183 -> 0.14 | FI183: 0.86 | FJ183: =FI183 -> 0.86 | FK183: 0.71 | FL183: =FK183 -> 0.71 | FM183: 0.95
BL184: ET-KEMİK UNU, %50 HP | BM184: 93 | BN184: 50.4 | BO184: 2450 | BP184: 8 | BQ184: 4 | BR184: 4 | BS184: 1.25 | BT184: 0.5 | BU184: 0.9 | BV184: 0.71 | BW184: 0.61 | BX184: 1.32 | BY184: 0.9636 | BZ184: 2.68 | CA184: 2.09 | CB184: 1.52 | CC184: 0.36 | CD184: 3.5 | CE184: 1.54 | CF184: 3.28 | CG184: 1.81 | CH184: 1.2 | CI184: 10 | CJ184: 1.82 | CK184: 0 | CL184: 30.4 | CQ184: 0.2256 | CR184: 0.3666 | CS184: 0 | CT184: 9.4 | CU184: 0 | CV184: 565.88 | CW184: 20.68 | CX184: 0 | CY184: 88.36 | CZ184: 2.538 | DA184: 0 | DB184: 0 | DC184: 0 | DD184: 0.57865 | DE184: 1.17 | DF184: 0.26 | DG184: 2.78 | DH184: 80 | DI184: 0 | DJ184: 4
BL185: HİNDİSTAN CEVİZİ KÜSPESİ | BM185: 92 | BN185: 19.2 | BO185: 1525 | BP185: 0.17 | BQ185: 0.567 | BR185: 0.3 | BS185: 1.41 | BT185: 0.04 | BU185: 0.03 | BV185: 0.306 | BW185: 0.2 | BZ185: 0.531 | CB185: 0.558 | CC185: 0.1 | CD185: 1.791 | CE185: 1.584 | CF185: 2.124 | CG185: 0.729 | CH185: 0.243 | CI185: 2.601 | CK185: 10.899 | CL185: 6.669 | CQ185: 0.3 | CW185: 54 | DH185: 12 | DI185: 0 | DJ185: 5
BL186: FINDIK KÜSPESİ | BM186: 90 | BN186: 35 | BO186: 2450 | BP186: 0.2 | BQ186: 0.6 | BR186: 0.36 | BS186: 1.8 | BT186: 0.2 | BU186: 0.1 | BV186: 0.15 | BW186: 0 | BX186: 0.15 | BY186: =BX186*0.75 -> 0.1125 | BZ186: 0.99 | CA186: =BZ186*0.86 -> 0.8514 | CB186: 0.95 | CC186: 0 | CD186: 4.53 | CE186: 1.8 | CF186: 2.77 | CG186: 1.21 | CH186: 0.88 | CI186: 5.5 | CJ186: 0.24 | CK186: 8 | CL186: 6 | CM186: 5.4 | CN186: 10.42 | CO186: 15 | CP186: 12 | CQ186: 0.54 | CT186: 47.5 | CV186: 74.3 | CW186: 99 | CX186: 0.95 | CY186: 13.4 | DD186: =BV186*0.815 -> 0.12225 | DE186: =CB186*0.83 -> 0.7885 | DF186: =CC186*0.75 -> 0 | DG186: =CD186*0.88 -> 3.9864 | DH186: 11 | DI186: 0 | DJ186: 30
BL187: KABAK ÇEKİRDEĞİ KÜSPESİ | BM187: 88 | BN187: 55.616 | BO187: 2500 | BP187: 0.15 | BQ187: 1.6376 | BR187: 0.5 | BS187: 1.2604 | BT187: 0.0276 | BV187: 0.092 | BW187: 0.184 | BX187: 0.276 | BY187: 0.18 | BZ187: 0.46 | CA187: 0.4 | CB187: 0.276 | CC187: 0.184 | CD187: 1.564 | CE187: 0.0276 | CF187: 0.552 | CG187: 0.368 | CH187: 0.276 | CI187: 11.44 | CK187: 5.016 | CL187: 7.92 | CQ187: 0.5244 | CT187: 0.1472 | CV187: 194.12 | CW187: 73.6 | CY187: 174.8 | DH187: 13 | DI187: 0 | DJ187: 5
BL188: KAN UNU, (Devekuşu için) | BM188: 93 | BN188: 88.9 | BO188: 3625 | BP188: 0.41 | BQ188: 0.3 | BR188: 0.3 | BS188: 0.18 | BT188: 0.32 | BU188: 0.27 | BV188: 1.09 | BW188: 1.03 | BX188: 2.12 | BY188: =(BV188*0.73+BW188*0.73) -> 1.5476 | BZ188: 7.88 | CA188: =BZ188*0.86 -> 6.7768 | CB188: 3.92 | CC188: 1.35 | CD188: 3.62 | CE188: 0.98 | CF188: 11.32 | CG188: 5.85 | CH188: 2.63 | CI188: 1 | CJ188: 0.1 | CK188: 0.6 | CL188: 2.5 | CO188: 8 | CP188: 1 | CQ188: 0.02706 | CR188: 0.69454 | CS188: 0 | CT188: 9.02 | CU188: 0 | CV188: 2212.606 | CW188: 8.118 | CX188: 0.69454 | CY188: 29.766 | CZ188: 0.5412 | DA188: 0 | DB188: 0 | DC188: 0 | DD188: =BV188*0.815 -> 0.88835 | DE188: =CB188*0.83 -> 3.2536 | DF188: =CC188*0.75 -> 1.0125 | DG188: =CD188*0.88 -> 3.1856 | DH188: 80 | DI188: 0 | DJ188: 2
BL189: KAN UNU, PÜSKÜRTMELİ KURUTULMUŞ | BM189: 93 | BN189: 88.9 | BO189: 3420 | BP189: 0.41 | BQ189: 0.3 | BR189: 0.3 | BS189: 0.18 | BT189: 0.32 | BU189: 0.27 | BV189: 1.09 | BW189: 1.03 | BX189: 2.12 | BY189: =(BV189*0.91+BW189*0.76) -> 1.7747 | BZ189: 7.88 | CA189: =BZ189*0.86 -> 6.7768 | CB189: 3.92 | CC189: 1.35 | CD189: 3.62 | CE189: 0.98 | CF189: 11.32 | CG189: 5.85 | CH189: 2.63 | CI189: 1 | CJ189: 0.1 | CK189: 0.6 | CL189: 2.5 | CO189: 8 | CP189: 1 | CQ189: 0.02706 | CR189: 0.69454 | CS189: 0 | CT189: 9.02 | CU189: 0 | CV189: 2212.606 | CW189: 8.118 | CX189: 0.69454 | CY189: 29.766 | CZ189: 0.5412 | DA189: 0 | DB189: 0 | DC189: 0 | DD189: 0.88835 | DE189: =CB189*0.83 -> 3.2536 | DF189: =CC189*0.75 -> 1.0125 | DG189: =CD189*0.88 -> 3.1856 | DH189: 80 | DI189: 0 | DJ189: 2
BL190: KAN UNU, TEKNEDE KURUTULMUŞ | BM190: 94 | BN190: 81.1 | BO190: 2830 | BP190: 0.55 | BQ190: 0.42 | BR190: 0.42 | BS190: 0.18 | BT190: 0.33 | BU190: 0.27 | BV190: 0.55 | BW190: 0.52 | BX190: 1.07 | BY190: =(BV190*0.91+BW190*0.76) -> 0.8957 | BZ190: 7.05 | CA190: =BZ190*0.86 -> 6.063 | CB190: 3.15 | CC190: 1.29 | CD190: 3.63 | CE190: 0.95 | CF190: 10.53 | CG190: 5.66 | CH190: 2.07 | CI190: 1.6 | CJ190: 0 | CK190: 0.5 | CL190: 2.5 | CO190: 8 | CP190: 1 | CQ190: 0.02706 | CR190: 0.69454 | CS190: 0 | CT190: 9.02 | CU190: 0 | CV190: 2212.606 | CW190: 8.118 | CX190: 0.69454 | CY190: 29.766 | CZ190: 0.5412 | DA190: 0 | DB190: 0 | DC190: 0 | DD190: 0.44825 | DE190: =CB190*0.83 -> 2.6145 | DF190: =CC190*0.75 -> 0.9675 | DG190: =CD190*0.88 -> 3.1944 | DH190: 80 | DI190: 0 | DJ190: 2
BL191: KANATLI UNU(İÇ ORGANLAR,BAŞ,AYAKLAR) | BM191: 93 | BN191: 60 | BO191: 2950 | BP191: 3.6 | BQ191: 2.1 | BR191: 2.1 | BS191: 0.28 | BT191: 0.36 | BU191: 0.4 | BV191: 1.3 | BW191: 2 | BX191: 3.3 | BY191: 2.3 | BZ191: 3.4 | CA191: 2.7 | CB191: 2.2 | CC191: 0.4 | CD191: 3.5 | CE191: 2.16 | CF191: 3.99 | CG191: 2.29 | CH191: 1.68 | CI191: 13 | CJ191: 2.54 | CK191: 1.5 | CL191: 16 | CX191: 0.9 | DD191: 1.0595 | DE191: 1.8 | DF191: 0.3 | DG191: 3 | DH191: 75 | DI191: 0 | DJ191: 10
BL192: KANOLA KÜSPESİ, (Devekuşu için) | BM192: 90 | BN192: 38 | BO192: 2000 | BP192: 0.65 | BQ192: 1.17 | BR192: 0.45 | BS192: 1.45 | BT192: 0.07 | BU192: 0.05 | BV192: 0.69 | BW192: 0.61 | BX192: 1.3 | BY192: =BX192*0.83 -> 1.079 | BZ192: 2.21 | CA192: =BZ192*0.8 -> 1.768 | CB192: 1.72 | CC192: 0.5 | CD192: 2.18 | CE192: 1.37 | CF192: 2.47 | CG192: 1.44 | CH192: 1.09 | CI192: 1.5 | CJ192: 0.5 | CK192: 12 | CL192: 7.4 | CM192: 4 | CN192: 8.3 | CO192: 26.9094 | CP192: 18.5115 | CQ192: 0.47859 | CR192: 0.65919 | CS192: 0 | CT192: 4.515 | CU192: 0 | CV192: 267.288 | CW192: 55.986 | CX192: 0.98427 | CY192: 55.083 | CZ192: 2.4381 | DA192: 0 | DB192: 0 | DC192: 0 | DD192: 0.56235 | DE192: 1.3 | DF192: 0.38 | DG192: 1.92 | DH192: 12 | DI192: 0 | DJ192: 30
BL193: KANOLA KÜSPESİ, PREPRES, SOLVENT | BM193: 90 | BN193: 38 | BO193: 2000 | BP193: 0.65 | BQ193: 1.17 | BR193: 0.45 | BS193: 1.45 | BT193: 0.07 | BU193: 0.05 | BV193: 0.69 | BW193: 0.61 | BX193: 1.3 | BY193: 1.08 | BZ193: 2.21 | CA193: =BZ193*0.8 -> 1.768 | CB193: 1.72 | CC193: 0.5 | CD193: 2.18 | CE193: 1.37 | CF193: 2.47 | CG193: 1.44 | CH193: 1.09 | CI193: 1.5 | CJ193: 0.5 | CK193: 12 | CL193: 7.4 | CM193: 0.5 | CN193: 8.3 | CO193: 26.9094 | CP193: 18.5115 | CQ193: 0.47859 | CR193: 0.65919 | CS193: 0 | CT193: 4.515 | CU193: 0 | CV193: 267.288 | CW193: 55.986 | CX193: 0.98427 | CY193: 55.083 | CZ193: 2.4381 | DA193: 0 | DB193: 0 | DC193: 0 | DD193: 0.56235 | DE193: 1.3 | DF193: 0.38 | DG193: 1.92 | DH193: 12 | DI193: 0 | DJ193: 10
BL194: KARACİĞER UNU | BM194: 92 | BN194: 65.6 | BO194: 2860 | BP194: 0.56 | BQ194: 1.25 | BR194: 1.25 | BS194: 0 | BT194: 0 | BU194: 0 | BV194: 1.22 | BW194: 0.89 | BX194: 2.11 | BY194: =(BV194*0.73+BW194*0.73) -> 1.5403 | BZ194: 4.8 | CA194: =BZ194*0.84 -> 4.032 | CB194: 2.48 | CC194: 0.59 | CD194: 4.14 | CE194: 3.09 | CF194: 5.28 | CG194: 2.89 | CH194: 1.69 | CI194: 15 | CJ194: 0 | CK194: 1.4 | CL194: 4 | DD194: 0.9943 | DE194: =CB194*0.83 -> 2.0584 | DF194: =CC194*0.75 -> 0.4425 | DG194: =CD194*0.88 -> 3.6432 | DH194: 150 | DI194: 0 | DJ194: 5
BL195: KAZEİN, KURUTULMUŞ | BM195: 93 | BN195: 87.2 | BO195: 4130 | BP195: 0.61 | BQ195: 1 | BR195: 1 | BS195: 0.01 | BT195: 0.01 | BU195: 0 | BV195: 2.65 | BW195: 0.21 | BX195: 2.86 | BY195: 2.0878 | BZ195: 7.99 | CA195: =BZ195*0.88 -> 7.0312 | CB195: 4.29 | CC195: 1.05 | CD195: 3.61 | CE195: 4.82 | CF195: 9 | CG195: 4.96 | CH195: 5.37 | CI195: 0.8 | CJ195: 0 | CK195: 0.2 | CL195: 4 | CQ195: 0.0091 | CR195: 0.546 | CS195: 0.0091 | CT195: 3.64 | CU195: 0 | CV195: 12.74 | CW195: 3.64 | CX195: 0.1456 | CY195: 27.3 | CZ195: 0 | DA195: 0 | DB195: 0 | DC195: 0 | DD195: =BV195*0.815 -> 2.15975 | DE195: =CB195*0.83 -> 3.5607 | DF195: =CC195*0.75 -> 0.7875 | DG195: =CD195*0.88 -> 3.1768 | DH195: 20 | DI195: 0 | DJ195: 3
BL196: KETEN TOHUMU KÜSPESİ | BM196: 90.3 | BN196: 38 | BO196: 2860 | BP196: 0.36 | BQ196: 0.75 | BR196: 0.15 | BS196: 1.1 | BT196: 0.08 | BU196: 0 | BV196: 0.37 | BW196: 0.34 | BX196: 0.71 | BY196: 0.5183 | BZ196: 0.86 | CA196: 0.7568 | CB196: 0.77 | CC196: 0.3 | CD196: 1.93 | CE196: 0.9 | CF196: 1.24 | CG196: 0.96 | CH196: 0.49 | CI196: 1.54 | CK196: 10.01 | CL196: 5.87 | CM196: 9.5 | CO196: 32.5983 | CP196: 19.9563 | CQ196: 0.49665 | CR196: 0.33411 | CS196: 0 | CT196: 17.157 | CU196: 0 | CV196: 333.207 | CW196: 35.217 | CX196: 0.94815 | CY196: 62.307 | CZ196: 1.806 | DA196: 0 | DB196: 0 | DC196: 0 | DD196: 0.30155 | DE196: 0.6391 | DF196: 0.225 | DG196: 1.6984 | DH196: 12 | DI196: 0 | DJ196: 10
BL197: MAYA BİRA, KURUTULMUŞ, (Devekuşu için) | BM197: 96 | BN197: 44.4 | BO197: 1990 | BP197: 0.12 | BQ197: 1.4 | BR197: 0.91 | BS197: 1.7 | BT197: 0.07 | BU197: 0.12 | BV197: 0.7 | BW197: 0.5 | BX197: 1.2 | BY197: 0.876 | BZ197: 3.23 | CA197: 2.8424 | CB197: 2.06 | CC197: 0.49 | CD197: 2.19 | CE197: 2.14 | CF197: 3.19 | CG197: 1.81 | CH197: 1.49 | CI197: 1 | CJ197: 0 | CK197: 2.7 | CL197: 8 | CM197: 4.9 | CN197: 6.9 | CO197: 8 | CP197: 1 | CQ197: 2.2 | CT197: 20 | CV197: 72 | CW197: 30 | CY197: 105 | DD197: 0.5705 | DE197: 1.7098 | DF197: 0.3675 | DG197: 1.9272 | DH197: 100 | DI197: 0 | DJ197: 2
BL198: MAYA,BİRA,KURUTULMUŞ, | BM198: 93 | BN198: 44.4 | BO198: 1990 | BP198: 0.12 | BQ198: 1.4 | BR198: 0.91 | BS198: 1.7 | BT198: 0.07 | BU198: 0.12 | BV198: 0.7 | BW198: 0.5 | BX198: 1.2 | BY198: 0.876 | BZ198: 3.23 | CA198: 2.8424 | CB198: 2.06 | CC198: 0.49 | CD198: 2.19 | CE198: 2.14 | CF198: 3.19 | CG198: 1.81 | CH198: 1.49 | CI198: 1 | CJ198: 0 | CK198: 2.7 | CL198: 8 | CM198: 4.9 | CN198: 6.9 | CO198: 8 | CP198: 1 | CQ198: 2.2 | CT198: 20 | CV198: 72 | CW198: 30 | CY198: 105 | DD198: 0.5705 | DE198: 1.7098 | DF198: 0.3675 | DG198: 1.9272 | DH198: 100 | DI198: 0 | DJ198: 2
BL199: MAYA,TORULA | BM199: 93 | BN199: 47.2 | BO199: 2160 | BP199: 0.58 | BQ199: 1.67 | BR199: 1 | BS199: 1.7 | BT199: 0.07 | BU199: 0.12 | BV199: 0.8 | BW199: 0.6 | BX199: 1.4 | BY199: 1.022 | BZ199: 3.8 | CA199: 3.344 | CB199: 2.6 | CC199: 0.5 | CD199: 2.6 | CE199: 2.9 | CF199: 3.5 | CG199: 3 | CH199: 2.1 | CI199: 2.5 | CJ199: 0.05 | CK199: 2.4 | CL199: 7.31 | CP199: 1 | DD199: 0.652 | DE199: 2.158 | DF199: 0.375 | DG199: 2.288 | DH199: 100 | DI199: 0 | DJ199: 2
BL200: MISIR GLUTEN YEMİ | BM200: 90 | BN200: 21 | BO200: 1750 | BP200: 0.4 | BQ200: 0.8 | BR200: =BQ200*0.3 -> 0.24 | BS200: 0.57 | BT200: 0.15 | BU200: 0.22 | BV200: 0.45 | BW200: 0.51 | BX200: 0.96 | BY200: =(BV200*0.84+BW200*0.65) -> 0.7095 | BZ200: 0.63 | CA200: =BZ200*0.72 -> 0.4536 | CB200: 0.89 | CC200: 0.1 | CD200: 1.01 | CE200: 0.65 | CF200: 1.89 | CG200: 0.77 | CH200: 0.58 | CI200: 2.5 | CJ200: 0 | CK200: 8 | CL200: 6.8 | CM200: 18 | CN200: 3.66 | CO200: 31.737 | CP200: 10.8174 | CQ200: 0.37548 | CR200: 0.39336 | CS200: 0 | CT200: 5.364 | CU200: 0 | CV200: 175.224 | CW200: 20.562 | CX200: 0.16986 | CY200: 67.05 | CZ200: 1.9668 | DA200: 0 | DB200: 0 | DC200: 0 | DD200: 0.36675 | DE200: 0.7387 | DF200: 0.075 | DG200: 0.8888 | DH200: 9 | DI200: 0 | DJ200: 10 | EA200: TAVUK-YUMURTACI TİP-TİCARİ
BL201: MISIR GLUTENİ, %43 HP | BM201: 91 | BN201: 43.2 | BO201: 3015 | BP201: 0.15 | BQ201: 0.46 | BR201: =BQ201*0.3 -> 0.138 | BS201: 0.03 | BT201: 0.08 | BU201: 0.1 | BV201: 1.02 | BW201: 0.63 | BX201: 1.65 | BY201: =(BV201*0.73+BW201*0.73) -> 1.2045 | BZ201: 0.77 | CA201: =BZ201*0.88 -> 0.6776 | CB201: 1.48 | CC201: 0.21 | CD201: 1.41 | CE201: 2.12 | CF201: 7.2 | CG201: 2.62 | CH201: 2.07 | CI201: 2.2 | CJ201: 0 | CK201: 4.5 | CL201: 3.3 | CM201: 15.8 | CO201: 14.4 | CP201: 5 | CQ201: 0.08 | CR201: 0.74304 | CS201: 0 | CT201: 3.456 | CU201: 0 | CV201: 119.232 | CW201: 12.96 | CX201: 0.29376 | CY201: 42.336 | CZ201: 0.9504 | DA201: 0 | DB201: 0 | DC201: 0 | DD201: 0.8313 | DE201: 1.2284 | DF201: 0.1575 | DG201: 1.2408 | DH201: 20 | DI201: 0 | DJ201: 15
BL202: MISIR GLUTENİ, %62 HP | BM202: 90 | BN202: 62 | BO202: 3720 | BP202: 0.1 | BQ202: 0.5 | BR202: 0.21 | BS202: 0.04 | BT202: 0.1 | BU202: 0.05 | BV202: 1.61 | BW202: 0.91 | BX202: 2.51 | BY202: =BX202*0.88 -> 2.2088 | BZ202: 0.9 | CA202: 0.81 | CB202: 1.7 | CC202: 0.3 | CD202: 2.2 | CE202: 2.45 | CF202: 10.04 | CG202: 3.56 | CH202: 3.07 | CI202: 2.5 | CJ202: 1.16 | CK202: 1.3 | CL202: 1.93 | CM202: 17.91 | CN202: 0.52 | CO202: 6.1 | CP202: 2.1 | CQ202: 0.06 | CR202: 0.74304 | CS202: 0 | CT202: 3.456 | CU202: 0 | CV202: 119.232 | CW202: 12.96 | CX202: 0.29376 | CY202: 42.336 | CZ202: 0.9504 | DA202: 0 | DB202: 0 | DC202: 0 | DD202: 1.31215 | DE202: 1.58 | DF202: 0.21 | DG202: 2.07 | DH202: 20 | DI202: 0 | DJ202: 15 | EA202: ATABEY BEYAZ, CİVCİV (0-3 hf) | EB202: 19 | EC202: =EB202 -> 19 | ED202: 2900 | EE202: 2900 | EF202: 1 | EG202: =EF202 -> 1 | EI202: 0.48 | EJ202: =EI202 -> 0.48 | EK202: 0.16 | EL202: =EK202/0.75 -> 0.2133333333 | EM202: 0.15 | EN202: 0.2 | EO202: 0.5 | EP202: =EO202 -> 0.5 | ES202: 0.8 | ET202: =ES202 -> 0.8 | EW202: 1.15 | EX202: =EW202 -> 1.15 | FA202: 0.73 | FB202: =FA202 -> 0.73 | FE202: 0.2 | FF202: =FE202 -> 0.2 | FM202: 1.4
BL203: MISIR ÖZÜ KÜSPESİ, SOLVENT | BM203: 93 | BN203: 19.5 | BO203: 1800 | BP203: 0.09 | BQ203: 0.5 | BR203: 0.17 | BS203: 0.25 | BT203: 0.03 | BU203: 0.08 | BV203: 0.35 | BW203: 0.41 | BX203: 0.64 | BY203: =(BV203*0.73+BW203*0.73) -> 0.5548 | BZ203: 0.9 | CA203: =BZ203*0.91 -> 0.819 | CB203: 0.76 | CC203: 0.2 | CD203: 1.35 | CE203: 0.68 | CF203: 1.66 | CG203: 1 | CH203: 0.54 | CI203: 1.8 | CK203: 10.5 | CL203: 2.94 | CM203: 22.1 | CO203: 41 | CP203: 11 | CQ203: 0.15 | CR203: 0.3162 | CS203: 0 | CT203: 4.557 | CU203: 0 | CV203: 344.1 | CW203: 3.813 | CX203: 0.3441 | CY203: 106.206 | CZ203: 0 | DA203: 0 | DB203: 0 | DC203: 0 | DD203: 0.28525 | DE203: =CB203*0.83 -> 0.6308 | DF203: =CC203*0.75 -> 0.15 | DG203: =CD203*0.88 -> 1.188 | DH203: 15 | DI203: 0 | DJ203: 10 | EA203: ATABEY BEYAZ, PİLİÇ BÜYÜTME (4-10 hf) | EB203: 18 | EC203: 18 | ED203: 2800 | EE203: 2800 | EF203: 1 | EG203: 1 | EI203: 0.45 | EJ203: 0.45 | EK203: 0.16 | EL203: 0.2133333333 | EM203: 0.15 | EN203: 0.2 | EO203: 0.4 | EP203: 0.4 | ES203: 0.7 | ET203: =ES203 -> 0.7 | EW203: 1 | EX203: =EW203 -> 1 | FA203: 0.65 | FB203: =FA203 -> 0.65 | FE203: 0.18 | FF203: =FE203 -> 0.18 | FM203: 1.25
BL204: MISIR POS.ÇÖZ. (ŞİLEMPE, DDS) | BM204: 92 | BN204: 28.5 | BO204: 2930 | BP204: 0.35 | BQ204: 1.27 | BR204: 1.17 | BS204: 1.75 | BT204: 0.26 | BU204: 0.26 | BV204: 0.5 | BW204: 0.4 | BX204: 0.9 | BY204: =(BV204*0.73+BW204*0.73) -> 0.657 | BZ204: 0.9 | CA204: 0.819 | CB204: 1 | CC204: 0.3 | CD204: 1.05 | CE204: 1.25 | CF204: 2.11 | CG204: 1.3 | CH204: 0.95 | CI204: 9 | CJ204: 4.77 | CK204: 4 | CL204: 8 | DD204: 0.4075 | DE204: 0.83 | DF204: 0.225 | DG204: 0.924 | DH204: 15 | DI204: 0 | DJ204: 5 | EA204: ATABEY BEYAZ, PİLİÇ GELİŞTİRME (11-16 hf) | EB204: 16 | EC204: 16 | ED204: 2700 | EE204: 2700 | EF204: 0.9 | EG204: 0.9 | EI204: 0.36 | EJ204: 0.36 | EK204: 0.16 | EL204: 0.2133333333 | EM204: 0.15 | EN204: 0.2 | EO204: 0.35 | EP204: 0.35 | ES204: 0.58 | ET204: =ES204 -> 0.58 | EW204: 0.72 | EX204: =EW204 -> 0.72 | FA204: 0.5 | FB204: =FA204 -> 0.5 | FE204: 0.16 | FF204: =FE204 -> 0.16 | FM204: 1
BL205: MISIR POS.TANE+ÇÖZ.(ŞİLEMPE, DDGS) | BM205: 93 | BN205: 27.4 | BO205: 2480 | BP205: 0.17 | BQ205: 0.72 | BR205: 0.39 | BS205: 0.65 | BT205: 0.48 | BU205: 0.17 | BV205: 0.6 | BW205: 0.4 | BX205: 1 | BY205: =(BV205*0.84+BW205*0.77) -> 0.812 | BZ205: 0.75 | CA205: =BZ205*0.65 -> 0.4875 | CB205: 0.92 | CC205: 0.19 | CD205: 0.98 | CE205: 1 | CF205: 2.2 | CG205: 1.2 | CH205: 0.74 | CI205: 9 | CJ205: 4.55 | CK205: 9.1 | CL205: 4.69 | CM205: 6 | CO205: 34.9976 | CP205: 17.7694 | CQ205: 0.29766 | CR205: 0.39688 | CS205: 0 | CT205: 7.216 | CU205: 0 | CV205: 160.556 | CW205: 24.354 | CX205: 0.35178 | CY205: 58.63 | CZ205: 1.7138 | DA205: 6.2 | DB205: 0 | DC205: 0 | DD205: 0.489 | DE205: 0.7636 | DF205: 0.1425 | DG205: 0.8624 | DH205: 15 | DI205: 0 | DJ205: 5 | EA205: ATABEY BEYAZ, YUMURTA BAŞLANGIÇ YEMİ (17-20 hf) | EB205: 17 | EC205: 17 | ED205: 2750 | EE205: 2750 | EF205: 2 | EG205: 2 | EI205: 0.45 | EJ205: 0.45 | EK205: 0.16 | EL205: 0.2133333333 | EM205: 0.15 | EN205: 0.2 | EO205: 0.38 | EP205: 0.38 | ES205: 0.65 | ET205: =ES205 -> 0.65 | EW205: 0.75 | EX205: =EW205 -> 0.75 | FA205: 0.53 | FB205: =FA205 -> 0.53 | FE205: 0.17 | FF205: =FE205 -> 0.17 | FM205: 1
BL206: MISIR POSASI,TANE(ŞİLEMPE, DDG) | BM206: 94 | BN206: 27.8 | BO206: 1972 | BP206: 0.1 | BQ206: 0.4 | BR206: 0.39 | BS206: 0.17 | BT206: 0.09 | BU206: 0.07 | BV206: 0.4 | BW206: 0.24 | BX206: 0.64 | BY206: =(BV206*0.73+BW206*0.73) -> 0.4672 | BZ206: 0.78 | CA206: =BZ206*0.91 -> 0.7098 | CB206: 0.49 | CC206: 0.2 | CD206: 0.97 | CE206: 0.99 | CF206: 3.01 | CG206: 0.94 | CH206: 0.84 | CI206: 9.2 | CJ206: 0 | CK206: 12 | CL206: 2.2 | CO206: 8 | CP206: 3 | CQ206: 0.2 | CR206: 0.4 | CT206: 30 | CV206: 300 | CW206: 23 | CX206: 0.35 | CY206: 55 | DA206: 3.1 | DD206: 0.326 | DE206: 0.4067 | DF206: 0.15 | DG206: 0.8536 | DH206: 15 | DI206: 0 | DJ206: 5 | EA206: ATABEY BEYAZ, YUMURTA 1. DÖNEM (21-42 hf) | EB206: 17 | EC206: 17 | ED206: 2800 | EE206: 2800 | EF206: 3.5 | EG206: 3.8 | EI206: 0.4 | EJ206: 0.4 | EK206: 0.17 | EL206: 0.2266666667 | EM206: 0.17 | EN206: 0.2 | EO206: 0.45 | EP206: 0.45 | ES206: 0.8 | ET206: =ES206 -> 0.8 | EW206: 0.75 | EX206: =EW206 -> 0.75 | FA206: 0.65 | FB206: =FA206 -> 0.65 | FE206: 0.18 | FF206: =FE206 -> 0.18 | FM206: 1.7
BL207: PAM.TOH.KÜSPESİ, SOLVENT, %44 | BM207: 91 | BN207: 44.7 | BO207: 1857 | BP207: 0.15 | BQ207: 0.97 | BR207: 0.37 | BS207: 1.16 | BT207: 0.04 | BU207: 0.03 | BV207: 0.5473170732 | BW207: 0.6653658537 | BX207: 1.212682927 | BY207: 0.8852585366 | BZ207: 1.888780488 | CA207: 1.265482927 | CB207: 1.43804878 | CC207: 0.5580487805 | CD207: 5.00097561 | CE207: 1.427317073 | CF207: 2.586341463 | CG207: 2.393170732 | CH207: 1.223414634 | CI207: 1.6 | CJ207: 0 | CK207: 11.1 | CL207: 6.7 | CM207: 4.8 | CN207: 3 | CO207: 27.874 | CP207: 18.0095 | CQ207: 0.55205 | CR207: 0.362 | CS207: 0 | CT207: 12.67 | CU207: 0 | CV207: 134.845 | CW207: 21.72 | CX207: 0.2715 | CY207: 60.635 | CZ207: 2.715 | DA207: 0 | DB207: 0 | DC207: 0 | DD207: 0.4460634146 | DE207: 1.193580488 | DF207: 0.4185365854 | DG207: 4.400858537 | DH207: 80 | DI207: 0 | DJ207: 20 | EA207: ATABEY BEYAZ, YUMURTA 2. DÖNEM (42-72 hf) | EB207: 16 | EC207: 16 | ED207: 2700 | EE207: 2700 | EF207: 4 | EG207: 4.2 | EI207: 0.35 | EJ207: 0.35 | EK207: 0.16 | EL207: =EK207/0.75 -> 0.2133333333 | EM207: 0.15 | EN207: 0.2 | EO207: 0.4 | EP207: 0.4 | ES207: 0.7 | ET207: =ES207 -> 0.7 | EW207: 0.75 | EX207: =EW207 -> 0.75 | FA207: 0.6 | FB207: =FA207 -> 0.6 | FE207: 0.17 | FF207: =FE207 -> 0.17 | FM207: 1.5
BL208: PAM.TOH.KÜSPESİ,EKSPELLER, %32 | BM208: 90 | BN208: 32 | BO208: 2000 | BP208: 0.4 | BQ208: 1.1 | BR208: 0.33 | BS208: 1.16 | BT208: 0.04 | BU208: 0.03 | BV208: 0.43 | BW208: 0.46 | BX208: 0.89 | BY208: =(BV208*0.73+BW208*0.73) -> 0.6497 | BZ208: 1.24 | CA208: =BZ208*0.91 -> 1.1284 | CB208: 1.014634146 | CC208: 0.3902439024 | CD208: 3.395121951 | CE208: 1.022439024 | CF208: 1.740487805 | CG208: 1.717073171 | CH208: 0.8507317073 | CI208: 1.7 | CJ208: 2.46 | CK208: 16.8 | CL208: 7.1 | CM208: 2.1 | CN208: 3 | CO208: 32.58 | CP208: 23.53 | CQ208: 0.55205 | CR208: 0.35295 | CS208: 0 | CT208: 9.05 | CU208: 0 | CV208: 117.65 | CW208: 20.815 | CX208: 0.2353 | CY208: 56.11 | CZ208: 2.534 | DA208: 0 | DB208: 0 | DC208: 0 | DD208: 0.35045 | DE208: 0.8421463415 | DF208: 0.2926829268 | DG208: 2.987707317 | DH208: 64 | DI208: 0 | DJ208: 15
BL209: PAM.TOH.KÜSPESİ,EKSPELLER, %41 | BM209: 93 | BN209: 40.9 | BO209: 2320 | BP209: 0.15 | BQ209: 1.05 | BR209: 0.45 | BS209: 1.1 | BT209: 0.05 | BU209: 0.03 | BV209: 0.49 | BW209: 0.62 | BX209: 1.11 | BY209: 0.75 | BZ209: 1.67 | CA209: 1.18 | CB209: 1.3 | CC209: 0.5 | CD209: 4.56 | CE209: 1.31 | CF209: 2.23 | CG209: 2.2 | CH209: 1.09 | CI209: 3.9 | CJ209: 2.47 | CK209: 12 | CL209: 6.7 | CM209: 4 | CN209: 3 | CO209: 28.055 | CP209: 16.29 | CQ209: 0.33485 | CR209: 0.20815 | CS209: 0 | CT209: 6.335 | CU209: 0 | CV209: 85.07 | CW209: 16.29 | CX209: 0.1267 | CY209: 33.485 | CZ209: 1.1765 | DA209: 0 | DB209: 0 | DC209: 0 | DD209: 0.39935 | DE209: 0.9 | DF209: 0.35 | DG209: 3.68 | DH209: 70 | DI209: 0 | DJ209: 20 | EA209: ATAK ve ATAK-S KAHVERENGİ,CİVCİV (0-3 hf) | EB209: 19 | EC209: =EB209 -> 19 | ED209: 2900 | EE209: =ED209 -> 2900 | EF209: 1 | EG209: =EF209 -> 1 | EI209: 0.48 | EJ209: =EI209 -> 0.48 | EK209: 0.16 | EL209: =EK209/0.75 -> 0.2133333333 | EM209: 0.15 | EN209: 0.2 | EO209: 0.5 | EP209: 0.5 | ES209: 0.8 | ET209: =ES209 -> 0.8 | EW209: 1.15 | EX209: =EW209 -> 1.15 | FA209: 0.73 | FB209: =FA209 -> 0.73 | FE209: 0.2 | FF209: =FE209 -> 0.2 | FM209: 1.4
BL210: PAM.TOH.KÜSPESİ,SOLVENT, %36 | BM210: 90 | BN210: 36 | BO210: 2000 | BP210: 0.4 | BQ210: 1.1 | BR210: 0.33 | BS210: 1.16 | BT210: 0.04 | BU210: 0.03 | BV210: 0.447804878 | BW210: 0.5443902439 | BX210: 0.99 | BY210: =(BV210*0.73+BW210*0.73) -> 0.724302439 | BZ210: 1.545365854 | CA210: =BZ210*0.91 -> 1.406282927 | CB210: 1.176585366 | CC210: 0.4565853659 | CD210: 4.091707317 | CE210: 1.167804878 | CF210: 2.116097561 | CG210: 1.95804878 | CH210: 1.00097561 | CI210: 1.7 | CJ210: 2.46 | CK210: 13.4 | CL210: 6.9 | CM210: 2.1 | CN210: 3 | CO210: 28.96 | CP210: 19.91 | CQ210: 0.55205 | CR210: 0.35295 | CS210: 0 | CT210: 9.05 | CU210: 0 | CV210: 117.65 | CW210: 20.815 | CX210: 0.2353 | CY210: 56.11 | CZ210: 2.534 | DA210: 0 | DB210: 0 | DC210: 0 | DD210: 0.3649609756 | DE210: =CB210*0.83 -> 0.9765658537 | DF210: =CC210*0.75 -> 0.3424390244 | DG210: =CD210*0.88 -> 3.600702439 | DH210: 65 | DI210: 0 | DJ210: 20 | EA210: ATAK ve ATAK-S KAHVERENGİ, PİLİÇ BÜYÜTME (4-10 hf) | EB210: 18 | EC210: 18 | ED210: 2800 | EE210: 2800 | EF210: 1 | EG210: 1 | EI210: 0.45 | EJ210: 0.45 | EK210: 0.16 | EL210: 0.2133333333 | EM210: 0.15 | EN210: 0.2 | EO210: 0.4 | EP210: 0.4 | ES210: 0.7 | ET210: =ES210 -> 0.7 | EW210: 1 | EX210: =EW210 -> 1 | FA210: 0.65 | FB210: =FA210 -> 0.65 | FE210: 0.18 | FF210: =FE210 -> 0.18 | FM210: 1.25
BL211: PAM.TOH.KÜSPESİ,SOLVENT, %41 | BM211: 90 | BN211: 41.4 | BO211: 2400 | BP211: 0.15 | BQ211: 1.05 | BR211: 0.45 | BS211: 1.1 | BT211: 0.05 | BU211: 0.03 | BV211: 0.49 | BW211: 0.62 | BX211: 1.11 | BY211: 0.75 | BZ211: 1.67 | CA211: 1.18 | CB211: 1.3 | CC211: 0.5 | CD211: 4.56 | CE211: 1.33 | CF211: 2.41 | CG211: 2.23 | CH211: 1.14 | CI211: 0.5 | CJ211: 0.21 | CK211: 13.6 | CL211: 6.7 | CM211: 4.8 | CN211: 3 | CO211: 27.874 | CP211: 18.0095 | CQ211: 0.55205 | CR211: 0.362 | CS211: 0 | CT211: 12.67 | CU211: 0 | CV211: 134.845 | CW211: 21.72 | CX211: 0.2715 | CY211: 60.635 | CZ211: 2.715 | DA211: 0 | DB211: 0 | DC211: 0 | DD211: 0.39935 | DE211: 0.9 | DF211: 0.35 | DG211: 3.68 | DH211: 70 | DI211: 0 | DJ211: 20 | EA211: ATAK ve ATAK-S KAHVERENGİ, PİLİÇ GELİŞTİRME (11-16 hf) | EB211: 16 | EC211: 16 | ED211: 2700 | EE211: 2700 | EF211: 0.9 | EG211: 0.9 | EI211: 0.36 | EJ211: 0.36 | EK211: 0.16 | EL211: 0.2133333333 | EM211: 0.15 | EN211: 0.2 | EO211: 0.35 | EP211: 0.35 | ES211: 0.58 | ET211: =ES211 -> 0.58 | EW211: 0.72 | EX211: =EW211 -> 0.72 | FA211: 0.5 | FB211: =FA211 -> 0.5 | FE211: 0.16 | FF211: =FE211 -> 0.16 | FM211: 1
BL212: PEYNİR ALTI SUYU TOZU | BM212: 93 | BN212: 13 | BO212: 1900 | BP212: 0.97 | BQ212: 0.76 | BR212: 0.76 | BS212: 1.05 | BT212: 1.3 | BU212: 1.5 | BV212: 0.19 | BW212: 0.3 | BX212: 0.49 | BY212: =(BV212*0.73+BW212*0.73) -> 0.3577 | BZ212: 0.97 | CA212: =BZ212*0.91 -> 0.8827 | CB212: 0.89 | CC212: 0.19 | CD212: 0.34 | CE212: 0.82 | CF212: 1.19 | CG212: 0.33 | CH212: 0.25 | CI212: 0.8 | CJ212: 0.01 | CK212: 0.2 | CL212: 8.8 | CN212: 66.5 | CQ212: 0.1764 | CR212: 0.294 | CS212: 5.684 | CT212: 1.96 | CU212: 0 | CV212: 101.92 | CW212: 4.3708 | CX212: 0.245 | CY212: 2.744 | CZ212: 0 | DA212: 0 | DB212: 0 | DC212: 0 | DD212: 0.15485 | DE212: =CB212*0.83 -> 0.7387 | DF212: =CC212*0.75 -> 0.1425 | DG212: =CD212*0.88 -> 0.2992 | DH212: 70 | DI212: 0 | DJ212: 2 | EA212: ATAK ve ATAK-S KAHVERENGİ, YUMURTA BAŞLANGIÇ (17-20 hf) | EB212: 17 | EC212: 17 | ED212: 2750 | EE212: 2750 | EF212: 2 | EG212: 2 | EI212: 0.45 | EJ212: 0.45 | EK212: 0.16 | EL212: 0.2133333333 | EM212: 0.15 | EN212: 0.2 | EO212: 0.38 | EP212: 0.38 | ES212: 0.65 | ET212: =ES212 -> 0.65 | EW212: 0.75 | EX212: =EW212 -> 0.75 | FA212: 0.53 | FB212: =FA212 -> 0.53 | FE212: 0.17 | FF212: =FE212 -> 0.17 | FM212: 1
BL213: PEYNİR ALTI SUYU TOZU, DÜŞÜK LAKTOZLU | BM213: 91 | BN213: 16 | BO213: 2090 | BP213: 1.95 | BQ213: 0.98 | BR213: 0.98 | BS213: 3 | BT213: 1.5 | BU213: 1.03 | BV213: 0.57 | BW213: 0.57 | BX213: 1.14 | BY213: 0.8322 | BZ213: 1.47 | CA213: 1.3377 | CB213: 0.85 | CC213: 0.23 | CD213: 0.67 | CE213: 0.9 | CF213: 1.35 | CG213: 0.5 | CH213: 0.35 | CI213: 1 | CJ213: 0.01 | CK213: 0.3 | CL213: 16.5 | CN213: 40 | CQ213: 0.2139 | CR213: 1.0695 | CS213: 0.0093 | CT213: 0.6696 | CU213: 0 | CV213: 8.37 | CW213: 0.093 | CX213: 0.2325 | CY213: 18.6 | CZ213: 0 | DA213: 0 | DB213: 0 | DC213: 0 | DD213: 0.46455 | DE213: =CB213*0.83 -> 0.7055 | DF213: =CC213*0.75 -> 0.1725 | DG213: =CD213*0.88 -> 0.5896 | DH213: 70 | DI213: 0 | DJ213: 2 | EA213: ATAK ve ATAK-S KAHVERENGİ, YUMURTA 1. DÖNEM (21-42 hf) | EB213: 17 | EC213: 17 | ED213: 2800 | EE213: 2800 | EF213: 3.5 | EG213: 3.8 | EI213: 0.4 | EJ213: 0.4 | EK213: 0.17 | EL213: 0.2266666667 | EM213: 0.17 | EN213: 0.2 | EO213: 0.45 | EP213: 0.45 | ES213: 0.8 | ET213: =ES213 -> 0.8 | EW213: 0.75 | EX213: =EW213 -> 0.75 | FA213: 0.65 | FB213: =FA213 -> 0.65 | FE213: 0.18 | FF213: =FE213 -> 0.18 | FM213: 1.7
BL214: SOYA KÜSPESİ, %44 | BM214: 89 | BN214: 44 | BO214: 2230 | BP214: 0.29 | BQ214: 0.65 | BR214: 0.27 | BS214: 2 | BT214: 0.01 | BU214: 0.05 | BV214: 0.62 | BW214: 0.66 | BX214: 1.28 | BY214: =BX214*0.75 -> 0.96 | BZ214: 2.69 | CA214: =BZ214*0.91 -> 2.4479 | CB214: 1.72 | CC214: 0.74 | CD214: 3.14 | CE214: 1.96 | CF214: 3.39 | CG214: 2.16 | CH214: 1.91 | CI214: 0.8 | CJ214: 0.4 | CK214: 7 | CL214: 6.6 | CM214: 6 | CN214: 8 | CO214: 17.82 | CP214: 13.365 | CQ214: 0.27621 | CR214: 0.40986 | CS214: 0 | CT214: 19.602 | CU214: 0 | CV214: 164.835 | CW214: 31.185 | CX214: 0.18711 | CY214: 50.787 | CZ214: 0.0891 | DA214: 0 | DB214: 0 | DC214: 0 | DD214: 0.5053 | DE214: 1.75 | DF214: 0.53 | DG214: 3.2 | DH214: 17 | DI214: 0 | DJ214: 40 | EA214: ATAK ve ATAK-S KAHVERENGİ, YUMURTA 2. DÖNEM (42-72 hf) | EB214: 16 | EC214: 16 | ED214: 2700 | EE214: 2700 | EF214: 4 | EG214: 4.2 | EI214: 0.35 | EJ214: 0.35 | EK214: 0.16 | EL214: 0.2133333333 | EM214: 0.15 | EN214: 0.2 | EO214: 0.4 | EP214: 0.4 | ES214: 0.7 | ET214: =ES214 -> 0.7 | EW214: 0.75 | EX214: =EW214 -> 0.75 | FA214: 0.6 | FB214: =FA214 -> 0.6 | FE214: 0.17 | FF214: =FE214 -> 0.17 | FM214: 1.5
BL215: SOYA KÜSPESİ, %46 | BM215: 90 | BN215: 46 | BO215: 2400 | BP215: 0.27 | BQ215: 0.62 | BR215: 0.37 | BS215: 1.98 | BT215: 0.05 | BU215: 0.05 | BV215: 0.67 | BW215: 0.72 | BX215: 1.5 | BY215: =(BV215*0.92+BW215*0.82) -> 1.2068 | BZ215: 2.96 | CA215: =BZ215*0.91 -> 2.6936 | CB215: 1.87 | CC215: 0.74 | CD215: 3.48 | CE215: 2.12 | CF215: 3.74 | CG215: 2.34 | CH215: 1.95 | CI215: 1 | CJ215: 0.47 | CK215: 3.9 | CL215: 6.6 | CM215: 6 | CN215: 8 | CO215: 13.2759 | CP215: 8.91 | CQ215: 0.25839 | CR215: 0.34749 | CS215: 0 | CT215: 14.256 | CU215: 0 | CV215: 183.546 | CW215: 35.64 | CX215: 0.11583 | CY215: 51.678 | CZ215: 5.2569 | DA215: 0 | DB215: 0 | DC215: 0 | DD215: 0.54605 | DE215: 1.75 | DF215: 0.53 | DG215: 3.2 | DH215: 18 | DI215: 0 | DJ215: 40
BL216: SOYA KÜSPESİ, %48 | BM216: 90 | BN216: 47.5 | BO216: 2440 | BP216: 0.27 | BQ216: 0.62 | BR216: 0.37 | BS216: 1.98 | BT216: 0.05 | BU216: 0.05 | BV216: 0.67 | BW216: 0.72 | BX216: 1.5 | BY216: =(BV216*0.92+BW216*0.82) -> 1.2068 | BZ216: 2.96 | CA216: =BZ216*0.91 -> 2.6936 | CB216: 1.87 | CC216: 0.74 | CD216: 3.48 | CE216: 2.12 | CF216: 3.74 | CG216: 2.34 | CH216: 1.95 | CI216: 1 | CJ216: 0.47 | CK216: 3.9 | CL216: 6.6 | CM216: 6 | CN216: 8 | CO216: 13.2759 | CP216: 8.91 | CQ216: 0.25839 | CR216: 0.34749 | CS216: 0 | CT216: 14.256 | CU216: 0 | CV216: 183.546 | CW216: 35.64 | CX216: 0.11583 | CY216: 51.678 | CZ216: 5.2569 | DA216: 0 | DB216: 0 | DC216: 0 | DD216: =BV216*0.815 -> 0.54605 | DE216: 1.75 | DF216: 0.53 | DG216: 3.2 | DH216: 19 | DI216: 0 | DJ216: 40 | EA216: BOVANS BEYAZ,BAŞLANGIÇ (0-4 hf), 18-24ºC | EB216: 20.5 | EC216: =EB216 -> 20.5 | ED216: 2950 | EE216: 2975 | EF216: 1.05 | EG216: 1.1 | EI216: 0.48 | EJ216: =EI216 -> 0.48 | EK216: 0.16 | EL216: =EK216/0.75 -> 0.2133333333 | EM216: 0.15 | EN216: =EM216/0.75 -> 0.2 | EO216: 0.52 | EP216: 0.52 | EQ216: 0.48 | ER216: =EQ216 -> 0.48 | ES216: 0.86 | ET216: =ES216 -> 0.86 | EU216: 0.78 | EV216: =EU216 -> 0.78 | EW216: 1.16 | EX216: =EW216 -> 1.16 | EY216: 1 | EZ216: =EY216 -> 1 | FA216: 0.78 | FB216: =FA216 -> 0.78 | FC216: 0.67 | FD216: =FC216 -> 0.67 | FE216: 0.217 | FF216: =FE216 -> 0.217 | FG216: 0.186 | FH216: =FG216 -> 0.186 | FM216: 1.3
BL217: SOYA KÜSPESİ, %51 | BM217: 90 | BN217: 51 | BO217: 2500 | BP217: 0.27 | BQ217: 0.69 | BR217: 0.1 | BS217: 2.2 | BT217: 0.01 | BU217: 0.05 | BV217: 0.66 | BW217: 0.77 | BX217: 1.43 | BY217: =(BV217*0.92+BW217*0.82) -> 1.2386 | BZ217: 3.05 | CA217: =BZ217*0.91 -> 2.7755 | CB217: 1.88 | CC217: 0.65 | CD217: 3.59 | CE217: 2.42 | CF217: 3.68 | CG217: 2.36 | CH217: 1.96 | CI217: 1.9 | CJ217: 0.47 | CK217: 3.4 | CL217: 6.2 | CM217: 6 | CN217: 9 | CO217: 6 | CP217: 4 | CQ217: 0.28 | CR217: 0.34749 | CS217: 0 | CT217: 14.256 | CU217: 0 | CV217: 183.546 | CW217: 35.64 | CX217: 0.11583 | CY217: 51.678 | CZ217: 5.2569 | DA217: 0 | DB217: 0 | DC217: 0 | DD217: 0.5379 | DE217: 1.5 | DF217: 0.52 | DG217: 2.87 | DH217: 20 | DI217: 0 | DJ217: 40 | EA217: BOVANS BEYAZ,BÜYÜTME (4-10 hf), 18-24ºC | EB217: 19 | EC217: 19 | ED217: 2850 | EE217: 2875 | EF217: 0.9 | EG217: 1.1 | EI217: 0.42 | EJ217: 0.42 | EK217: 0.16 | EL217: 0.2133333333 | EM217: 0.15 | EN217: 0.2 | EO217: 0.45 | EP217: 0.45 | EQ217: 0.41 | ER217: =EQ217 -> 0.41 | ES217: 0.76 | ET217: =ES217 -> 0.76 | EU217: 0.66 | EV217: =EU217 -> 0.66 | EW217: 0.98 | EX217: =EW217 -> 0.98 | EY217: 0.85 | EZ217: =EY217 -> 0.85 | FA217: 0.66 | FB217: =FA217 -> 0.66 | FC217: 0.57 | FD217: =FC217 -> 0.57 | FE217: 0.194 | FF217: =FE217 -> 0.194 | FG217: 0.166 | FH217: =FG217 -> 0.166 | FM217: 1.3
BL218: SOYA PROTEİNİ | BM218: 93 | BN218: 84.1 | BO218: 3500 | BP218: 0.02 | BQ218: 0.8 | BR218: 0.32 | BS218: 0.18 | BT218: 0.07 | BU218: 0.02 | BV218: 0.81 | BW218: 0.49 | BX218: 1.3 | BY218: =(BV218*0.73+BW218*0.73) -> 0.949 | BZ218: 5.5 | CA218: =BZ218*0.91 -> 5.005 | CB218: 3.3 | CC218: 0.81 | CD218: 6.7 | CE218: 4.6 | CF218: 6.6 | CG218: 4.3 | CH218: 3.1 | CI218: 0.4 | CJ218: 0 | CK218: 0.2 | CL218: 3 | CQ218: 0.14 | DD218: 0.66015 | DE218: =CB218*0.83 -> 2.739 | DF218: =CC218*0.75 -> 0.6075 | DG218: =CD218*0.88 -> 5.896 | DH218: 17 | DI218: 0 | DJ218: 5 | EA218: BOVANS BEYAZ,YARKA (10-16 hf), 18-24ºC | EB218: 16 | EC218: 16 | ED218: 2750 | EE218: 2750 | EF218: 0.9 | EG218: 1 | EI218: 0.36 | EJ218: 0.36 | EK218: 0.15 | EL218: 0.2 | EM218: 0.14 | EN218: 0.1866666667 | EO218: 0.33 | EP218: 0.33 | EQ218: 0.3 | ER218: =EQ218 -> 0.3 | ES218: 0.6 | ET218: =ES218 -> 0.6 | EU218: 0.53 | EV218: =EU218 -> 0.53 | EW218: 0.74 | EX218: =EW218 -> 0.74 | EY218: 0.64 | EZ218: =EY218 -> 0.64 | FA218: 0.5 | FB218: =FA218 -> 0.5 | FC218: 0.43 | FD218: =FC218 -> 0.43 | FE218: 0.168 | FF218: =FE218 -> 0.168 | FG218: 0.145 | FH218: =FG218 -> 0.145 | FM218: 1.3
BL219: SOYA,TAM YAĞLI | BM219: 90 | BN219: 35.5 | BO219: 3300 | BP219: 0.25 | BQ219: 0.58 | BR219: 0.11 | BS219: 1.61 | BT219: 0.03 | BU219: 0.03 | BV219: 0.53 | BW219: 0.54 | BX219: 1.07 | BY219: 0.93 | BZ219: 2.4 | CA219: 2 | CB219: 1.5 | CC219: 0.49 | CD219: 2.59 | CE219: 1.56 | CF219: 2.75 | CG219: 1.78 | CH219: 1.34 | CI219: 18 | CJ219: 8.46 | CK219: 5.5 | CL219: 5 | CM219: 1.3 | CN219: 7.6 | CO219: 20.111 | CP219: 13.377 | CQ219: 0.2275 | CR219: 0.2912 | CS219: 0 | CT219: 13.65 | CU219: 0 | CV219: 129.22 | CW219: 26.39 | CX219: 0.2548 | CY219: 43.68 | CZ219: 4.823 | DA219: 0 | DB219: 0 | DC219: 0 | DD219: 0.43195 | DE219: 1.27 | DF219: 0.39 | DG219: 2.31 | DH219: 18 | DI219: 0 | DJ219: 10 | EA219: BOVANS BEYAZ, ÖN YUMURTA YEMİ (17 hf-%2 YV), 18-24ºC | EB219: 16.8 | EC219: 16.8 | ED219: 2750 | EE219: 2750 | EF219: 2 | EG219: 2.1 | EI219: 0.42 | EJ219: 0.42 | EK219: 0.15 | EL219: 0.2 | EM219: 0.14 | EN219: 0.1866666667 | EO219: 0.4 | EP219: 0.4 | EQ219: 0.38 | ER219: =EQ219 -> 0.38 | ES219: 0.67 | ET219: =ES219 -> 0.67 | EU219: 0.6 | EV219: =EU219 -> 0.6 | EW219: 0.8 | EX219: =EW219 -> 0.8 | EY219: 0.71 | EZ219: =EY219 -> 0.71 | FA219: 0.56 | FB219: =FA219 -> 0.56 | FC219: 0.48 | FD219: =FC219 -> 0.48 | FE219: 0.181 | FF219: =FE219 -> 0.181 | FG219: 0.155 | FH219: =FG219 -> 0.155 | FM219: 1.2
BL220: SUSAM KÜSPESİ,EKSPELLER | BM220: 93 | BN220: 43.8 | BO220: 2210 | BP220: 1.99 | BQ220: 1.37 | BR220: 0.34 | BS220: 1.2 | BT220: 0.04 | BU220: 0.06 | BV220: 1.4 | BW220: 0.54 | BX220: 1.94 | BY220: =BX220*((0.94+0.82)/2) -> 1.7072 | BZ220: 0.91 | CA220: =BZ220*0.88 -> 0.8008 | CB220: 1.71 | CC220: 0.82 | CD220: 5.06 | CE220: 2.28 | CF220: 3.3 | CG220: 2.32 | CH220: 0 | CI220: 6.5 | CJ220: 1.9 | CK220: 7 | CL220: 10 | CM220: 1.8 | CN220: 3.5 | CO220: 20 | CP220: 9.5 | CQ220: 5.5 | CT220: 39 | CV220: 1800 | CW220: 78 | CY220: 115 | DD220: 1.141 | DE220: =CB220*0.83 -> 1.4193 | DF220: =CC220*0.75 -> 0.615 | DG220: =CD220*0.88 -> 4.4528 | DH220: 12 | DI220: 0 | DJ220: 10 | EA220: BOVANS BEYAZ, YUMURTA (%2 YV-28 hf) (GYT 105 g) | EB220: 18.2 | EC220: 18.7 | ED220: 2820 | EE220: 2900 | EF220: 3.9 | EG220: 4.1 | EI220: 0.45 | EJ220: 0.45 | EK220: 0.18 | EL220: 0.24 | EM220: 0.17 | EN220: 0.2266666667 | EO220: 0.46 | EP220: 0.46 | EQ220: 0.44 | ER220: =EQ220 -> 0.44 | ES220: 0.77 | ET220: =ES220 -> 0.77 | EU220: 0.7 | EV220: =EU220 -> 0.7 | EW220: 0.91 | EX220: =EW220 -> 0.91 | EY220: 0.81 | EZ220: =EY220 -> 0.81 | FA220: 0.66 | FB220: =FA220 -> 0.66 | FC220: 0.57 | FD220: =FC220 -> 0.57 | FE220: 0.21 | FF220: =FE220 -> 0.21 | FG220: 0.182 | FH220: =FG220 -> 0.182
BL221: SÜT TOZU,İNEK,YAĞSIZ | BM221: 93 | BN221: 36.1 | BO221: 2537 | BP221: 1.28 | BQ221: 1.02 | BR221: 1.02 | BS221: 1.6 | BT221: 0.51 | BU221: 0.9 | BV221: 0.9 | BW221: 0.29 | BX221: 1.19 | BY221: =(BV221*0.73+BW221*0.73) -> 0.8687 | BZ221: 2.8 | CA221: =BZ221*0.91 -> 2.548 | CB221: 1.59 | CC221: 0.5 | CD221: 1.21 | CE221: 1.83 | CF221: 3.59 | CG221: 1.75 | CH221: 1.83 | CI221: 1 | CJ221: 0 | CK221: 0.2 | CL221: 6.9 | CN221: 52 | CQ221: 0.094 | CR221: 0.423 | CS221: 0.0094 | CT221: 0.3948 | CU221: 0.141 | CV221: 3.102 | CW221: 0.188 | CX221: 0.188 | CY221: 39.48 | CZ221: 0 | DA221: 0 | DB221: 0 | DC221: 0 | DD221: 0.7335 | DE221: =CB221*0.83 -> 1.3197 | DF221: =CC221*0.75 -> 0.375 | DG221: =CD221*0.88 -> 1.0648 | DH221: 80 | DI221: 0 | DJ221: 2 | EA221: BOVANS BEYAZ, YUMURTA (%2 YV-28 hf) (GYT 110 g) | EB221: 17.7 | EC221: 18.2 | ED221: 2820 | EE221: 2900 | EF221: 3.8 | EG221: 4 | EI221: 0.43 | EJ221: 0.43 | EK221: 0.17 | EL221: 0.2266666667 | EM221: 0.16 | EN221: 0.2133333333 | EO221: 0.44 | EP221: 0.44 | EQ221: 0.42 | ER221: =EQ221 -> 0.42 | ES221: 0.74 | ET221: =ES221 -> 0.74 | EU221: 0.66 | EV221: =EU221 -> 0.66 | EW221: 0.87 | EX221: =EW221 -> 0.87 | EY221: 0.78 | EZ221: =EY221 -> 0.78 | FA221: 0.63 | FB221: =FA221 -> 0.63 | FC221: 0.54 | FD221: =FC221 -> 0.54 | FE221: 0.201 | FF221: =FE221 -> 0.201 | FG221: 0.173 | FH221: =FG221 -> 0.173
BL222: TÜY UNU | BM222: 93 | BN222: 81 | BO222: 2360 | BP222: 0.2 | BQ222: 0.7 | BR222: 0.7 | BS222: 0.3 | BT222: 0.69 | BU222: 0.4 | BV222: 0.6 | BW222: 5.5 | BX222: 6.1 | BY222: 2.85 | BZ222: 1.72 | CA222: 1.1 | CB222: 4.51 | CC222: 0.6 | CD222: 6.42 | CE222: 3.91 | CF222: 6.94 | CG222: 3.94 | CH222: 2.48 | CI222: 2.5 | CJ222: 0.1 | CK222: 1.5 | CL222: 3.5 | CQ222: 0.20526 | CR222: 1.29687 | CS222: 0.03732 | CT222: 9.33 | CU222: 0.03732 | CV222: 70.908 | CW222: 9.33 | CX222: 0.64377 | CY222: 103.563 | CZ222: 0 | DA222: 0 | DB222: 0 | DC222: 0 | DD222: 0.489 | DE222: 3.15 | DF222: 0.41 | DG222: 5.05 | DH222: 10 | DI222: 0 | DJ222: 2 | EA222: BOVANS BEYAZ, YUMURTA (%2 YV-28 hf) (GYT 115 g) | EB222: 17.2 | EC222: 17.6 | ED222: 2820 | EE222: 2900 | EF222: 3.6 | EG222: 3.8 | EI222: 0.41 | EJ222: 0.41 | EK222: 0.16 | EL222: 0.2133333333 | EM222: 0.16 | EN222: 0.2133333333 | EO222: 0.42 | EP222: 0.42 | EQ222: 0.4 | ER222: =EQ222 -> 0.4 | ES222: 0.71 | ET222: =ES222 -> 0.71 | EU222: 0.64 | EV222: =EU222 -> 0.64 | EW222: 0.83 | EX222: =EW222 -> 0.83 | EY222: 0.74 | EZ222: =EY222 -> 0.74 | FA222: 0.6 | FB222: =FA222 -> 0.6 | FC222: 0.52 | FD222: =FC222 -> 0.52 | FE222: 0.192 | FF222: =FE222 -> 0.192 | FG222: 0.166 | FH222: =FG222 -> 0.166
BL223: YERFISTIĞI KÜSPESİ,EKSPELLER | BM223: 90 | BN223: 42 | BO223: 2500 | BP223: 0.16 | BQ223: 0.56 | BR223: =BQ223*0.3 -> 0.168 | BS223: 1.15 | BT223: 0.06 | BU223: 0.03 | BV223: 0.45 | BW223: 0.52 | BX223: 0.97 | BY223: =(BV223*0.73+BW223*0.73) -> 0.7081 | BZ223: 1.26 | CA223: =BZ223*0.91 -> 1.1466 | CB223: 1.01 | CC223: 0.39 | CD223: 4.35 | CE223: 1.27 | CF223: 2.42 | CG223: 1.97 | CH223: 1.47 | CI223: 7.3 | CJ223: 1.43 | CK223: 12 | CL223: 6.3 | CM223: 8 | CN223: 9 | CO223: 19.7522 | CP223: 12.4605 | CQ223: 0.29536 | CR223: 0.29536 | CS223: 0 | CT223: 11.999 | CU223: 0.06461 | CV223: 278.746 | CW223: 30.459 | CX223: 0.19383 | CY223: 49.842 | CZ223: 3.5074 | DA223: 0 | DB223: 0 | DC223: 0 | DD223: 0.36675 | DE223: =CB223*0.83 -> 0.8383 | DF223: =CC223*0.75 -> 0.2925 | DG223: =CD223*0.88 -> 3.828 | DH223: 12 | DI223: 0 | DJ223: 10 | EA223: BOVANS BEYAZ, YUMURTA (%2 YV-28 hf) (GYT 120 g) | EB223: 16.7 | EC223: 17.2 | ED223: 2820 | EE223: 2900 | EF223: 3.4 | EG223: 3.6 | EI223: 0.39 | EJ223: 0.39 | EK223: 0.16 | EL223: 0.2133333333 | EM223: 0.15 | EN223: 0.2 | EO223: 0.41 | EP223: 0.41 | EQ223: 0.38 | ER223: =EQ223 -> 0.38 | ES223: 0.68 | ET223: =ES223 -> 0.68 | EU223: 0.61 | EV223: =EU223 -> 0.61 | EW223: 0.8 | EX223: =EW223 -> 0.8 | EY223: 0.71 | EZ223: =EY223 -> 0.71 | FA223: 0.58 | FB223: =FA223 -> 0.58 | FC223: 0.49 | FD223: =FC223 -> 0.49 | FE223: 0.184 | FF223: =FE223 -> 0.184 | FG223: 0.159 | FH223: =FG223 -> 0.159
BL224: YERFISTIĞI KÜSPESİ,SOLVENT | BM224: 92 | BN224: 50.7 | BO224: 2200 | BP224: 0.2 | BQ224: 0.63 | BR224: 0.13 | BS224: 1.15 | BT224: 0.07 | BU224: 0.03 | BV224: 0.54 | BW224: 0.64 | BX224: 1.18 | BY224: =(BV224*0.88+BW224*0.78) -> 0.9744 | BZ224: 1.54 | CA224: =BZ224*0.91 -> 1.4014 | CB224: 1.24 | CC224: 0.48 | CD224: 5.33 | CE224: 1.55 | CF224: 2.97 | CG224: 2.41 | CH224: 1.8 | CI224: 1.2 | CJ224: 0.24 | CK224: 10 | CL224: 5.8 | CM224: 8 | CN224: 8 | CO224: 19.7522 | CP224: 12.4605 | CQ224: 0.29536 | CR224: 0.29536 | CS224: 0 | CT224: 11.999 | CU224: 0.06461 | CV224: 278.746 | CW224: 30.459 | CX224: 0.19383 | CY224: 49.842 | CZ224: 3.5074 | DA224: 0 | DB224: 0 | DC224: 0 | DD224: 0.4401 | DE224: 1.0292 | DF224: 0.36 | DG224: 4.6904 | DH224: 12 | DI224: 0 | DJ224: 10 | EA224: BOVANS BEYAZ, YUMURTA (%2 YV-28 hf) (GYT 125 g) | EB224: 16.2 | EC224: 16.7 | ED224: 2820 | EE224: 2900 | EF224: 3.3 | EG224: 3.5 | EI224: 0.37 | EJ224: 0.37 | EK224: 0.15 | EL224: 0.2 | EM224: 0.15 | EN224: 0.2 | EO224: 0.39 | EP224: 0.39 | EQ224: 0.37 | ER224: =EQ224 -> 0.37 | ES224: 0.65 | ET224: =ES224 -> 0.65 | EU224: 0.59 | EV224: =EU224 -> 0.59 | EW224: 0.77 | EX224: =EW224 -> 0.77 | EY224: 0.68 | EZ224: =EY224 -> 0.68 | FA224: 0.56 | FB224: =FA224 -> 0.56 | FC224: 0.47 | FD224: =FC224 -> 0.47 | FE224: 0.176 | FF224: =FE224 -> 0.176 | FG224: 0.153 | FH224: =FG224 -> 0.153
BL225: YONCA UNU, %12 HP | BM225: 90 | BN225: 12.2 | BO225: 660 | BP225: 1.4 | BQ225: 0.25 | BR225: 0.22 | BS225: 2.5 | BT225: 0.08 | BU225: 0.47 | BV225: 0.1694117647 | BW225: 0.1341176471 | BX225: 0.3035294118 | BY225: 0.1773176471 | BZ225: 0.5152941176 | CA225: 0.3040235294 | CB225: 0.4870588235 | CC225: 0.1623529412 | CD225: 0.4870588235 | CE225: 0.4729411765 | CF225: 0.84 | CG225: 0.5717647059 | CH225: 0.5717647059 | CI225: 2.1 | CJ225: 0 | CK225: 30.4 | CL225: 7 | CM225: 3 | CO225: 52.78 | CP225: 35.945 | CQ225: 0.2002 | CR225: 0.2275 | CS225: 0.36946 | CT225: 12.467 | CU225: 0 | CV225: 154.7 | CW225: 35.035 | CX225: 0.5005 | CY225: 20.111 | CZ225: 0 | DA225: 17.563 | DB225: 0.91 | DC225: 0 | DD225: 0.1380705882 | DE225: 0.4042588235 | DF225: 0.1217647059 | DG225: 0.4286117647 | DH225: 10 | DI225: 0 | DJ225: 10 | EA225: BOVANS BEYAZ, YUMURTA (28 hf-) (GYT 105 g) | EB225: 17.4 | EC225: 17.9 | ED225: 2820 | EE225: 2900 | EF225: 3.9 | EG225: 4.1 | EI225: 0.4 | EJ225: 0.4 | EK225: 0.17 | EL225: 0.2266666667 | EM225: 0.16 | EN225: 0.2133333333 | EO225: 0.44 | EP225: 0.44 | EQ225: 0.41 | ER225: =EQ225 -> 0.41 | ES225: 0.73 | ET225: =ES225 -> 0.73 | EU225: 0.66 | EV225: =EU225 -> 0.66 | EW225: 0.86 | EX225: =EW225 -> 0.86 | EY225: 0.77 | EZ225: =EY225 -> 0.77 | FA225: 0.62 | FB225: =FA225 -> 0.62 | FC225: 0.53 | FD225: =FC225 -> 0.53 | FE225: 0.198 | FF225: =FE225 -> 0.198 | FG225: 0.17 | FH225: =FG225 -> 0.17
BL226: YONCA UNU, %15 HP | BM226: 90 | BN226: 15.5 | BO226: 1000 | BP226: 1.4 | BQ226: 0.25 | BR226: 0.22 | BS226: 2.4 | BT226: 0.08 | BU226: 0.47 | BV226: 0.2117647059 | BW226: 0.1676470588 | BX226: 0.3794117647 | BY226: 0.2216470588 | BZ226: 0.6441176471 | CA226: 0.3800294118 | CB226: 0.6088235294 | CC226: 0.2029411765 | CD226: 0.6088235294 | CE226: 0.5911764706 | CF226: 1.05 | CG226: 0.7147058824 | CH226: 0.7147058824 | CI226: 3 | CJ226: 0.37 | CK226: 27 | CL226: 9.9 | CM226: 3 | CO226: 48.23 | CP226: 30.394 | CQ226: 0.2457 | CR226: 0.273 | CS226: 0.2093 | CT226: 9.009 | CU226: 0.1183 | CV226: 145.6 | CW226: 38.493 | CX226: 0.5005 | CY226: 23.751 | CZ226: 0 | DA226: 17.563 | DB226: 0.91 | DC226: 0 | DD226: 0.1725882353 | DE226: 0.5053235294 | DF226: 0.1522058824 | DG226: 0.5357647059 | DH226: 10 | DI226: 0 | DJ226: 10 | EA226: BOVANS BEYAZ, YUMURTA (28 hf-) (GYT 110 g) | EB226: 16.9 | EC226: 17.4 | ED226: 2820 | EE226: 2900 | EF226: 3.7 | EG226: 3.9 | EI226: 0.38 | EJ226: 0.38 | EK226: 0.16 | EL226: 0.2133333333 | EM226: 0.16 | EN226: 0.2133333333 | EO226: 0.42 | EP226: 0.42 | EQ226: 0.4 | ER226: =EQ226 -> 0.4 | ES226: 0.7 | ET226: =ES226 -> 0.7 | EU226: 0.63 | EV226: =EU226 -> 0.63 | EW226: 0.82 | EX226: =EW226 -> 0.82 | EY226: 0.73 | EZ226: =EY226 -> 0.73 | FA226: 0.6 | FB226: =FA226 -> 0.6 | FC226: 0.51 | FD226: =FC226 -> 0.51 | FE226: 0.189 | FF226: =FE226 -> 0.189 | FG226: 0.162 | FH226: =FG226 -> 0.162
BL227: YONCA UNU, %17 HP | BM227: 92 | BN227: 17.5 | BO227: 1200 | BP227: 1.44 | BQ227: 0.22 | BR227: 0.22 | BS227: 2.15 | BT227: 0.09 | BU227: 0.47 | BV227: 0.24 | BW227: 0.19 | BX227: 0.43 | BY227: =(BV227*0.73+BW227*0.4) -> 0.2512 | BZ227: 0.73 | CA227: =BZ227*0.59 -> 0.4307 | CB227: 0.69 | CC227: 0.23 | CD227: 0.69 | CE227: 0.67 | CF227: 1.19 | CG227: 0.81 | CH227: 0.81 | CI227: 2.5 | CJ227: 0.47 | CK227: 24.1 | CL227: 11 | CM227: 3 | CO227: 34 | CP227: 27 | CQ227: 0.26187 | CR227: 0.23478 | CS227: 0.27993 | CT227: 8.127 | CU227: 0.14448 | CV227: 558.957 | CW227: 39.732 | CX227: 0.32508 | CY227: 25.284 | CZ227: 2.5284 | DA227: 0 | DB227: 0 | DC227: 0 | DD227: 0.1956 | DE227: 0.5727 | DF227: 0.1725 | DG227: 0.6072 | DH227: 10 | DI227: 0 | DJ227: 10 | EA227: BOVANS BEYAZ, YUMURTA (28 hf-) (GYT 115 g) | EB227: 16.4 | EC227: 16.9 | ED227: 2820 | EE227: 2900 | EF227: 3.6 | EG227: 3.8 | EI227: 0.37 | EJ227: 0.37 | EK227: 0.16 | EL227: 0.2133333333 | EM227: 0.15 | EN227: 0.2 | EO227: 0.4 | EP227: 0.4 | EQ227: 0.38 | ER227: =EQ227 -> 0.38 | ES227: 0.67 | ET227: =ES227 -> 0.67 | EU227: 0.6 | EV227: =EU227 -> 0.6 | EW227: 0.79 | EX227: =EW227 -> 0.79 | EY227: 0.7 | EZ227: =EY227 -> 0.7 | FA227: 0.57 | FB227: =FA227 -> 0.57 | FC227: 0.49 | FD227: =FC227 -> 0.49 | FE227: 0.181 | FF227: =FE227 -> 0.181 | FG227: 0.155 | FH227: =FG227 -> 0.155
BL228: YONCA UNU, %20 HP | BM228: 92 | BN228: 20 | BO228: 1630 | BP228: 1.67 | BQ228: 0.28 | BR228: 0.28 | BS228: 2.15 | BT228: 0.09 | BU228: 0.47 | BV228: 0.31 | BW228: 0.25 | BX228: 0.56 | BY228: =(BV228*0.73+BW228*0.73) -> 0.4088 | BZ228: 0.87 | CA228: =BZ228*0.91 -> 0.7917 | CB228: 0.76 | CC228: 0.33 | CD228: 0.92 | CE228: 0.88 | CF228: 1.3 | CG228: 0.85 | CH228: 0.59 | CI228: 3.6 | CJ228: 0.58 | CK228: 20.2 | CL228: 10 | CM228: 3 | CO228: 42.861 | CP228: 28.21 | CQ228: 0.3185 | CR228: 0.2548 | CS228: 0.35854 | CT228: 16.107 | CU228: 0.1456 | CV228: 204.75 | CW228: 25.48 | CX228: 0.5005 | CY228: 28.119 | CZ228: 0 | DA228: 41.86 | DB228: 1.82 | DC228: 10.01 | DD228: 0.25265 | DE228: 0.6308 | DF228: 0.2475 | DG228: 0.8096 | DH228: 10 | DI228: 0 | DJ228: 10 | EA228: BOVANS BEYAZ, YUMURTA (28 hf-) (GYT 120 g) | EB228: 15.9 | EC228: 16.4 | ED228: 2820 | EE228: 2900 | EF228: 3.4 | EG228: 3.6 | EI228: 0.35 | EJ228: 0.35 | EK228: 0.15 | EL228: 0.2 | EM228: 0.14 | EN228: 0.1866666667 | EO228: 0.38 | EP228: 0.38 | EQ228: 0.36 | ER228: =EQ228 -> 0.36 | ES228: 0.64 | ET228: =ES228 -> 0.64 | EU228: 0.58 | EV228: =EU228 -> 0.58 | EW228: 0.75 | EX228: =EW228 -> 0.75 | EY228: 0.67 | EZ228: =EY228 -> 0.67 | FA228: 0.55 | FB228: =FA228 -> 0.55 | FC228: 0.47 | FD228: =FC228 -> 0.47 | FE228: 0.173 | FF228: =FE228 -> 0.173 | FG228: 0.148 | FH228: =FG228 -> 0.148
EA229: BOVANS BEYAZ, YUMURTA (28 hf-) (GYT 125 g) | EB229: 15.4 | EC229: 15.9 | ED229: 2820 | EE229: 2900 | EF229: 3.3 | EG229: 3.5 | EI229: 0.34 | EJ229: 0.34 | EK229: 0.14 | EL229: 0.1866666667 | EM229: 0.14 | EN229: 0.1866666667 | EO229: 0.37 | EP229: 0.37 | EQ229: 0.35 | ER229: =EQ229 -> 0.35 | ES229: 0.61 | ET229: =ES229 -> 0.61 | EU229: 0.55 | EV229: =EU229 -> 0.55 | EW229: 0.72 | EX229: =EW229 -> 0.72 | EY229: 0.64 | EZ229: =EY229 -> 0.64 | FA229: 0.52 | FB229: =FA229 -> 0.52 | FC229: 0.45 | FD229: =FC229 -> 0.45 | FE229: 0.166 | FF229: =FE229 -> 0.166 | FG229: 0.142 | FH229: =FG229 -> 0.142
EA231: HY-LINE W-36,BAŞLANGIÇ 1 (0-3 hf) | EB231: 20 | EC231: =EB231 -> 20 | ED231: 2977 | EE231: 3087 | EF231: 1 | EG231: =EF231 -> 1 | EI231: 0.5 | EJ231: =EI231 -> 0.5 | EK231: 0.18 | EL231: =EK231/0.75 -> 0.24 | EM231: 0.18 | EN231: =EM231/0.75 -> 0.24 | EO231: 0.51 | EP231: 0.51 | EQ231: 0.47 | ER231: =EQ231 -> 0.47 | ES231: 0.83 | ET231: =ES231 -> 0.83 | EU231: 0.77 | EV231: =EU231 -> 0.77 | EW231: 1.15 | EX231: =EW231 -> 1.15 | EY231: 1.05 | EZ231: =EY231 -> 1.05 | FA231: 0.82 | FB231: =FA231 -> 0.82 | FC231: 0.69 | FD231: =FC231 -> 0.69 | FE231: 0.21 | FF231: =FE231 -> 0.21 | FG231: 0.18 | FH231: =FG231 -> 0.18 | FI231: 1.21 | FJ231: =FI231 -> 1.21 | FK231: 1.12 | FL231: =FK231 -> 1.12 | FM231: 1
EA232: HY-LINE W-36,BAŞLANGIÇ 2 (4-6 hf) | EB232: 19 | EC232: 19 | ED232: 2977 | EE232: 3087 | EF232: 1 | EG232: 1 | EI232: 0.49 | EJ232: 0.49 | EK232: 0.18 | EL232: 0.24 | EM232: 0.18 | EN232: 0.24 | EO232: 0.47 | EP232: 0.47 | EQ232: 0.44 | ER232: =EQ232 -> 0.44 | ES232: 0.83 | ET232: =ES232 -> 0.83 | EU232: 0.72 | EV232: =EU232 -> 0.72 | EW232: 1.07 | EX232: =EW232 -> 1.07 | EY232: 0.98 | EZ232: =EY232 -> 0.98 | FA232: 0.77 | FB232: =FA232 -> 0.77 | FC232: 0.66 | FD232: =FC232 -> 0.66 | FE232: 0.21 | FF232: =FE232 -> 0.21 | FG232: 0.18 | FH232: =FG232 -> 0.18 | FI232: 1.13 | FJ232: =FI232 -> 1.13 | FK232: 1.05 | FL232: =FK232 -> 1.05 | FM232: 1
EA233: HY-LINE W-36,BÜYÜTME (7-12 hf) | EB233: 18 | EC233: 18 | ED233: 2977 | EE233: 3087 | EF233: 1 | EG233: 1 | EI233: 0.47 | EJ233: 0.47 | EK233: 0.18 | EL233: 0.24 | EM233: 0.18 | EN233: 0.24 | EO233: 0.44 | EP233: 0.44 | EQ233: 0.4 | ER233: =EQ233 -> 0.4 | ES233: 0.75 | ET233: =ES233 -> 0.75 | EU233: 0.66 | EV233: =EU233 -> 0.66 | EW233: 0.96 | EX233: =EW233 -> 0.96 | EY233: 0.88 | EZ233: =EY233 -> 0.88 | FA233: 0.7 | FB233: =FA233 -> 0.7 | FC233: 0.6 | FD233: =FC233 -> 0.6 | FE233: 0.2 | FF233: =FE233 -> 0.2 | FG233: 0.17 | FH233: =FG233 -> 0.17 | FI233: 1.01 | FJ233: =FI233 -> 1.01 | FK233: 0.94 | FL233: =FK233 -> 0.94 | FM233: 1
... 138 more rows
